Workbook

Sheet sig page (hidden)
C1: Page 2 of 2
A2: Title | B2: =#REF! ->  | D2: Total Sponsor Support | E2: =#REF! -> 
B3: =#REF! ->  | D3: SRS Proposal # | E3: =#REF! -> 
A4: Sponsor | B4: =#REF! ->  | D4: TTI Proposal # | E4: =#REF! -> 
A6: Approvals: There must be approvals from all department heads, deans, and/or directors whose personnel or facilities are involved in conducting the proposed work.
A8: ATTN. INVESTIGATORS: Your signature below certifies, to the best of your knowledge and belief, that …
A10: a.) You are not delinquent on any Federal debit, such as student loans, etc. (this does not include income taxes); (applies to fellowships, scholarships, IPAs, etc. where
A11: the implied recipient of funds is an individual vs. an organization; per A-110.22 and A-129.)
A12: b.) You are not currently debarred, suspended, proposed for debarment, declared ineligible, or voluntarily excluded from current transactions by Federal department or agency; (per Executive Order 12549).
A13: c.) You agree to accept responsibility for the scientific conduct of the project and to provide the required progress reports if an award is made as a result of this application.
A14: d.) You agree to comply with the TAMU Conflict of Interest Rule; (per NSF 60 FR 35820, 7/11/95; NIH 60 FR 35810,7/11/95).
A15: e.) You agree to comply with the TAMUS Policy on Ethics in Research and Scholarship, TAMUS #15.99.03.
A16: f.) You agree to comply with the TAMUS Policy on Management of Intellectual Property, TAMUS#17.02.01.
A17: g.) You understand that any false, fictitious, or fraudulent statements or claims may subject you to criminal, civil, or administrative penalties.
A18: h.) You certify that the information submitted within the application is true, complete and accurate to the best of your knowledge.
A19: i.) You have reviewed applicable subaward documents, if any, including the subawardee’s statement of work and budget and both appear reasonable and necessary.
A20: ATTN. DEPT. HEADS, DIRECTORS, DEANS: By your signature below you certify that you have reviewed this proposal and all accompanying forms;
A21: you are aware of all requirements of this project and are committed to providing them, except as noted.
A22: TTI Director certifies that TTI has a plan to train undergraduate students, graduate students and postdoctoral researchers in the Responsible Conduct of Research.
B24: INVESTIGATOR(S) | C24: DEPT. HEAD | D24: DEAN | E24: DIRECTOR/V. PRESIDENT
A25: 1. PI SIGNATURE | B25: Routed thru Maestro | E25: Routed thru Maestro
A26: NAME/TITLE | B26: =(#REF!&", " &#REF!) ->  | E26: for Dennis L. Christiansen, Director
A27: DATE | B27: =TODAY() -> 2018-06-29 | E27: =TODAY() -> 2018-06-29
A28: 2. CO-PI SIGNATURE
A29: NAME/TITLE
A30: DATE
A31: 3. RDO PREPARER
A32: DATE
A33: 4. RDO REVIEWER
A34: DATE
A35: 5. NIS REVIEWER
A36: DATE
A37: 6. EXECUTIVE TEAM REVIEWER
A38: I have reviewed the contract and agree that it meets the guidelines of TTI’s agreement with the Consulting Engineers Council (CEC).
A39: DATE
A41: The Texas A&M University System has policies (TAMUS Policies 15.01.03, 31.05, & 31.05.01) that require the full and complete disclosure of substantial interest
A42: (financial or otherwise) in any situation or entity that may: (1) conduct business with any component of the TAMU System, (2) require the employee to make
A43: decisions in conflict to the best interests of the TAMU System.
A45: None of the research team members have ownership in any legal entities nor do they receive remuneration of any kind from organizations that would constitute
A46: (or be perceived as constituting) a conflict of interest to this research project. Similarly, the research team members do not have properties, patents, or interests
A47: that would benefit in any way from the findings of this research. (PI initial)___________ (CO-PI initial)___________ | E47: version 11/23/2011

Sheet budg-by task (hidden)
A1: NOTE TO RESEARCHERS: Make changes only to the areas shaded green. The other areas contain
A2: formulas that calculate based on the green areas.
A3: professional esc:
A4: 9/1/16 -08/31/17 | D4: 12 | E4: =D4*1 -> 12
A5: 9/1/17 -08/31/18 | D5: 0 | E5: =D5*1.03 -> 0
A6: 9/1/18 -08/31/19 | D6: 0 | E6: =D6*1.03*1.03 -> 0
A7: 9/1/19 -08/31/20 | D7: 0 | E7: =D7*1.03*1.03*1.03 -> 0
A8: 9/1/20 -08/31/21 | D8: 0 | E8: =D8*1.03*1.03*1.03*1.03 -> 0
A9: 9/1/21 -08/31/22 | D9: 0 | E9: =D9*1.03*1.03*1.03*1.03*1.03 -> 0
A11: Total months | D11: =SUM(D4:D9) -> 12 | E11: =SUM(E4:E9) -> 12
A13: Ave pro esc | E13: =(E11/D11)-1 -> 0 | F13: =E13+1 -> 1
A14: To calculate esc. on a task basis, get the ave esc for the task by going up to the esc table.
A15: Enter the months the task runs. If the task runs 4 months in year 3 and 8 months in year 4
A16: enter 0 for year 1, 0 for year 2, 4 in year 3, and 8 in year 4.
A18: Copy down the ave esc rate & plug it in d54 & etc.
A20: ESTIMATED BUDGET FOR THE TEXAS A&M TRANSPORTATION INSTITUTE
A22: =#REF! ->  | U22: =(#REF!&" " &#REF!) -> 
A23: =#REF! ->  | U23: =(#REF!&" " &#REF!) -> 
A24: Performance Period: | C24: =#REF! ->  | D24: to | E24: =#REF! -> 
A26: A. Salaries and Wages | C26: % Effort | D26: Task 1 | E26: Task 2 | F26: Task 3 | G26: Task 4 | H26: Task 5 | I26: Task 6 | J26: Task 7 | K26: Task 8 | L26: Task 9 | M26: Task 10 | N26: Task 11 | O26: Task 12 | P26: Task 13 | Q26: Task 14 | R26: Task 15 | S26: Est Hrs | T26: Rt/hr | U26: Est. Cost
A27: Names of Principal Staff Members
B29: Principal Investigator | W29: Base Rate | X29: Esc Rate
B30: Name | C30: =($S30/174)/$D$11 -> 0 | D30: 0 | E30: 0 | F30: 0 | G30: 0 | H30: 0 | I30: 0 | J30: 0 | K30: 0 | L30: 0 | M30: 0 | N30: 0 | O30: 0 | P30: 0 | Q30: 0 | R30: 0 | S30: =SUM(D30:R30) -> 0 | T30: =X30 -> 0 | U30: =ROUND(S30*T30,0) -> 0 | W30: 0 | X30: =ROUND(W30*$F$13,2) -> 0
B32: Professional Staff
B33: Name | C33: =($S33/174)/$D$11 -> 0 | D33: 0 | E33: 0 | F33: 0 | G33: 0 | H33: 0 | I33: 0 | J33: 0 | K33: 0 | L33: 0 | M33: 0 | N33: 0 | O33: 0 | P33: 0 | Q33: 0 | R33: 0 | S33: =SUM(D33:R33) -> 0 | T33: =X33 -> 0 | U33: =ROUND(S33*T33,0) -> 0 | W33: 0 | X33: =ROUND(W33*$F$13,2) -> 0
B35: Professional Staff
B36: Name | C36: =($S36/174)/$D$11 -> 0 | D36: 0 | E36: 0 | F36: 0 | G36: 0 | H36: 0 | I36: 0 | J36: 0 | K36: 0 | L36: 0 | M36: 0 | N36: 0 | O36: 0 | P36: 0 | Q36: 0 | R36: 0 | S36: =SUM(D36:R36) -> 0 | T36: =X36 -> 0 | U36: =ROUND(S36*T36,0) -> 0 | W36: 0 | X36: =ROUND(W36*$F$13,2) -> 0
B38: Professional Staff
B39: Name | C39: =($S39/174)/$D$11 -> 0 | D39: 0 | E39: 0 | F39: 0 | G39: 0 | H39: 0 | I39: 0 | J39: 0 | K39: 0 | L39: 0 | M39: 0 | N39: 0 | O39: 0 | P39: 0 | Q39: 0 | R39: 0 | S39: =SUM(D39:R39) -> 0 | T39: =X39 -> 0 | U39: =ROUND(S39*T39,0) -> 0 | W39: 0 | X39: =ROUND(W39*$F$13,2) -> 0
B41: Professional Staff
B42: Name | C42: =($S42/174)/$D$11 -> 0 | D42: 0 | E42: 0 | F42: 0 | G42: 0 | H42: 0 | I42: 0 | J42: 0 | K42: 0 | L42: 0 | M42: 0 | N42: 0 | O42: 0 | P42: 0 | Q42: 0 | R42: 0 | S42: =SUM(D42:R42) -> 0 | T42: =X42 -> 0 | U42: =ROUND(S42*T42,0) -> 0 | W42: 0 | X42: =ROUND(W42*$F$13,2) -> 0
B44: Professional Staff
B45: Name | C45: =($S45/174)/$D$11 -> 0 | D45: 0 | E45: 0 | F45: 0 | G45: 0 | H45: 0 | I45: 0 | J45: 0 | K45: 0 | L45: 0 | M45: 0 | N45: 0 | O45: 0 | P45: 0 | Q45: 0 | R45: 0 | S45: =SUM(D45:R45) -> 0 | T45: =X45 -> 0 | U45: =ROUND(S45*T45,0) -> 0 | W45: 0 | X45: =ROUND(W45*$F$13,2) -> 0
B47: Professional Staff
B48: Name | C48: =($S48/174)/$D$11 -> 0 | D48: 0 | E48: 0 | F48: 0 | G48: 0 | H48: 0 | I48: 0 | J48: 0 | K48: 0 | L48: 0 | M48: 0 | N48: 0 | O48: 0 | P48: 0 | Q48: 0 | R48: 0 | S48: =SUM(D48:R48) -> 0 | T48: =X48 -> 0 | U48: =ROUND(S48*T48,0) -> 0 | W48: 0 | X48: =ROUND(W48*$F$13,2) -> 0
B50: Professional Staff
B51: Name | C51: =($S51/174)/$D$11 -> 0 | D51: 0 | E51: 0 | F51: 0 | G51: 0 | H51: 0 | I51: 0 | J51: 0 | K51: 0 | L51: 0 | M51: 0 | N51: 0 | O51: 0 | P51: 0 | Q51: 0 | R51: 0 | S51: =SUM(D51:R51) -> 0 | T51: =X51 -> 0 | U51: =ROUND(S51*T51,0) -> 0 | W51: 0 | X51: =ROUND(W51*$F$13,2) -> 0
B53: Professional Staff
B54: Name | C54: =($S54/174)/$D$11 -> 0 | D54: 0 | E54: 0 | F54: 0 | G54: 0 | H54: 0 | I54: 0 | J54: 0 | K54: 0 | L54: 0 | M54: 0 | N54: 0 | O54: 0 | P54: 0 | Q54: 0 | R54: 0 | S54: =SUM(D54:R54) -> 0 | T54: =X54 -> 0 | U54: =ROUND(S54*T54,0) -> 0 | W54: 0 | X54: =ROUND(W54*$F$13,2) -> 0
B56: Professional Staff
B57: Name | C57: =($S57/174)/$D$11 -> 0 | D57: 0 | E57: 0 | F57: 0 | G57: 0 | H57: 0 | I57: 0 | J57: 0 | K57: 0 | L57: 0 | M57: 0 | N57: 0 | O57: 0 | P57: 0 | Q57: 0 | R57: 0 | S57: =SUM(D57:R57) -> 0 | T57: =X57 -> 0 | U57: =ROUND(S57*T57,0) -> 0 | W57: 0 | X57: =ROUND(W57*$F$13,2) -> 0
B59: Professional Staff
B60: Name | C60: =($S60/174)/$D$11 -> 0 | D60: 0 | E60: 0 | F60: 0 | G60: 0 | H60: 0 | I60: 0 | J60: 0 | K60: 0 | L60: 0 | M60: 0 | N60: 0 | O60: 0 | P60: 0 | Q60: 0 | R60: 0 | S60: =SUM(D60:R60) -> 0 | T60: =X60 -> 0 | U60: =ROUND(S60*T60,0) -> 0 | W60: 0 | X60: =ROUND(W60*$F$13,2) -> 0
B62: Technical Staff
B63: TS Name | C63: =($S63/174)/$D$11 -> 0 | D63: 0 | E63: 0 | F63: 0 | G63: 0 | H63: 0 | I63: 0 | J63: 0 | K63: 0 | L63: 0 | M63: 0 | N63: 0 | O63: 0 | P63: 0 | Q63: 0 | R63: 0 | S63: =SUM(D63:R63) -> 0 | T63: =X63 -> 0 | U63: =ROUND(S63*T63,0) -> 0 | W63: 0 | X63: =ROUND(W63*$F$13,2) -> 0
B65: Technical Staff
B66: TS Name | C66: =($S66/174)/$D$11 -> 0 | D66: 0 | E66: 0 | F66: 0 | G66: 0 | H66: 0 | I66: 0 | J66: 0 | K66: 0 | L66: 0 | M66: 0 | N66: 0 | O66: 0 | P66: 0 | Q66: 0 | R66: 0 | S66: =SUM(D66:R66) -> 0 | T66: =X66 -> 0 | U66: =ROUND(S66*T66,0) -> 0 | W66: 0 | X66: =ROUND(W66*$F$13,2) -> 0
B68: Technical Staff
B69: TS Name | C69: =($S69/174)/$D$11 -> 0 | D69: 0 | E69: 0 | F69: 0 | G69: 0 | H69: 0 | I69: 0 | J69: 0 | K69: 0 | L69: 0 | M69: 0 | N69: 0 | O69: 0 | P69: 0 | Q69: 0 | R69: 0 | S69: =SUM(D69:R69) -> 0 | T69: =X69 -> 0 | U69: =ROUND(S69*T69,0) -> 0 | W69: 0 | X69: =ROUND(W69*$F$13,2) -> 0
B71: Technical Staff
B72: TS Name | C72: =($S72/174)/$D$11 -> 0 | D72: 0 | E72: 0 | F72: 0 | G72: 0 | H72: 0 | I72: 0 | J72: 0 | K72: 0 | L72: 0 | M72: 0 | N72: 0 | O72: 0 | P72: 0 | Q72: 0 | R72: 0 | S72: =SUM(D72:R72) -> 0 | T72: =X72 -> 0 | U72: =ROUND(S72*T72,0) -> 0 | W72: 0 | X72: =ROUND(W72*$F$13,2) -> 0
B74: Technical Staff
B75: TS Name | C75: =($S75/174)/$D$11 -> 0 | D75: 0 | E75: 0 | F75: 0 | G75: 0 | H75: 0 | I75: 0 | J75: 0 | K75: 0 | L75: 0 | M75: 0 | N75: 0 | O75: 0 | P75: 0 | Q75: 0 | R75: 0 | S75: =SUM(D75:R75) -> 0 | T75: =X75 -> 0 | U75: =ROUND(S75*T75,0) -> 0 | W75: 0 | X75: =ROUND(W75*$F$13,2) -> 0
B77: Technical Staff
B78: TS Name | C78: =($S78/174)/$D$11 -> 0 | D78: 0 | E78: 0 | F78: 0 | G78: 0 | H78: 0 | I78: 0 | J78: 0 | K78: 0 | L78: 0 | M78: 0 | N78: 0 | O78: 0 | P78: 0 | Q78: 0 | R78: 0 | S78: =SUM(D78:R78) -> 0 | T78: =X78 -> 0 | U78: =ROUND(S78*T78,0) -> 0 | W78: 0 | X78: =ROUND(W78*$F$13,2) -> 0
B80: Clerical Support
B81: CL Name 1 | C81: =($S81/174)/$D$11 -> 0 | D81: 0 | E81: 0 | F81: 0 | G81: 0 | H81: 0 | I81: 0 | J81: 0 | K81: 0 | L81: 0 | M81: 0 | N81: 0 | O81: 0 | P81: 0 | Q81: 0 | R81: 0 | S81: =SUM(D81:R81) -> 0 | T81: =X81 -> 0 | U81: =ROUND(S81*T81,0) -> 0 | W81: 0 | X81: =ROUND(W81*$F$13,2) -> 0
B83: Clerical Support
B84: CL Name 2 | C84: =($S84/174)/$D$11 -> 0 | D84: 0 | E84: 0 | F84: 0 | G84: 0 | H84: 0 | I84: 0 | J84: 0 | K84: 0 | L84: 0 | M84: 0 | N84: 0 | O84: 0 | P84: 0 | Q84: 0 | R84: 0 | S84: =SUM(D84:R84) -> 0 | T84: =X84 -> 0 | U84: =ROUND(S84*T84,0) -> 0 | W84: 0 | X84: =ROUND(W84*$F$13,2) -> 0
B86: Graduate Student
B87: to be named | C87: =($S87/87)/$D$11 -> 0 | D87: 0 | E87: 0 | F87: 0 | G87: 0 | H87: 0 | I87: 0 | J87: 0 | K87: 0 | L87: 0 | M87: 0 | N87: 0 | O87: 0 | P87: 0 | Q87: 0 | R87: 0 | S87: =SUM(D87:R87) -> 0 | T87: =X87 -> 0 | U87: =ROUND(S87*T87,0) -> 0 | W87: 0 | X87: =ROUND(W87*$F$13,2) -> 0 | Z87: no tuition rate/hour | AB87: tuition rate/hour
B89: Undergraduate Student | Y89: PhD | Z89: 24.25 | AB89: 18.39
B90: to be named | C90: =($S90/87)/$D$11 -> 0 | D90: 0 | E90: 0 | F90: 0 | G90: 0 | H90: 0 | I90: 0 | J90: 0 | K90: 0 | L90: 0 | M90: 0 | N90: 0 | O90: 0 | P90: 0 | Q90: 0 | R90: 0 | S90: =SUM(D90:R90) -> 0 | T90: =X90 -> 0 | U90: =ROUND(S90*T90,0) -> 0 | W90: 0 | X90: =ROUND(W90*$F$13,2) -> 0 | Y90: MS | Z90: 23.1 | AB90: 17.24
C92: Subtotal | D92: =SUM(D30:D91) -> 0 | E92: =SUM(E30:E91) -> 0 | F92: =SUM(F30:F91) -> 0 | G92: =SUM(G30:G91) -> 0 | H92: =SUM(H30:H91) -> 0 | I92: =SUM(I30:I90) -> 0 | J92: 0 | K92: 0 | L92: 0 | M92: 0 | N92: 0 | O92: 0 | P92: 0 | Q92: 0 | R92: 0 | S92: 0 | U92: =SUM(U30:U90) -> 0 | Y92: ME | Z92: 21.95 | AB92: 16.09
B94: Summary
B95: Professional | D95: =ROUND((D$30*$T$30)+(D$33*$T$33)+(D$36*$T$36)+(D$39*$T$39)+(D$42*$T$42)+(D$45*$T$45)+(D$48*$T$48)+(D$51*$T$51)+(D$54*$T$54)+(D$57*$T$57)+(D$60*$T$60),0) -> 0 | E95: =ROUND((E$30*$T$30)+(E$33*$T$33)+(E$36*$T$36)+(E$39*$T$39)+(E$42*$T$42)+(E$45*$T$45)+(E$48*$T$48)+(E$51*$T$51)+(E$54*$T$54)+(E$57*$T$57)+(E$60*$T$60),0) -> 0 | F95: 0 | G95: 0 | H95: 0 | I95: =ROUND((I$30*$T$30)+(I$33*$T$33)+(I$36*$T$36)+(I$39*$T$39)+(I$42*$T$42)+(I$45*$T$45)+(I$48*$T$48)+(I$51*$T$51)+(I$54*$T$54)+(I$57*$T$57)+(I$60*$T$60),0) -> 0 | J95: 0 | K95: 0 | L95: 0 | M95: 0 | N95: 0 | O95: 0 | P95: 0 | Q95: 0 | R95: =ROUND((R$30*$T$30)+(R$33*$T$33)+(R$36*$T$36)+(R$39*$T$39)+(R$42*$T$42)+(R$45*$T$45)+(R$48*$T$48)+(R$51*$T$51)+(R$54*$T$54)+(R$57*$T$57)+(R$60*$T$60),0) -> 0 | U95: =SUM(D95:R95) -> 0 | X95: =SUM(U30:U60) -> 0
B96: Clerical/Technical | D96: =ROUND((D$63*$T$63)+(D$66*$T$66)+(D$69*$T$69)+(D$72*$T$72)+(D$75*$T$75)+(D$78*$T$78)+(D$81*$T$81)+(D$84*$T$84),0) -> 0 | E96: 0 | F96: 0 | G96: 0 | H96: 0 | I96: 0 | J96: 0 | K96: 0 | L96: 0 | M96: 0 | N96: 0 | O96: 0 | P96: 0 | Q96: 0 | R96: =ROUND((R$63*$T$63)+(R$66*$T$66)+(R$69*$T$69)+(R$72*$T$72)+(R$75*$T$75)+(R$78*$T$78)+(R$81*$T$81)+(R$84*$T$84),0) -> 0 | U96: =SUM(D96:R96) -> 0 | X96: =SUM(U63:U84) -> 0
B97: Students | D97: =ROUND((D$87*$T$87)+(D$90*$T$90),0) -> 0 | E97: 0 | F97: 0 | G97: 0 | H97: 0 | I97: 0 | J97: 0 | K97: 0 | L97: 0 | M97: 0 | N97: 0 | O97: 0 | P97: 0 | Q97: 0 | R97: =ROUND((R$87*$T$87)+(R$90*$T$90),0) -> 0 | U97: =SUM(D97:R97) -> 0 | X97: =SUM(U87:U90) -> 0
B98: Subtotal salaries and wages | D98: =SUM(D95:D97) -> 0 | E98: 0 | F98: 0 | G98: 0 | H98: 0 | I98: 0 | J98: 0 | K98: 0 | L98: 0 | M98: 0 | N98: 0 | O98: 0 | P98: 0 | Q98: 0 | R98: 0 | U98: =SUM(D98:R98) -> 0
A100: Employee Fringe Benefits
B101: Employee Fringe Benefits Estimates: | W101: Fringe
B102: Students 3.1% | D102: =ROUND((D97)*$W$103,0) -> 0 | E102: =ROUND((E97)*$W$103,0) -> 0 | F102: 0 | G102: 0 | H102: 0 | I102: 0 | J102: 0 | K102: 0 | L102: 0 | M102: 0 | N102: 0 | O102: 0 | P102: 0 | Q102: 0 | R102: =ROUND((R97)*$W$103,0) -> 0 | U102: =SUM(D102:R102) -> 0 | W102: Students | X102: Staff
B103: Staff 17.5% | D103: =ROUND((D96+D95)*$X$103,0) -> 0 | E103: =ROUND((E96+E95)*$X$103,0) -> 0 | F103: 0 | G103: 0 | H103: 0 | I103: 0 | J103: 0 | K103: 0 | L103: 0 | M103: 0 | N103: 0 | O103: 0 | P103: 0 | Q103: 0 | R103: =ROUND((R96+R95)*$X$103,0) -> 0 | U103: =SUM(D103:R103) -> 0 | W103: 0.031 | X103: 0.175
B104: Institutional Medical Insurance Cost (per person/month) | W104: Medical
B105: Students @ $193 | D105: =ROUND((D$87/87)*$W$107,0) -> 0 | E105: =ROUND((E$87/87)*$W$107,0) -> 0 | F105: 0 | G105: 0 | H105: 0 | I105: 0 | J105: 0 | K105: 0 | L105: 0 | M105: 0 | N105: 0 | O105: 0 | P105: 0 | Q105: 0 | R105: 0 | U105: =SUM(D105:R105) -> 0 | W105: Students | X105: Staff
B106: Staff @ $745 | D106: =ROUND(((D92-(D90+D87))/174)*$X$107,0) -> 0 | E106: =ROUND(((E92-(E90+E87))/174)*$X$107,0) -> 0 | F106: =ROUND(((F92-(F90+F87))/174)*$X$107,0) -> 0 | G106: 0 | H106: 0 | I106: 0 | J106: 0 | K106: 0 | L106: 0 | M106: 0 | N106: 0 | O106: 0 | P106: 0 | Q106: 0 | R106: 0 | U106: =SUM(D106:R106) -> 0
B107: Subtotal Total Employee Fringe Benefits | D107: =SUM(D102:D106) -> 0 | E107: =SUM(E102:E106) -> 0 | F107: 0 | G107: 0 | H107: 0 | I107: 0 | J107: 0 | K107: 0 | L107: 0 | M107: 0 | N107: 0 | O107: 0 | P107: 0 | Q107: 0 | R107: 0 | U107: =SUM(D107:R107) -> 0 | W107: 193 | X107: 745
B109: Total Direct Labor Costs | D109: =D98+D107 -> 0 | E109: 0 | F109: 0 | G109: 0 | H109: 0 | I109: 0 | J109: 0 | K109: 0 | L109: 0 | M109: 0 | N109: 0 | O109: 0 | P109: 0 | Q109: 0 | R109: 0 | U109: =SUM(D109:R109) -> 0
A111: B. Consultants
B112: Consultant 1 | D112: 0 | E112: 0 | F112: 0 | G112: 0 | H112: 0 | I112: 0 | J112: 0 | K112: 0 | L112: 0 | M112: 0 | N112: 0 | O112: 0 | P112: 0 | Q112: 0 | R112: 0 | U112: 0
B113: Consultant 2 | D113: 0 | E113: 0 | F113: 0 | G113: 0 | H113: 0 | I113: 0 | J113: 0 | K113: 0 | L113: 0 | M113: 0 | N113: 0 | O113: 0 | P113: 0 | Q113: 0 | R113: 0 | U113: 0
B114: Total Consultants | D114: =SUM(D112:D113) -> 0 | E114: =SUM(E112:E113) -> 0 | F114: 0 | G114: 0 | H114: 0 | I114: 0 | J114: 0 | K114: 0 | L114: 0 | M114: 0 | N114: 0 | O114: 0 | P114: 0 | Q114: 0 | R114: 0 | U114: =SUM(D113:R113) -> 0
A116: C. Subcontracts
B117: Sub 1 | D117: 0 | E117: 0 | F117: 0 | G117: 0 | H117: 0 | I117: 0 | J117: 0 | K117: 0 | L117: 0 | M117: 0 | N117: 0 | O117: 0 | P117: 0 | Q117: 0 | R117: 0 | U117: =SUM(D117:R117) -> 0
B118: Sub 2 | D118: 0 | E118: 0 | F118: 0 | G118: 0 | H118: 0 | I118: 0 | J118: 0 | K118: 0 | L118: 0 | M118: 0 | N118: 0 | O118: 0 | P118: 0 | Q118: 0 | R118: 0 | U118: =SUM(D118:R118) -> 0
B119: Sub 3 | D119: 0 | E119: 0 | F119: 0 | G119: 0 | H119: 0 | I119: 0 | J119: 0 | K119: 0 | L119: 0 | M119: 0 | N119: 0 | O119: 0 | P119: 0 | Q119: 0 | R119: 0 | U119: 0
B120: Sub 4 | D120: 0 | E120: 0 | F120: 0 | G120: 0 | H120: 0 | I120: 0 | J120: 0 | K120: 0 | L120: 0 | M120: 0 | N120: 0 | O120: 0 | P120: 0 | Q120: 0 | R120: 0 | U120: 0
B121: Sub 5 | D121: 0 | E121: 0 | F121: 0 | G121: 0 | H121: 0 | I121: 0 | J121: 0 | K121: 0 | L121: 0 | M121: 0 | N121: 0 | O121: 0 | P121: 0 | Q121: 0 | R121: 0 | U121: =SUM(D121:R121) -> 0
B122: Total Subcontracts | D122: =SUM(D117:D121) -> 0 | E122: =SUM(E117:E121) -> 0 | F122: =SUM(F117:F121) -> 0 | G122: =SUM(G117:G121) -> 0 | H122: 0 | I122: 0 | J122: 0 | K122: 0 | L122: 0 | M122: 0 | N122: 0 | O122: 0 | P122: 0 | Q122: 0 | R122: 0 | U122: =SUM(D122:T122) -> 0
A124: D. Capital Equipment | D124: 0 | E124: 0 | F124: 0 | G124: 0 | H124: 0 | I124: 0 | J124: 0 | K124: 0 | L124: 0 | M124: 0 | N124: 0 | O124: 0 | P124: 0 | Q124: 0 | R124: 0 | U124: =SUM(D124:R124) -> 0
A126: E. Travel | W126: Per Diem Link
A127: For trips from College Station, TX to Washington, D.C. | W127: Meals are calculated at 75% first and last day of travel, for example: 1 trip x 1 person x 2 days @ $71, use formula: =1*1*2*(71*0.75), for a total of $106.50.
B128: Airfare: 1 trip x 2 people x $600/trip | D128: 0 | E128: 0 | F128: 0 | G128: 0 | H128: 0 | I128: 0 | J128: 0 | K128: 0 | L128: 0 | M128: 0 | N128: 0 | O128: 0 | P128: 0 | Q128: 0 | R128: 0 | U128: =SUM(D128:R128) -> 0
B129: Rental Car: 1 trip x 2 days/trip @ $65/day | D129: 0 | E129: 0 | F129: 0 | G129: 0 | H129: 0 | I129: 0 | J129: 0 | K129: 0 | L129: 0 | M129: 0 | N129: 0 | O129: 0 | P129: 0 | Q129: 0 | R129: 0 | U129: =SUM(D129:R129) -> 0
B130: Meals: 1 trip x 2 people x 2 days x $71/person/day | D130: 0 | E130: 0 | F130: 0 | G130: 0 | H130: 0 | I130: 0 | J130: 0 | K130: 0 | L130: 0 | M130: 0 | N130: 0 | O130: 0 | P130: 0 | Q130: 0 | R130: 0 | U130: =SUM(D130:R130) -> 0
B131: Lodging: 1 trip x 2 people x 1 night x $224/person/night | D131: 0 | E131: 0 | F131: 0 | G131: 0 | H131: 0 | I131: 0 | J131: 0 | K131: 0 | L131: 0 | M131: 0 | N131: 0 | O131: 0 | P131: 0 | Q131: 0 | R131: 0 | U131: =SUM(D131:R131) -> 0
A133: For trips from College Station, TX to Washington, D.C.
B134: Airfare: 1 trip x 2 people x $600/trip | D134: 0 | E134: 0 | F134: 0 | G134: 0 | H134: 0 | I134: 0 | J134: 0 | K134: 0 | L134: 0 | M134: 0 | N134: 0 | O134: 0 | P134: 0 | Q134: 0 | R134: 0 | U134: =SUM(D134:R134) -> 0
B135: Rental Car: 1 trip x 2 days/trip @ $65/day | D135: 0 | E135: 0 | F135: 0 | G135: 0 | H135: 0 | I135: 0 | J135: 0 | K135: 0 | L135: 0 | M135: 0 | N135: 0 | O135: 0 | P135: 0 | Q135: 0 | R135: 0 | U135: =SUM(D135:R135) -> 0
B136: Meals: 1 trip x 2 people x 2 days x $71/person/day | D136: 0 | E136: 0 | F136: 0 | G136: 0 | H136: 0 | I136: 0 | J136: 0 | K136: 0 | L136: 0 | M136: 0 | N136: 0 | O136: 0 | P136: 0 | Q136: 0 | R136: 0 | U136: =SUM(D136:R136) -> 0
B137: Lodging: 1 trip x 2 people x 1 night x $224/person/night | D137: 0 | E137: 0 | F137: 0 | G137: 0 | H137: 0 | I137: 0 | J137: 0 | K137: 0 | L137: 0 | M137: 0 | N137: 0 | O137: 0 | P137: 0 | Q137: 0 | R137: 0 | U137: =SUM(D137:R137) -> 0
A139: For trips from College Station, TX to Washington, D.C.
B140: Airfare: 1 trip x 2 people x $600/trip | D140: 0 | E140: 0 | F140: 0 | G140: 0 | H140: 0 | I140: 0 | J140: 0 | K140: 0 | L140: 0 | M140: 0 | N140: 0 | O140: 0 | P140: 0 | Q140: 0 | R140: 0 | U140: =SUM(D140:R140) -> 0
B141: Rental Car: 1 trip x 2 days/trip @ $65/day | D141: 0 | E141: 0 | F141: 0 | G141: 0 | H141: 0 | I141: 0 | J141: 0 | K141: 0 | L141: 0 | M141: 0 | N141: 0 | O141: 0 | P141: 0 | Q141: 0 | R141: 0 | U141: =SUM(D141:R141) -> 0
B142: Meals: 1 trip x 2 people x 2 days x $71/person/day | D142: 0 | E142: 0 | F142: 0 | G142: 0 | H142: 0 | I142: 0 | J142: 0 | K142: 0 | L142: 0 | M142: 0 | N142: 0 | O142: 0 | P142: 0 | Q142: 0 | R142: 0 | U142: =SUM(D142:R142) -> 0
B143: Lodging: 1 trip x 2 people x 1 night x $224/person/night | D143: 0 | E143: 0 | F143: 0 | G143: 0 | H143: 0 | I143: 0 | J143: 0 | K143: 0 | L143: 0 | M143: 0 | N143: 0 | O143: 0 | P143: 0 | Q143: 0 | R143: 0 | U143: =SUM(D143:R143) -> 0
A145: For trips from College Station, TX to Washington, D.C.
B146: Airfare: 1 trip x 2 people x $600/trip | D146: 0 | E146: 0 | F146: 0 | G146: 0 | H146: 0 | I146: 0 | J146: 0 | K146: 0 | L146: 0 | M146: 0 | N146: 0 | O146: 0 | P146: 0 | Q146: 0 | R146: 0 | U146: =SUM(D146:R146) -> 0
B147: Rental Car: 1 trip x 2 days/trip @ $65/day | D147: 0 | E147: 0 | F147: 0 | G147: 0 | H147: 0 | I147: 0 | J147: 0 | K147: 0 | L147: 0 | M147: 0 | N147: 0 | O147: 0 | P147: 0 | Q147: 0 | R147: 0 | U147: =SUM(D147:R147) -> 0
B148: Meals: 1 trip x 2 people x 2 days x $71/person/day | D148: 0 | E148: 0 | F148: 0 | G148: 0 | H148: 0 | I148: 0 | J148: 0 | K148: 0 | L148: 0 | M148: 0 | N148: 0 | O148: 0 | P148: 0 | Q148: 0 | R148: 0 | U148: =SUM(D148:R148) -> 0
B149: Lodging: 1 trip x 2 people x 1 night x $224/person/night | D149: 0 | E149: 0 | F149: 0 | G149: 0 | H149: 0 | I149: 0 | J149: 0 | K149: 0 | L149: 0 | M149: 0 | N149: 0 | O149: 0 | P149: 0 | Q149: 0 | R149: 0 | U149: =SUM(D149:R149) -> 0
B151: Total Travel | D151: =SUM(D128:D149) -> 0 | E151: 0 | F151: 0 | G151: 0 | H151: 0 | I151: 0 | J151: 0 | K151: 0 | L151: 0 | M151: 0 | N151: 0 | O151: 0 | P151: 0 | Q151: 0 | R151: 0 | U151: =SUM(D151:R151) -> 0
A153: F. Materials, Services, and Other Direct Costs | Y153: Current Service Center Rate Sheet
B154: 1. computer operations | D154: =ROUND(((D92-(D87+D90))/174)*225,0) -> 0 | E154: 0 | F154: 0 | G154: 0 | H154: 0 | I154: 0 | J154: 0 | K154: 0 | L154: 0 | M154: 0 | N154: 0 | O154: 0 | P154: 0 | Q154: 0 | R154: 0 | U154: =SUM(D154:R154) -> 0
B155: 2. tuition $390/hr | D155: 0 | E155: 0 | F155: 0 | G155: 0 | H155: 0 | I155: 0 | J155: 0 | K155: 0 | L155: 0 | M155: 0 | N155: 0 | O155: 0 | P155: 0 | Q155: 0 | R155: 0 | U155: 0
B156: 3. lab/research supplies | D156: 0 | E156: 0 | F156: 0 | G156: 0 | H156: 0 | I156: 0 | J156: 0 | K156: 0 | L156: 0 | M156: 0 | N156: 0 | O156: 0 | P156: 0 | Q156: 0 | R156: 0 | U156: 0
B157: 4. reproduction | D157: 0 | E157: 0 | F157: 0 | G157: 0 | H157: 0 | I157: 0 | J157: 0 | K157: 0 | L157: 0 | M157: 0 | N157: 0 | O157: 0 | P157: 0 | Q157: 0 | R157: 0 | U157: 0
B158: 5. shipping reports/materials | D158: 0 | E158: 0 | F158: 0 | G158: 0 | H158: 0 | I158: 0 | J158: 0 | K158: 0 | L158: 0 | M158: 0 | N158: 0 | O158: 0 | P158: 0 | Q158: 0 | R158: 0 | U158: 0
B159: 6. participant payments | D159: 0 | E159: 0 | F159: 0 | G159: 0 | H159: 0 | I159: 0 | J159: 0 | K159: 0 | L159: 0 | M159: 0 | N159: 0 | O159: 0 | P159: 0 | Q159: 0 | R159: 0 | U159: 0
B161: Total Materials and Services | D161: =SUM(D154:D159) -> 0 | E161: 0 | F161: 0 | G161: 0 | H161: 0 | I161: 0 | J161: 0 | K161: 0 | L161: 0 | M161: 0 | N161: 0 | O161: 0 | P161: 0 | Q161: 0 | R161: 0 | U161: =SUM(D161:R161) -> 0
A163: G. Administrative costs @ | C163: =#REF! -> 
B164: Modified total direct costs* | D164: =ROUND(D182*C163,0) ->  | E164: =ROUND(E182*C163,0) ->  | F164: =ROUND(F182*C163,0) ->  | G164: =ROUND(G182*C163,0) ->  | H164: =ROUND(H182*C163,0) ->  | I164: =ROUND(I182*C163,0) ->  | J164: =ROUND(J182*C163,0) ->  | K164: =ROUND(K182*C163,0) ->  | L164: =ROUND(L182*C163,0) ->  | M164: =ROUND(M182*C163,0) ->  | N164: =ROUND(N182*C163,0) ->  | O164: =ROUND(O182*C163,0) ->  | P164: =ROUND(P182*C163,0) ->  | Q164: =ROUND(Q182*C163,0) ->  | R164: =ROUND(R182*C163,0) ->  | U164: =SUM(D164:R164) -> 
A166: H. Total Cost
D167: =D180+D164 ->  | U167: =SUM(D167:R167) -> 
A170: BUDGET NOTES:
A172: All facilities and equipment necessary to accomplish the required work are available.
A173: The Texas A&M University System serves people of all ages, regardless of socioeconomic level, race, color, sex, religion, disability or national origin.
A174: A. Clerical salaries are directly charged as the support required is significantly greater than the routine level of services provided by academic departments.
A175: E. Travel M&IE is calculated at 75% on the first and last days of travel.
A176: F1. Computer equipment usage fee and network support services is an established rate and is not charged indirect.
A177: G. Excludes C each part above $25,000, D, F1 - F2.
C180: TDC | D180: =D109+D114+D122+D124+D161+D151 -> 0 | E180: 0 | F180: 0 | G180: 0 | H180: 0 | I180: 0 | J180: 0 | K180: 0 | L180: 0 | M180: 0 | N180: 0 | O180: 0 | P180: 0 | Q180: 0 | R180: 0 | U180: =SUM(D180:R180) -> 0
B182: MTDC w/subs | C182: MTDC | D182: =ROUND(D109+D114+D161-D154-D155+D151+D189,0) -> 0 | E182: 0 | F182: 0 | G182: 0 | H182: 0 | I182: 0 | J182: 0 | K182: 0 | L182: 0 | M182: 0 | N182: 0 | O182: 0 | P182: 0 | Q182: 0 | R182: 0 | U182: =SUM(D182:R182) -> 0
C184: Sub 1 | D184: =IF(D117>25000,25000,D117) -> 0 | E184: =IF(D117+E117>25000,(25000-D184),E117) -> 0 | F184: =IF(D117+E117+F117>25000,(25000-(D184+E184)),F117) -> 0 | G184: =IF(D117+E117+F117+G117>25000,(25000-(D184+E184+F184)),G117) -> 0 | H184: =IF(D117+E117+F117+G117+H117>25000,(25000-(D184+E184+F184+G184)),H117) -> 0 | I184: =IF(D117+E117+F117+G117+H117+I117>25000,(25000-(D184+E184+F184+G184+H184)),I117) -> 0 | J184: =IF(D117+E117+F117+G117+H117+I117+J117>25000,(25000-(D184+E184+F184+G184+H184+I184)),J117) -> 0 | K184: =IF(D117+E117+F117+G117+H117+I117+J117+K117>25000,(25000-(D184+E184+F184+G184+H184+I184+J184)),K117) -> 0 | L184: =IF(D117+E117+F117+G117+H117+I117+J117+K117+L117>25000,(25000-(D184+E184+F184+G184+H184+I184+J184+K184)),L117) -> 0 | M184: =IF(D117+E117+F117+G117+H117+I117+J117+K117+L117+M117>25000,(25000-(D184+E184+F184+G184+H184+I184+J184+K184+L184)),M117) -> 0 | N184: =IF(D117+E117+F117+G117+H117+I117+J117+K117+L117+M117+N117>25000,(25000-(D184+E184+F184+G184+H184+I184+J184+K184+L184+M184)),N117) -> 0 | O184: =IF(D117+E117+F117+G117+H117+I117+J117+K117+L117+M117+N117+O117>25000,(25000-(D184+E184+F184+G184+H184+I184+J184+K184+L184+M184+N184)),O117) -> 0 | P184: =IF(D117+E117+F117+G117+H117+I117+J117+K117+L117+M117+N117+O117+P117>25000,(25000-(D184+E184+F184+G184+H184+I184+J184+K184+L184+M184+N184+O184)),P117) -> 0 | Q184: =IF(D117+E117+F117+G117+H117+I117+J117+K117+L117+M117+N117+O117+P117+Q117>25000,(25000-(D184+E184+F184+G184+H184+I184+J184+K184+L184+M184+N184+O184+P184)),Q117) -> 0 | R184: =IF(D117+E117+F117+G117+H117+I117+J117+K117+L117+M117+N117+O117+P117+Q117+R117>25000,(25000-(D184+E184+F184+G184+H184+I184+J184+K184+L184+M184+N184+O184+P184+Q184)),R117) -> 0
C185: Sub 2 | D185: =IF(D118>25000,25000,D118) -> 0 | E185: =IF(D118+E118>25000,(25000-D185),E118) -> 0 | F185: =IF(D118+E118+F118>25000,(25000-(D185+E185)),F118) -> 0 | G185: =IF(D118+E118+F118+G118>25000,(25000-(D185+E185+F185)),G118) -> 0 | H185: =IF(D118+E118+F118+G118+H118>25000,(25000-(D185+E185+F185+G185)),H118) -> 0 | I185: =IF(D118+E118+F118+G118+H118+I118>25000,(25000-(D185+E185+F185+G185+H185)),I118) -> 0 | J185: =IF(D118+E118+F118+G118+H118+I118+J118>25000,(25000-(D185+E185+F185+G185+H185+I185)),J118) -> 0 | K185: =IF(D118+E118+F118+G118+H118+I118+J118+K118>25000,(25000-(D185+E185+F185+G185+H185+I185+J185)),K118) -> 0 | L185: =IF(D118+E118+F118+G118+H118+I118+J118+K118+L118>25000,(25000-(D185+E185+F185+G185+H185+I185+J185+K185)),L118) -> 0 | M185: =IF(D118+E118+F118+G118+H118+I118+J118+K118+L118+M118>25000,(25000-(D185+E185+F185+G185+H185+I185+J185+K185+L185)),M118) -> 0 | N185: =IF(D118+E118+F118+G118+H118+I118+J118+K118+L118+M118+N118>25000,(25000-(D185+E185+F185+G185+H185+I185+J185+K185+L185+M185)),N118) -> 0 | O185: =IF(D118+E118+F118+G118+H118+I118+J118+K118+L118+M118+N118+O118>25000,(25000-(D185+E185+F185+G185+H185+I185+J185+K185+L185+M185+N185)),O118) -> 0 | P185: =IF(D118+E118+F118+G118+H118+I118+J118+K118+L118+M118+N118+O118+P118>25000,(25000-(D185+E185+F185+G185+H185+I185+J185+K185+L185+M185+N185+O185)),P118) -> 0 | Q185: =IF(D118+E118+F118+G118+H118+I118+J118+K118+L118+M118+N118+O118+P118+Q118>25000,(25000-(D185+E185+F185+G185+H185+I185+J185+K185+L185+M185+N185+O185+P185)),Q118) -> 0 | R185: =IF(D118+E118+F118+G118+H118+I118+J118+K118+L118+M118+N118+O118+P118+Q118+R118>25000,(25000-(D185+E185+F185+G185+H185+I185+J185+K185+L185+M185+N185+O185+P185+Q185)),R118) -> 0
C186: Sub 3 | D186: =IF(D119>25000,25000,D119) -> 0 | E186: =IF(D119+E119>25000,(25000-D186),E119) -> 0 | F186: =IF(D119+E119+F119>25000,(25000-(D186+E186)),F119) -> 0 | G186: =IF(D119+E119+F119+G119>25000,(25000-(D186+E186+F186)),G119) -> 0 | H186: =IF(D119+E119+F119+G119+H119>25000,(25000-(D186+E186+F186+G186)),H119) -> 0 | I186: =IF(D119+E119+F119+G119+H119+I119>25000,(25000-(D186+E186+F186+G186+H186)),I119) -> 0 | J186: =IF(D119+E119+F119+G119+H119+I119+J119>25000,(25000-(D186+E186+F186+G186+H186+I186)),J119) -> 0 | K186: =IF(D119+E119+F119+G119+H119+I119+J119+K119>25000,(25000-(D186+E186+F186+G186+H186+I186+J186)),K119) -> 0 | L186: =IF(D119+E119+F119+G119+H119+I119+J119+K119+L119>25000,(25000-(D186+E186+F186+G186+H186+I186+J186+K186)),L119) -> 0 | M186: =IF(D119+E119+F119+G119+H119+I119+J119+K119+L119+M119>25000,(25000-(D186+E186+F186+G186+H186+I186+J186+K186+L186)),M119) -> 0 | N186: =IF(D119+E119+F119+G119+H119+I119+J119+K119+L119+M119+N119>25000,(25000-(D186+E186+F186+G186+H186+I186+J186+K186+L186+M186)),N119) -> 0 | O186: =IF(D119+E119+F119+G119+H119+I119+J119+K119+L119+M119+N119+O119>25000,(25000-(D186+E186+F186+G186+H186+I186+J186+K186+L186+M186+N186)),O119) -> 0 | P186: =IF(D119+E119+F119+G119+H119+I119+J119+K119+L119+M119+N119+O119+P119>25000,(25000-(D186+E186+F186+G186+H186+I186+J186+K186+L186+M186+N186+O186)),P119) -> 0 | Q186: =IF(D119+E119+F119+G119+H119+I119+J119+K119+L119+M119+N119+O119+P119+Q119>25000,(25000-(D186+E186+F186+G186+H186+I186+J186+K186+L186+M186+N186+O186+P186)),Q119) -> 0 | R186: =IF(D119+E119+F119+G119+H119+I119+J119+K119+L119+M119+N119+O119+P119+Q119+R119>25000,(25000-(D186+E186+F186+G186+H186+I186+J186+K186+L186+M186+N186+O186+P186+Q186)),R119) -> 0
C187: Sub 4 | D187: =IF(D120>25000,25000,D120) -> 0 | E187: =IF(D120+E120>25000,(25000-D187),E120) -> 0 | F187: =IF(D120+E120+F120>25000,(25000-(D187+E187)),F120) -> 0 | G187: =IF(D120+E120+F120+G120>25000,(25000-(D187+E187+F187)),G120) -> 0 | H187: =IF(D120+E120+F120+G120+H120>25000,(25000-(D187+E187+F187+G187)),H120) -> 0 | I187: =IF(D120+E120+F120+G120+H120+I120>25000,(25000-(D187+E187+F187+G187+H187)),I120) -> 0 | J187: =IF(D120+E120+F120+G120+H120+I120+J120>25000,(25000-(D187+E187+F187+G187+H187+I187)),J120) -> 0 | K187: =IF(D120+E120+F120+G120+H120+I120+J120+K120>25000,(25000-(D187+E187+F187+G187+H187+I187+J187)),K120) -> 0 | L187: =IF(D120+E120+F120+G120+H120+I120+J120+K120+L120>25000,(25000-(D187+E187+F187+G187+H187+I187+J187+K187)),L120) -> 0 | M187: =IF(D120+E120+F120+G120+H120+I120+J120+K120+L120+M120>25000,(25000-(D187+E187+F187+G187+H187+I187+J187+K187+L187)),M120) -> 0 | N187: =IF(D120+E120+F120+G120+H120+I120+J120+K120+L120+M120+N120>25000,(25000-(D187+E187+F187+G187+H187+I187+J187+K187+L187+M187)),N120) -> 0 | O187: =IF(D120+E120+F120+G120+H120+I120+J120+K120+L120+M120+N120+O120>25000,(25000-(D187+E187+F187+G187+H187+I187+J187+K187+L187+M187+N187)),O120) -> 0 | P187: =IF(D120+E120+F120+G120+H120+I120+J120+K120+L120+M120+N120+O120+P120>25000,(25000-(D187+E187+F187+G187+H187+I187+J187+K187+L187+M187+N187+O187)),P120) -> 0 | Q187: =IF(D120+E120+F120+G120+H120+I120+J120+K120+L120+M120+N120+O120+P120+Q120>25000,(25000-(D187+E187+F187+G187+H187+I187+J187+K187+L187+M187+N187+O187+P187)),Q120) -> 0 | R187: =IF(D120+E120+F120+G120+H120+I120+J120+K120+L120+M120+N120+O120+P120+Q120+R120>25000,(25000-(D187+E187+F187+G187+H187+I187+J187+K187+L187+M187+N187+O187+P187+Q187)),R120) -> 0
C188: Sub 5 | D188: =IF(D121>25000,25000,D121) -> 0 | E188: =IF(D121+E121>25000,(25000-D188),E121) -> 0 | F188: =IF(D121+E121+F121>25000,(25000-(D188+E188)),F121) -> 0 | G188: =IF(D121+E121+F121+G121>25000,(25000-(D188+E188+F188)),G121) -> 0 | H188: =IF(D121+E121+F121+G121+H121>25000,(25000-(D188+E188+F188+G188)),H121) -> 0 | I188: =IF(D121+E121+F121+G121+H121+I121>25000,(25000-(D188+E188+F188+G188+H188)),I121) -> 0 | J188: =IF(D121+E121+F121+G121+H121+I121+J121>25000,(25000-(D188+E188+F188+G188+H188+I188)),J121) -> 0 | K188: =IF(D121+E121+F121+G121+H121+I121+J121+K121>25000,(25000-(D188+E188+F188+G188+H188+I188+J188)),K121) -> 0 | L188: =IF(D121+E121+F121+G121+H121+I121+J121+K121+L121>25000,(25000-(D188+E188+F188+G188+H188+I188+J188+K188)),L121) -> 0 | M188: =IF(D121+E121+F121+G121+H121+I121+J121+K121+L121+M121>25000,(25000-(D188+E188+F188+G188+H188+I188+J188+K188+L188)),M121) -> 0 | N188: =IF(D121+E121+F121+G121+H121+I121+J121+K121+L121+M121+N121>25000,(25000-(D188+E188+F188+G188+H188+I188+J188+K188+L188+M188)),N121) -> 0 | O188: =IF(D121+E121+F121+G121+H121+I121+J121+K121+L121+M121+N121+O121>25000,(25000-(D188+E188+F188+G188+H188+I188+J188+K188+L188+M188+N188)),O121) -> 0 | P188: =IF(D121+E121+F121+G121+H121+I121+J121+K121+L121+M121+N121+O121+P121>25000,(25000-(D188+E188+F188+G188+H188+I188+J188+K188+L188+M188+N188+O188)),P121) -> 0 | Q188: =IF(D121+E121+F121+G121+H121+I121+J121+K121+L121+M121+N121+O121+P121+Q121>25000,(25000-(D188+E188+F188+G188+H188+I188+J188+K188+L188+M188+N188+O188+P188)),Q121) -> 0 | R188: =IF(D121+E121+F121+G121+H121+I121+J121+K121+L121+M121+N121+O121+P121+Q121+R121>25000,(25000-(D188+E188+F188+G188+H188+I188+J188+K188+L188+M188+N188+O188+P188+Q188)),R121) -> 0
C189: Total | D189: =SUM(D184:D188) -> 0 | E189: =SUM(E184:E188) -> 0 | F189: 0 | G189: 0 | H189: 0 | I189: 0 | J189: 0 | K189: 0 | L189: 0 | M189: 0 | N189: 0 | O189: 0 | P189: 0 | Q189: 0 | R189: 0 | S189: =SUM(D189:R189) -> 0

Sheet budg-CRP format (hidden)
C1: NOTE TO RESEARCHERS: Make changes only to the areas shaded green. The other areas contain
C2: formulas that calculate based on the green areas.
C3: professional esc:
D4: Sept.1, 16 - 08/31/17 | H4: 12 | I4: =H4*1 -> 12
D5: Sept.1, 17 - 08/31/18 | H5: 0 | I5: =H5*1.03 -> 0
D6: Sept.1, 18 - 08/31/19 | H6: 0 | I6: =H6*1.03*1.03 -> 0
D7: Sept.1, 19 - 08/31/20 | H7: 0 | I7: =H7*1.03*1.03*1.03 -> 0
D8: Sept.1, 20 - 08/31/21 | H8: 0 | I8: =H8*1.03*1.03*1.03*1.03 -> 0
D9: Sept.1, 21 - 08/31/22 | H9: 0 | I9: =H9*1.03*1.03*1.03*1.03*1.03 -> 0
D10: Total months | H10: =SUM(H4:H9) -> 12 | I10: =SUM(I4:I9) -> 12
D11: Ave pro esc | I11: =(I10/H10)-1 -> 0
C13: To calculate esc. on a task basis, get the ave esc for the task by going up to the esc table.
C14: Enter the months the task runs. If the task runs 4 months in year 3 and 8 months in year 4
C15: enter 0 for year 1, 0 for year 2, 4 in year 3, and 8 in year 4.
C17: Copy down the ave esc rate & plug it in d54 & etc.
D19: ESTIMATED BUDGET
D20: TEXAS A&M TRANSPORTATION INSTITUTE
D21: =#REF! -> 
D22: =#REF! ->  | AG22: =(#REF!&" " &#REF!) -> 
D23: Performance Period: | E23: =#REF! ->  | F23: to | G23: =#REF! ->  | AG23: =(#REF!&" " &#REF!) -> 
G24: Task 1 | I24: Task 2 | K24: Task 3 | M24: Task 4 | O24: Task 5 | Q24: Task 6 | S24: Task 7 | U24: Task 8 | W24: Task 9 | Y24: Task 10 | AA24: Task 11 | AC24: Task 12 | AE24: Total
D25: A. Salaries and Wages
A26: Insert Hourly Rate Here | B26: Escalation | D26: Name | E26: Role in Study | F26: Direct Hourly Rate | G26: Hours | H26: Cost | I26: Hours | J26: Cost | K26: Hours | L26: Cost | M26: Hours | N26: Cost | O26: Hours | P26: Cost | Q26: Hours | R26: Cost | S26: Hours | T26: Cost | U26: Hours | V26: Cost | W26: Hours | X26: Cost | Y26: Hours | Z26: Cost | AA26: Hours | AB26: Cost | AC26: Hours | AD26: Cost | AE26: Hours | AF26: Percent of Effort | AG26: Cost | AJ26: 12
B27: =ROUND(A$27*$I$11,2) -> 0 | D27: name 1 | F27: =SUM(A27+B27) -> 0 | H27: =ROUND(F27*G27,0) -> 0 | J27: =ROUND(F27*I27,0) -> 0 | L27: =ROUND(F27*K27,0) -> 0 | N27: =ROUND(F27*M27,0) -> 0 | P27: =ROUND(F27*O27,0) -> 0 | R27: =ROUND(F27*Q27,0) -> 0 | T27: =ROUND(F27*S27,0) -> 0 | V27: =ROUND(F27*U27,0) -> 0 | X27: =ROUND(F27*W27,0) -> 0 | Z27: =ROUND(F27*Y27,0) -> 0 | AB27: =ROUND(F27*AA27,0) -> 0 | AC27: 0 | AD27: =ROUND(F27*AC27,0) -> 0 | AE27: =SUM(G27+I27+K27+M27+O27+Q27+S27+U27+W27+Y27+AA27+AC27) -> 0 | AF27: =ROUND(AE27/(H10*174),4) -> 0 | AG27: =H27+J27+L27+N27+P27+R27+T27+V27+X27+Z27+AB27+AD27 -> 0
B28: =ROUND(A$28*$I$11,2) -> 0 | D28: name 2 | F28: 0 | H28: 0 | J28: 0 | L28: 0 | N28: 0 | P28: 0 | R28: 0 | T28: 0 | V28: 0 | X28: 0 | Z28: 0 | AB28: 0 | AC28: 0 | AD28: 0 | AE28: =SUM(G28+I28+K28+M28+O28+Q28+S28+U28+W28+Y28+AA28+AC28) -> 0 | AF28: =ROUND(AE28/(H10*174),4) -> 0 | AG28: =H28+J28+L28+N28+P28+R28+T28+V28+X28+Z28+AB28+AD28 -> 0
B29: =ROUND(A$29*$I$11,2) -> 0 | D29: name 3 | F29: 0 | H29: 0 | J29: 0 | L29: 0 | N29: 0 | P29: 0 | R29: 0 | T29: 0 | V29: 0 | X29: 0 | Z29: 0 | AB29: 0 | AC29: 0 | AD29: 0 | AE29: =SUM(G29+I29+K29+M29+O29+Q29+S29+U29+W29+Y29+AA29+AC29) -> 0 | AF29: =ROUND(AE29/(H10*174),4) -> 0 | AG29: 0
B30: =ROUND(A$30*$I$11,2) -> 0 | D30: name 4 | F30: 0 | H30: 0 | J30: 0 | L30: 0 | N30: 0 | P30: 0 | R30: 0 | T30: 0 | V30: 0 | X30: 0 | Z30: 0 | AB30: 0 | AC30: 0 | AD30: 0 | AE30: 0 | AF30: =ROUND(AE30/(H10*174),4) -> 0 | AG30: 0
B31: =ROUND(A$31*$I$11,2) -> 0 | D31: name 5 | F31: 0 | H31: 0 | J31: 0 | L31: 0 | N31: 0 | P31: 0 | R31: 0 | T31: 0 | V31: 0 | X31: 0 | Z31: 0 | AB31: 0 | AC31: 0 | AD31: 0 | AE31: 0 | AF31: =ROUND(AE31/(H10*174),4) -> 0 | AG31: 0
B32: =ROUND(A$32*$I$11,2) -> 0 | D32: name 6 | F32: 0 | H32: 0 | J32: 0 | L32: 0 | N32: 0 | P32: 0 | R32: 0 | T32: 0 | V32: 0 | X32: 0 | Z32: 0 | AB32: 0 | AC32: 0 | AD32: 0 | AE32: 0 | AF32: =ROUND(AE32/(H10*174),4) -> 0 | AG32: 0
B33: =ROUND(A$33*$I$11,2) -> 0 | D33: name 7 | F33: 0 | H33: 0 | J33: 0 | L33: 0 | N33: 0 | P33: 0 | R33: 0 | T33: 0 | V33: 0 | X33: 0 | Z33: 0 | AB33: 0 | AC33: 0 | AD33: 0 | AE33: 0 | AF33: =ROUND(AE33/(H10*174),4) -> 0 | AG33: 0
B34: =ROUND(A$34*$I$11,2) -> 0 | D34: name 8 | F34: 0 | H34: 0 | J34: 0 | L34: 0 | N34: 0 | P34: 0 | R34: 0 | T34: 0 | V34: 0 | X34: 0 | Z34: 0 | AB34: 0 | AC34: 0 | AD34: 0 | AE34: 0 | AF34: =ROUND(AE34/(H10*174),4) -> 0 | AG34: 0
B35: =ROUND(A$35*$I$11,2) -> 0 | D35: name 9 | F35: 0 | H35: 0 | J35: 0 | L35: 0 | N35: 0 | P35: 0 | R35: 0 | T35: 0 | V35: 0 | X35: 0 | Z35: 0 | AB35: 0 | AC35: 0 | AD35: 0 | AE35: 0 | AF35: =ROUND(AE35/(H10*174),4) -> 0 | AG35: 0
B36: =ROUND(A$36*$I$11,2) -> 0 | D36: name 10 | F36: 0 | H36: 0 | J36: 0 | L36: 0 | N36: 0 | P36: 0 | R36: 0 | T36: 0 | V36: 0 | X36: 0 | Z36: 0 | AB36: 0 | AC36: 0 | AD36: 0 | AE36: 0 | AF36: =ROUND(AE36/(H10*174),4) -> 0 | AG36: 0
B37: =ROUND(A$37*$I$11,2) -> 0 | D37: name 11 | F37: 0 | H37: 0 | J37: 0 | L37: 0 | N37: 0 | P37: 0 | R37: 0 | T37: 0 | V37: 0 | X37: 0 | Z37: 0 | AB37: 0 | AC37: 0 | AD37: 0 | AE37: 0 | AF37: =ROUND(AE37/(H10*174),4) -> 0 | AG37: 0 | AI37: * All Materials proposals must included
B38: =ROUND(A$38*$I$11,2) -> 0 | D38: name 12 | F38: 0 | H38: 0 | J38: 0 | L38: 0 | N38: 0 | P38: 0 | R38: 0 | T38: 0 | V38: 0 | X38: 0 | Z38: 0 | AB38: 0 | AC38: 0 | AD38: 0 | AE38: 0 | AF38: =ROUND(AE38/(H10*174),4) -> 0 | AG38: 0 | AI38: clerical. Materials PIs must contact Dave
B39: =ROUND(A$39*$I$11,2) -> 0 | D39: name 13 | F39: 0 | H39: 0 | J39: 0 | L39: 0 | N39: 0 | P39: 0 | R39: 0 | T39: 0 | V39: 0 | X39: 0 | Z39: 0 | AB39: 0 | AC39: 0 | AD39: 0 | AE39: 0 | AF39: =ROUND(AE39/(H10*174),4) -> 0 | AG39: 0 | AI39: Newcomb if clerical is not budgeted.
B40: =ROUND(A$40*$I$11,2) -> 0 | D40: name 14 | F40: 0 | H40: 0 | J40: 0 | L40: 0 | N40: 0 | P40: 0 | R40: 0 | T40: 0 | V40: 0 | X40: 0 | Z40: 0 | AB40: 0 | AC40: 0 | AD40: 0 | AE40: 0 | AF40: =ROUND(AE40/(H10*174),4) -> 0 | AG40: 0
B41: =ROUND(A$41*$I$11,2) -> 0 | D41: name 15 | F41: 0 | H41: 0 | J41: 0 | L41: 0 | N41: 0 | P41: 0 | R41: 0 | T41: 0 | V41: 0 | X41: 0 | Z41: 0 | AB41: 0 | AC41: 0 | AD41: 0 | AE41: 0 | AF41: =ROUND(AE41/(H10*174),4) -> 0 | AG41: 0
B42: =ROUND(A$42*$I$11,2) -> 0 | D42: name 16 | F42: 0 | H42: 0 | J42: 0 | L42: 0 | N42: 0 | P42: 0 | R42: 0 | T42: 0 | V42: 0 | X42: 0 | Z42: 0 | AB42: 0 | AC42: 0 | AD42: 0 | AE42: 0 | AF42: =ROUND(AE42/(H10*174),4) -> 0 | AG42: 0
B43: =ROUND(A$43*$I$11,2) -> 0 | D43: name 17 | F43: 0 | H43: 0 | J43: 0 | L43: 0 | N43: 0 | P43: 0 | R43: 0 | T43: 0 | V43: 0 | X43: 0 | Z43: 0 | AB43: 0 | AC43: 0 | AD43: 0 | AE43: 0 | AF43: =ROUND(AE43/(H10*174),4) -> 0 | AG43: 0
B44: =ROUND(A$44*$I$11,2) -> 0 | D44: name 18 | F44: 0 | H44: 0 | J44: 0 | L44: 0 | N44: 0 | P44: 0 | R44: 0 | T44: 0 | V44: 0 | X44: 0 | Z44: 0 | AB44: 0 | AC44: 0 | AD44: 0 | AE44: 0 | AF44: =ROUND(AE44/(H10*174),4) -> 0 | AG44: 0 | AJ44: no tuition rate/hour | AL44: tuition rate/hour
B45: =ROUND(A$45*$I$11,2) -> 0 | D45: name 19 | F45: 0 | H45: 0 | J45: 0 | L45: 0 | N45: 0 | P45: 0 | R45: 0 | T45: 0 | V45: 0 | X45: 0 | Z45: 0 | AB45: 0 | AC45: 0 | AD45: 0 | AE45: 0 | AF45: =ROUND(AE45/(H10*174),4) -> 0 | AG45: 0
B46: =ROUND(A$46*$I$11,2) -> 0 | D46: name 20 | F46: 0 | H46: 0 | J46: 0 | L46: 0 | N46: 0 | P46: 0 | R46: 0 | T46: 0 | V46: 0 | X46: 0 | Z46: 0 | AB46: 0 | AC46: 0 | AD46: 0 | AE46: 0 | AF46: =ROUND(AE46/(H10*174),4) -> 0 | AG46: 0 | AI46: PhD | AJ46: 24.25 | AL46: 18.39
B47: =ROUND(A$47*$I$11,2) -> 0 | D47: Ph.D. Graduate Student | F47: 0 | H47: 0 | J47: 0 | L47: 0 | N47: 0 | P47: 0 | R47: 0 | T47: 0 | V47: 0 | X47: 0 | Z47: 0 | AB47: 0 | AC47: 0 | AD47: 0 | AE47: 0 | AF47: =ROUND(AE47/(H10*87),4) -> 0 | AG47: 0 | AI47: MS | AJ47: 23.1 | AL47: 17.24
B48: =ROUND(A$48*$I$11,2) -> 0 | D48: Masters Graduate Student | F48: 0 | H48: 0 | J48: 0 | L48: 0 | N48: 0 | P48: 0 | R48: 0 | T48: 0 | V48: 0 | X48: 0 | Z48: 0 | AB48: 0 | AC48: 0 | AD48: 0 | AE48: 0 | AF48: =ROUND(AE48/(H10*87),4) -> 0 | AG48: 0 | AI48: ME | AJ48: 21.95 | AL48: 16.09
B49: 0 | D49: Undergraduate Student | F49: 0 | H49: 0 | J49: 0 | L49: 0 | N49: 0 | P49: 0 | R49: 0 | T49: 0 | V49: 0 | X49: 0 | Z49: 0 | AB49: 0 | AC49: 0 | AD49: 0 | AE49: =SUM(G49+I49+K49+M49+O49+Q49+S49+U49+W49+Y49+AA49+AC49) -> 0 | AF49: =ROUND(AE49/(H10*87),4) -> 0 | AG49: =H49+J49+L49+N49+P49+R49+T49+V49+X49+Z49+AB49+AD49 -> 0
D50: Subtotal | G50: =SUM(G27:G49) -> 0 | H50: 0 | I50: 0 | J50: 0 | K50: 0 | L50: 0 | M50: 0 | N50: 0 | O50: 0 | P50: 0 | Q50: 0 | R50: 0 | S50: 0 | T50: 0 | U50: 0 | V50: 0 | W50: 0 | X50: 0 | Y50: 0 | Z50: 0 | AA50: 0 | AB50: 0 | AC50: 0 | AD50: 0 | AE50: 0 | AG50: =H50+J50+L50+N50+P50+R50+T50+V50+X50+Z50+AB50+AD50 -> 0
D52: B. Borrowed Personnel
D53: Entity Name 1 | H53: 0 | J53: 0 | L53: 0 | N53: 0 | P53: 0 | R53: 0 | T53: 0 | V53: 0 | X53: 0 | Z53: 0 | AB53: 0 | AD53: 0 | AE53: =SUM(G53+I53+K53+M53+O53+Q53+S53+U53+W53+Y53+AA53+AC53) -> 0 | AG53: =SUM(H53:AD53) -> 0
D54: Subtotal | H54: =H53 -> 0 | J54: =J53 -> 0 | L54: =L53 -> 0 | N54: =N53 -> 0 | P54: =P53 -> 0 | R54: =R53 -> 0 | T54: =T53 -> 0 | V54: =V53 -> 0 | X54: =X53 -> 0 | Z54: =Z53 -> 0 | AB54: =AB53 -> 0 | AD54: =AD53 -> 0 | AG54: =SUM(H54:AD54) -> 0
D56: C. Consultants
D57: Entity Name 1 | H57: 0 | J57: 0 | L57: 0 | N57: 0 | P57: 0 | R57: 0 | T57: 0 | V57: 0 | X57: 0 | Z57: 0 | AB57: 0 | AD57: 0 | AE57: =SUM(G57+I57+K57+M57+O57+Q57+S57+U57+W57+Y57+AA57+AC57) -> 0 | AG57: =SUM(H57:AD57) -> 0
D58: Entity Name 2 | H58: 0 | J58: 0 | L58: 0 | N58: 0 | P58: 0 | R58: 0 | T58: 0 | V58: 0 | X58: 0 | Z58: 0 | AB58: 0 | AD58: 0 | AE58: =SUM(G58+I58+K58+M58+O58+Q58+S58+U58+W58+Y58+AA58+AC58) -> 0 | AG58: =SUM(H58:AD58) -> 0
D59: Subtotal | H59: =SUM(H57:H58) -> 0 | J59: =SUM(J57:J58) -> 0 | L59: =SUM(L57:L58) -> 0 | N59: =SUM(N57:N58) -> 0 | P59: =SUM(P57:P58) -> 0 | R59: =SUM(R57:R58) -> 0 | T59: =SUM(T57:T58) -> 0 | V59: =SUM(V57:V58) -> 0 | X59: =SUM(X57:X58) -> 0 | Z59: =SUM(Z57:Z58) -> 0 | AB59: =SUM(AB57:AB58) -> 0 | AD59: =SUM(AD57:AD58) -> 0 | AG59: =SUM(H59:AD59) -> 0
D61: D. Subcontracts
D62: Entity Name 1 | H62: 0 | J62: 0 | L62: 0 | N62: 0 | P62: 0 | R62: 0 | T62: 0 | V62: 0 | X62: 0 | Z62: 0 | AB62: 0 | AD62: 0 | AE62: =SUM(G62+I62+K62+M62+O62+Q62+S62+U62+W62+Y62+AA62+AC62) -> 0 | AG62: =SUM(H62:AD62) -> 0
D63: Entity Name 2 | H63: 0 | J63: 0 | L63: 0 | N63: 0 | P63: 0 | R63: 0 | T63: 0 | V63: 0 | X63: 0 | Z63: 0 | AB63: 0 | AD63: 0 | AE63: =SUM(G63+I63+K63+M63+O63+Q63+S63+U63+W63+Y63+AA63+AC63) -> 0 | AG63: =SUM(H63:AD63) -> 0
D64: Entity Name 3 | H64: 0 | J64: 0 | L64: 0 | N64: 0 | P64: 0 | R64: 0 | T64: 0 | V64: 0 | X64: 0 | Z64: 0 | AB64: 0 | AD64: 0 | AE64: =SUM(G64+I64+K64+M64+O64+Q64+S64+U64+W64+Y64+AA64+AC64) -> 0 | AG64: 0
D65: Entity Name 4 | H65: 0 | J65: 0 | L65: 0 | N65: 0 | P65: 0 | R65: 0 | T65: 0 | V65: 0 | X65: 0 | Z65: 0 | AB65: 0 | AD65: 0 | AE65: 0 | AG65: 0
D66: Entity Name 5 | H66: 0 | J66: 0 | L66: 0 | N66: 0 | P66: 0 | R66: 0 | T66: 0 | V66: 0 | X66: 0 | Z66: 0 | AB66: 0 | AD66: 0 | AE66: =SUM(G66+I66+K66+M66+O66+Q66+S66+U66+W66+Y66+AA66+AC66) -> 0 | AG66: =SUM(H66:AD66) -> 0 | AJ66: from the NCHRP guidelines
D67: Subtotal | H67: =SUM(H62:H66) -> 0 | J67: =SUM(J62:J66) -> 0 | L67: =SUM(L62:L66) -> 0 | N67: =SUM(N62:N66) -> 0 | P67: =SUM(P62:P66) -> 0 | R67: =SUM(R62:R66) -> 0 | T67: =SUM(T62:T66) -> 0 | V67: =SUM(V62:V66) -> 0 | X67: =SUM(X62:X66) -> 0 | Z67: =SUM(Z62:Z66) -> 0 | AB67: =SUM(AB62:AB66) -> 0 | AD67: =SUM(AD62:AD66) -> 0 | AG67: =SUM(H67:AD67) -> 0 | AJ67: Final reports are required for all projects, and agencies must budget for one trip of the PI to the NCHRP offices to complete the understanding of what is required in the preparation and editing of such documents.
AJ68: Twenty (20) preliminary draft copies of the project final report are due in the NCHRP not later than 90 days prior to the contract expiration date. This preliminary draft is reviewed by the cognizant panel and staff, and review comments are transmitted to
D69: E. Capital Equipment | AJ69: The PI then prepares a final draft report that incorporates the reviewers’ comments and reflects editing by a competent technical editor to ensure compliance with the CRP requirements for style and organization of reports as detailed in the brochure entit
D70: Item 1 | H70: 0 | J70: 0 | L70: 0 | N70: 0 | P70: 0 | R70: 0 | T70: 0 | V70: 0 | X70: 0 | Z70: 0 | AB70: 0 | AD70: 0 | AG70: =SUM(H70:AD70) -> 0
D71: Item 2 | H71: 0 | J71: 0 | L71: 0 | N71: 0 | P71: 0 | R71: 0 | T71: 0 | V71: 0 | X71: 0 | Z71: 0 | AB71: 0 | AD71: 0 | AG71: =SUM(H71:AD71) -> 0
D72: Subtotal | H72: =SUM(H70:H71) -> 0 | J72: =SUM(J70:J71) -> 0 | L72: =SUM(L70:L71) -> 0 | N72: =SUM(N70:N71) -> 0 | P72: =SUM(P70:P71) -> 0 | R72: =SUM(R70:R71) -> 0 | T72: =SUM(T70:T71) -> 0 | V72: =SUM(V70:V71) -> 0 | X72: =SUM(X70:X71) -> 0 | Z72: =SUM(Z70:Z71) -> 0 | AB72: =SUM(AB70:AB71) -> 0 | AD72: =SUM(AD70:AD71) -> 0 | AG72: =SUM(H72:AD72) -> 0
AJ73: Instructions for Preparation of Cooperative Research Programs Reports. One hundred (100) copies of the report, prepared in accordance with NCHRP specifications, must then be submitted to the NCHRP by the contract expiration date.
D74: F. Materials and Services | G74: Hours | I74: Hours | K74: Hours | M74: Hours | O74: Hours | Q74: Hours | S74: Hours | U74: Hours | W74: Hours | Y74: Hours | AA74: Hours | AC74: Hours | AE74: Hours
D75: 1. computer operations | H75: =ROUND(((G50-(G47+G48+G49))/174)*225,0) -> 0 | J75: =ROUND(((I50-(I47+I48+I49))/174)*225,0) -> 0 | L75: =ROUND(((K50-(K47+K48+K49))/174)*225,0) -> 0 | N75: =ROUND(((M50-(M47+M48+M49))/174)*225,0) -> 0 | P75: =ROUND(((O50-(O47+O48+O49))/174)*225,0) -> 0 | R75: =ROUND(((Q50-(Q47+Q48+Q49))/174)*225,0) -> 0 | T75: =ROUND(((S50-(S47+S48+S49))/174)*225,0) -> 0 | V75: =ROUND(((U50-(U47+U48+U49))/174)*225,0) -> 0 | X75: =ROUND(((W50-(W47+W48+W49))/174)*225,0) -> 0 | Z75: =ROUND(((Y50-(Y47+Y48+Y49))/174)*225,0) -> 0 | AB75: =ROUND(((AA50-(AA47+AA48+AA49))/174)*225,0) -> 0 | AD75: =ROUND(((AC50-(AC47+AC48+AC49))/174)*225,0) -> 0 | AG75: =H75+J75+L75+N75+P75+R75+T75+V75+X75+Z75+AB75+AD75 -> 0
D76: 2. tuition | E76: Rate/hr. | F76: 390 | G76: 0 | H76: =SUM(F76*G76) -> 0 | J76: =SUM(F76*I76) -> 0 | L76: =SUM(F76*K76) -> 0 | N76: =SUM(F76*M76) -> 0 | P76: =SUM(F76*O76) -> 0 | R76: =SUM(F76*Q76) -> 0 | T76: =SUM(F76*S76) -> 0 | V76: =SUM(F76*U76) -> 0 | X76: =SUM(H76*W76) -> 0 | Z76: =SUM(F76*Y76) -> 0 | AB76: =SUM(F76*AA76) -> 0 | AD76: =SUM(F76*AC76) -> 0 | AE76: =G76+I76+K76+M76+O76+Q76+S76+U76+W76+Y76+AA76+AC76 -> 0 | AG76: =H76+J76+L76+N76+P76+R76+T76+V76+X76+Z76+AB76+AD76 -> 0
A77: Current Rate Sheet | D77: 3. no idc item | E77: Rate | F77: 0 | H77: =SUM(F77*G77) -> 0 | J77: =SUM(F77*I77) -> 0 | L77: =SUM(F77*K77) -> 0 | N77: =SUM(F77*M77) -> 0 | P77: =SUM(F77*O77) -> 0 | R77: =SUM(F77*Q77) -> 0 | T77: =SUM(F77*S77) -> 0 | V77: =SUM(F77*U77) -> 0 | X77: =SUM(H77*W77) -> 0 | Z77: =SUM(F77*Y77) -> 0 | AB77: =SUM(F77*AA77) -> 0 | AD77: =SUM(F77*AC77) -> 0 | AE77: =G77+I77+K77+M77+O77+Q77+S77+U77+W77+Y77+AA77+AC77 -> 0 | AG77: =H77+J77+L77+N77+P77+R77+T77+V77+X77+Z77+AB77+AD77 -> 0
D78: 4. no idc item | E78: Rate | F78: 0 | H78: =SUM(F78*G78) -> 0 | J78: =SUM(F78*I78) -> 0 | L78: =SUM(F78*K78) -> 0 | N78: =SUM(F78*M78) -> 0 | P78: =SUM(F78*O78) -> 0 | R78: =SUM(F78*Q78) -> 0 | T78: =SUM(F78*S78) -> 0 | V78: =SUM(F78*U78) -> 0 | X78: =SUM(F78*W78) -> 0 | Z78: =SUM(F78*Y78) -> 0 | AB78: =SUM(F78*AA78) -> 0 | AD78: =SUM(F78*AC78) -> 0 | AE78: =G78+I78+K78+M78+O78+Q78+S78+U78+W78+Y78+AA78+AC78 -> 0 | AG78: =H78+J78+L78+N78+P78+R78+T78+V78+X78+Z78+AB78+AD78 -> 0
D79: 5. idc item | H79: 0 | J79: 0 | L79: 0 | N79: 0 | P79: 0 | R79: 0 | T79: 0 | V79: 0 | X79: 0 | Z79: 0 | AB79: 0 | AD79: 0 | AG79: =SUM(H79:AD79) -> 0
D80: 6. idc item | H80: 0 | J80: 0 | L80: 0 | N80: 0 | P80: 0 | R80: 0 | T80: 0 | V80: 0 | X80: 0 | Z80: 0 | AB80: 0 | AD80: 0 | AG80: =SUM(H80:AD80) -> 0
D81: 7. idc item | H81: 0 | J81: 0 | L81: 0 | N81: 0 | P81: 0 | R81: 0 | T81: 0 | V81: 0 | X81: 0 | Z81: 0 | AB81: 0 | AD81: 0 | AG81: =SUM(H81:AD81) -> 0
D82: Subtotal | H82: =SUM(H75:H81) -> 0 | J82: =SUM(J75:J81) -> 0 | L82: =SUM(L75:L81) -> 0 | N82: =SUM(N75:N81) -> 0 | P82: =SUM(P75:P81) -> 0 | R82: =SUM(R75:R81) -> 0 | T82: =SUM(T75:T81) -> 0 | V82: =SUM(V75:V81) -> 0 | X82: =SUM(X75:X81) -> 0 | Z82: =SUM(Z75:Z81) -> 0 | AB82: =SUM(AB75:AB81) -> 0 | AD82: =SUM(AD75:AD81) -> 0 | AG82: =H82+J82+L82+N82+P82+R82+T82+V82+X82+Z82+AB82+AD82 -> 0
D84: G. Communications and Shipping
D85: shipping reports/materials | H85: 0 | J85: 0 | L85: 0 | N85: 0 | P85: 0 | R85: 0 | T85: 0 | V85: 0 | X85: 0 | Z85: 0 | AB85: 0 | AD85: 0 | AG85: =SUM(H85:AD85) -> 0
D86: Subtotal | H86: =SUM(H85:H85) -> 0 | J86: =SUM(J85:J85) -> 0 | L86: =SUM(L85:L85) -> 0 | N86: =SUM(N85:N85) -> 0 | P86: =SUM(P85:P85) -> 0 | R86: =SUM(R85:R85) -> 0 | T86: =SUM(T85:T85) -> 0 | V86: =SUM(V85:V85) -> 0 | X86: =SUM(X85:X85) -> 0 | Z86: =SUM(Z85:Z85) -> 0 | AB86: =SUM(AB85:AB85) -> 0 | AD86: =SUM(AD85:AD85) -> 0 | AG86: =SUM(H86:AD86) -> 0
D88: H. Travel
A89: Per Diem Link | D89: For trips from
A90: Meals are calculated at 75% first and last day of travel, for example: 1 trip x 1 person x 2 days @ $71, use formula: =1*1*2*(71*0.75), for a total of $106.50. | D90: Airfare: trip x people x $600/trip | H90: 0 | J90: 0 | L90: 0 | N90: 0 | P90: 0 | R90: 0 | T90: 0 | V90: 0 | X90: 0 | Z90: 0 | AB90: 0 | AD90: 0 | AG90: =SUM(H90:AD90) -> 0
D91: Rental Car: trips x days/trip @ $65/day | H91: 0 | J91: 0 | L91: 0 | N91: 0 | P91: 0 | R91: 0 | T91: 0 | V91: 0 | X91: 0 | Z91: 0 | AB91: 0 | AD91: 0 | AG91: =SUM(H91:AD91) -> 0
D92: Meals: trip x people x days x $??/day | H92: 0 | J92: 0 | L92: 0 | N92: 0 | P92: 0 | R92: 0 | T92: 0 | V92: 0 | X92: 0 | Z92: 0 | AB92: 0 | AD92: 0 | AG92: =SUM(H92:AD92) -> 0
D93: Lodging: trip x people x nights x $???/person/night | H93: 0 | J93: 0 | L93: 0 | N93: 0 | P93: 0 | R93: 0 | T93: 0 | V93: 0 | X93: 0 | Z93: 0 | AB93: 0 | AD93: 0 | AG93: =SUM(H93:AD93) -> 0
D94: For trips from
D95: Airfare: trip x people x $600/trip | H95: 0 | J95: 0 | L95: 0 | N95: 0 | P95: 0 | R95: 0 | T95: 0 | V95: 0 | X95: 0 | Z95: 0 | AB95: 0 | AD95: 0 | AG95: =SUM(H95:AD95) -> 0
D96: Rental Car: trips x days/trip @ $65/day | H96: 0 | J96: 0 | L96: 0 | N96: 0 | P96: 0 | R96: 0 | T96: 0 | V96: 0 | X96: 0 | Z96: 0 | AB96: 0 | AD96: 0 | AG96: =SUM(H96:AD96) -> 0
D97: Meals: trip x people x days x $??/day | H97: 0 | J97: 0 | L97: 0 | N97: 0 | P97: 0 | R97: 0 | T97: 0 | V97: 0 | X97: 0 | Z97: 0 | AB97: 0 | AD97: 0 | AG97: =SUM(H97:AD97) -> 0
D98: Lodging: trip x people x nights x $???/person/night | H98: 0 | J98: 0 | L98: 0 | N98: 0 | P98: 0 | R98: 0 | T98: 0 | V98: 0 | X98: 0 | Z98: 0 | AB98: 0 | AD98: 0 | AG98: =SUM(H98:AD98) -> 0
D99: Subtotal | H99: =SUM(H90:H98) -> 0 | J99: =SUM(J90:J98) -> 0 | L99: =SUM(L90:L98) -> 0 | N99: =SUM(N90:N98) -> 0 | P99: =SUM(P90:P98) -> 0 | R99: =SUM(R90:R98) -> 0 | T99: =SUM(T90:T98) -> 0 | V99: =SUM(V90:V98) -> 0 | X99: =SUM(X90:X98) -> 0 | Z99: =SUM(Z90:Z98) -> 0 | AB99: =SUM(AB90:AB98) -> 0 | AD99: =SUM(AD90:AD98) -> 0 | AG99: =SUM(H99:AD99) -> 0
D101: I. Employee Benefit Plan & Payroll Taxes
B102: Fringe Rates | D102: Employee Fringe Benefits Estimates:
A103: Students | B103: 0.031 | D103: Students | E103: Rate | F103: =B103 -> 0.031 | H103: =ROUND((H47+H48+H49)*B103,0) -> 0 | J103: =ROUND((J47+J48+J49)*B103,0) -> 0 | L103: =ROUND((L47+L48+L49)*B103,0) -> 0 | N103: =ROUND((N47+N48+N49)*B103,0) -> 0 | P103: =ROUND((P47+P48+P49)*B103,0) -> 0 | R103: =ROUND((R47+R48+R49)*B103,0) -> 0 | T103: =ROUND((T47+T48+T49)*B103,0) -> 0 | V103: =ROUND((V47+V48+V49)*B103,0) -> 0 | X103: =ROUND((X47+X48+X49)*B103,0) -> 0 | Z103: =ROUND((Z47+Z48+Z49)*B103,0) -> 0 | AB103: =ROUND((AB47+AB48+AB49)*B103,0) -> 0 | AD103: =ROUND((AD47+AD48+AD49)*B103,0) -> 0 | AG103: =SUM(H103:AD103) -> 0
A104: Staff | B104: 0.175 | D104: Staff | E104: Rate | F104: =B104 -> 0.175 | H104: =ROUND((SUM(H27:H46))*B104,0) -> 0 | J104: =ROUND((SUM(J27:J46))*B104,0) -> 0 | L104: =ROUND((SUM(L27:L46))*B104,0) -> 0 | N104: =ROUND((SUM(N27:N46))*B104,0) -> 0 | P104: =ROUND((SUM(P27:P46))*B104,0) -> 0 | R104: =ROUND((SUM(R27:R46))*B104,0) -> 0 | T104: =ROUND((SUM(T27:T46))*B104,0) -> 0 | V104: =ROUND((SUM(V27:V46))*B104,0) -> 0 | X104: =ROUND((SUM(X27:X46))*B104,0) -> 0 | Z104: =ROUND((SUM(Z27:Z46))*B104,0) -> 0 | AB104: =ROUND((SUM(AB27:AB46))*B104,0) -> 0 | AD104: =ROUND((SUM(AD27:AD46))*B104,0) -> 0 | AG104: =SUM(H104:AD104) -> 0
D105: Total Fringe | H105: =SUM(H103:H104) -> 0 | J105: =SUM(J103:J104) -> 0 | L105: =SUM(L103:L104) -> 0 | N105: =SUM(N103:N104) -> 0 | P105: =SUM(P103:P104) -> 0 | R105: =SUM(R103:R104) -> 0 | T105: =SUM(T103:T104) -> 0 | V105: =SUM(V103:V104) -> 0 | X105: =SUM(X103:X104) -> 0 | Z105: =SUM(Z103:Z104) -> 0 | AB105: =SUM(AB103:AB104) -> 0 | AD105: =SUM(AD103:AD104) -> 0 | AG105: =SUM(H105:AD105) -> 0
D106: Institutional Medical Insurance Cost
A107: Students | B107: 193 | D107: Students | E107: Rate/person/month | F107: =B107 -> 193 | H107: =ROUND(((G47+G48)/87)*B107,0) -> 0 | J107: =ROUND(((I47+I48)/87)*B107,0) -> 0 | L107: =ROUND(((K47+K48)/87)*B107,0) -> 0 | N107: =ROUND(((M47+M48)/87)*B107,0) -> 0 | P107: =ROUND(((O47+O48)/87)*B107,0) -> 0 | R107: =ROUND(((Q47+Q48)/87)*B107,0) -> 0 | T107: =ROUND(((S47+S48)/87)*B107,0) -> 0 | V107: =ROUND(((U47+U48)/87)*B107,0) -> 0 | X107: =ROUND(((W47+W48)/87)*B107,0) -> 0 | Z107: =ROUND(((Y47+Y48)/87)*B107,0) -> 0 | AB107: =ROUND(((AA47+AA48)/87)*B107,0) -> 0 | AD107: =ROUND(((AC47+AC48)/87)*B107,0) -> 0 | AG107: =SUM(H107:AD107) -> 0
A108: Staff | B108: 745 | D108: Staff | E108: Rate/person/month | F108: =B108 -> 745 | H108: =ROUND(((G50-(G47+G48+G49))/174)*B108,0) -> 0 | J108: =ROUND(((I50-(I47+I48+I49))/174)*B108,0) -> 0 | L108: =ROUND(((K50-(K47+K48+K49))/174)*B108,0) -> 0 | N108: =ROUND(((M50-(M47+M48+M49))/174)*B108,0) -> 0 | P108: =ROUND(((O50-(O47+O48+O49))/174)*B108,0) -> 0 | R108: =ROUND(((Q50-(Q47+Q48+Q49))/174)*B108,0) -> 0 | T108: =ROUND(((S50-(S47+S48+S49))/174)*B108,0) -> 0 | V108: =ROUND(((U50-(U47+U48+U49))/174)*B108,0) -> 0 | X108: =ROUND(((W50-(W47+W48+W49))/174)*B108,0) -> 0 | Z108: =ROUND(((Y50-(Y47+Y48+Y49))/174)*B108,0) -> 0 | AB108: =ROUND(((AA50-(AA47+AA48+AA49))/174)*B108,0) -> 0 | AD108: =ROUND(((AC50-(AC47+AC48+AC49))/174)*B108,0) -> 0 | AG108: =SUM(H108:AD108) -> 0
D109: Total Medical | H109: =SUM(H107:H108) -> 0 | J109: =SUM(J107:J108) -> 0 | L109: =SUM(L107:L108) -> 0 | N109: =SUM(N107:N108) -> 0 | P109: =SUM(P107:P108) -> 0 | R109: =SUM(R107:R108) -> 0 | T109: =SUM(T107:T108) -> 0 | V109: =SUM(V107:V108) -> 0 | X109: =SUM(X107:X108) -> 0 | Z109: =SUM(Z107:Z108) -> 0 | AB109: =SUM(AB107:AB108) -> 0 | AD109: =SUM(AD107:AD108) -> 0 | AG109: =SUM(H109:AD109) -> 0
D110: Subtotal | H110: =H105+H109 -> 0 | J110: =J105+J109 -> 0 | L110: =L105+L109 -> 0 | N110: =N105+N109 -> 0 | P110: =P105+P109 -> 0 | R110: =R105+R109 -> 0 | T110: =T105+T109 -> 0 | V110: =V105+V109 -> 0 | X110: =X105+X109 -> 0 | Z110: =Z105+Z109 -> 0 | AB110: =AB105+AB109 -> 0 | AD110: =AD105+AD109 -> 0 | AG110: =SUM(H110:AD110) -> 0
D112: J. Administrative Costs @ | E112: =#REF! ->  | H112: =ROUND(H130*E112,0) ->  | J112: =ROUND(J130*E112,0) ->  | L112: =ROUND(L130*E112,0) ->  | N112: =ROUND(N130*E112,0) ->  | P112: =ROUND(P130*E112,0) ->  | R112: =ROUND(R130*E112,0) ->  | T112: =ROUND(T130*E112,0) ->  | V112: =ROUND(V130*E112,0) ->  | X112: =ROUND(X130*E112,0) ->  | Z112: =ROUND(Z130*E112,0) ->  | AB112: =ROUND(AB130*E112,0) ->  | AD112: =ROUND(AD130*E112,0) ->  | AG112: =ROUND(AG130*E112,0) -> 
D113: of Modified Total Direct Costs
D115: K. Fixed Fee (Prime) | E115: Rate: | F115: 0 | H115: 0 | J115: 0 | L115: 0 | N115: 0 | P115: 0 | R115: 0 | T115: 0 | V115: 0 | X115: 0 | Z115: 0 | AB115: 0 | AD115: 0 | AG115: =SUM(H115:AD115) -> 0
D117: GRAND TOTAL PROJECT | H117: =H128+H112 ->  | J117: =J128+J112 ->  | L117: =L128+L112 ->  | N117: =N128+N112 ->  | P117: =P128+P112 ->  | R117: =R128+R112 ->  | T117: =T128+T112 ->  | V117: =V128+V112 ->  | X117: =X128+X112 ->  | Z117: =Z128+Z112 ->  | AB117: =AB128+AB112 ->  | AD117: =AD128+AD112 ->  | AG117: =SUM(H117:AD117) -> 
D119: BUDGET NOTES:
D120: All facilities and equipment necessary to accomplish the required work are available.
D121: The Texas A&M University System serves people of all ages, regardless of socioeconomic level, race, color, sex, religion, disability or national origin.
D122: A. Clerical salaries are directly charged as the support required is significantly greater than the routine level of services provided by academic departments.
D123: F1. Computer equipment usage fee and network support services is an established rate and is not charged indirect.
D124: H. Travel M&IE is calculated at 75% on the first and last day of travel.
D125: J. Excludes D each part above $25,000, E1 - E2, and F1 - F4.
E128: TDC | H128: =H50+H54+H59+H67+H72+H82+H86+H99+H110 -> 0 | J128: =J50+J54+J59+J67+J72+J82+J86+J99+J110 -> 0 | L128: =L50+L54+L59+L67+L72+L82+L86+L99+L110 -> 0 | N128: =N50+N54+N59+N67+N72+N82+N86+N99+N110 -> 0 | P128: =P50+P54+P59+P67+P72+P82+P86+P99+P110 -> 0 | R128: =R50+R54+R59+R67+R72+R82+R86+R99+R110 -> 0 | T128: =T50+T54+T59+T67+T72+T82+T86+T99+T110 -> 0 | V128: =V50+V54+V59+V67+V72+V82+V86+V99+V110 -> 0 | X128: =X50+X54+X59+X67+X72+X82+X86+X99+X110 -> 0 | Z128: =Z50+Z54+Z59+Z67+Z72+Z82+Z86+Z99+Z110 -> 0 | AB128: =AB50+AB54+AB59+AB67+AB72+AB82+AB86+AB99+AB110 -> 0 | AD128: =AD50+AD54+AD59+AD67+AD72+AD82+AD86+AD99+AD110 -> 0 | AG128: =AG50+AG54+AG59+AG67+AG72+AG82+AG86+AG99+AG110 -> 0
D130: MTDC w/subs | E130: MTDC | H130: =ROUND(H50+H54+H59+H82-H75-H76-H77-H78+H86+H99+H110+H137,0) -> 0 | J130: =ROUND(J50+J54+J59+J82-J75-J76-J77-J78+J86+J99+J110+J137,0) -> 0 | L130: =ROUND(L50+L54+L59+L82-L75-L76-L77-L78+L86+L99+L110+L137,0) -> 0 | N130: =ROUND(N50+N54+N59+N82-N75-N76-N77-N78+N86+N99+N110+N137,0) -> 0 | P130: =ROUND(P50+P54+P59+P82-P75-P76-P77-P78+P86+P99+P110+P137,0) -> 0 | R130: =ROUND(R50+R54+R59+R82-R75-R76-R77-R78+R86+R99+R110+R137,0) -> 0 | T130: =ROUND(T50+T54+T59+T82-T75-T76-T77-T78+T86+T99+T110+T137,0) -> 0 | V130: =ROUND(V50+V54+V59+V82-V75-V76-V77-V78+V86+V99+V110+V137,0) -> 0 | X130: =ROUND(X50+X54+X59+X82-X75-X76-X77-X78+X86+X99+X110+X137,0) -> 0 | Z130: =ROUND(Z50+Z54+Z59+Z82-Z75-Z76-Z77-Z78+Z86+Z99+Z110+Z137,0) -> 0 | AB130: =ROUND(AB50+AB54+AB59+AB82-AB75-AB76-AB77-AB78+AB86+AB99+AB110+AB137,0) -> 0 | AD130: =ROUND(AD50+AD54+AD59+AD82-AD75-AD76-AD77-AD78+AD86+AD99+AD110+AD137,0) -> 0 | AG130: =SUM(H130:AD130) -> 0
E132: =D62 -> Entity Name 1 | H132: =IF(H62>25000,25000,H62) -> 0 | J132: =IF(H62+J62>25000,(25000-H132),J62) -> 0 | L132: =IF(H62+J62+L62>25000,(25000-(H132+J132)),L62) -> 0 | N132: =IF(H62+J62+L62+N62>25000,(25000-(H132+J132+L132)),N62) -> 0 | P132: =IF(H62+J62+L62+N62+P62>25000,(25000-(H132+J132+L132+N132)),P62) -> 0 | R132: =IF(H62+J62+L62+N62+P62+R62>25000,(25000-(H132+J132+L132+N132+P132)),R62) -> 0 | T132: =IF(H62+J62+L62+N62+P62+R62+T62>25000,(25000-(H132+J132+L132+N132+P132+R132)),T62) -> 0 | V132: =IF(H62+J62+L62+N62+P62+R62+T62+V62>25000,(25000-(H132+J132+L132+N132+P132+R132+T132)),V62) -> 0 | X132: =IF(H62+J62+L62+N62+P62+R62+T62+V62+X62>25000,(25000-(H132+J132+L132+N132+P132+R132+T132+V132)),X62) -> 0 | Z132: =IF(H62+J62+L62+N62+P62+R62+T62+V62+X62+Z62>25000,(25000-(H132+J132+L132+N132+P132+R132+T132+V132+X132)),Z62) -> 0 | AB132: =IF(H62+J62+L62+N62+P62+R62+T62+V62+X62+Z62+AB62>25000,(25000-(H132+J132+L132+N132+P132+R132+T132+V132+X132+Z132)),AB62) -> 0 | AD132: =IF(H62+J62+L62+N62+P62+R62+T62+V62+X62+Z62+AB62+AD62>25000,(25000-(H132+J132+L132+N132+P132+R132+T132+V132+X132+Z132+AB132)),AD62) -> 0 | AG132: =SUM(H132:AD132) -> 0
E133: =D63 -> Entity Name 2 | H133: =IF(H63>25000,25000,H63) -> 0 | J133: =IF(H63+J63>25000,(25000-H133),J63) -> 0 | L133: =IF(H63+J63+L63>25000,(25000-(H133+J133)),L63) -> 0 | N133: =IF(H63+J63+L63+N63>25000,(25000-(H133+J133+L133)),N63) -> 0 | P133: =IF(H63+J63+L63+N63+P63>25000,(25000-(H133+J133+L133+N133)),P63) -> 0 | R133: =IF(H63+J63+L63+N63+P63+R63>25000,(25000-(H133+J133+L133+N133+P133)),R63) -> 0 | T133: =IF(H63+J63+L63+N63+P63+R63+T63>25000,(25000-(H133+J133+L133+N133+P133+R133)),T63) -> 0 | V133: =IF(H63+J63+L63+N63+P63+R63+T63+V63>25000,(25000-(H133+J133+L133+N133+P133+R133+T133)),V63) -> 0 | X133: =IF(H63+J63+L63+N63+P63+R63+T63+V63+X63>25000,(25000-(H133+J133+L133+N133+P133+R133+T133+V133)),X63) -> 0 | Z133: =IF(H63+J63+L63+N63+P63+R63+T63+V63+X63+Z63>25000,(25000-(H133+J133+L133+N133+P133+R133+T133+V133+X133)),Z63) -> 0 | AB133: =IF(H63+J63+L63+N63+P63+R63+T63+V63+X63+Z63+AB63>25000,(25000-(H133+J133+L133+N133+P133+R133+T133+V133+X133+Z133)),AB63) -> 0 | AD133: =IF(H63+J63+L63+N63+P63+R63+T63+V63+X63+Z63+AB63+AD63>25000,(25000-(H133+J133+L133+N133+P133+R133+T133+V133+X133+Z133+AB133)),AD63) -> 0 | AG133: =SUM(H133:AD133) -> 0
E134: Entity Name 3 | H134: =IF(H64>25000,25000,H64) -> 0 | J134: =IF(H64+J64>25000,(25000-H134),J64) -> 0 | L134: 0 | N134: 0 | P134: 0 | R134: 0 | T134: 0 | V134: 0 | X134: 0 | Z134: 0 | AB134: 0 | AD134: 0 | AG134: 0
E135: Entity Name 4 | H135: =IF(H65>25000,25000,H65) -> 0 | J135: =IF(H65+J65>25000,(25000-H135),J65) -> 0 | L135: 0 | N135: 0 | P135: 0 | R135: 0 | T135: 0 | V135: 0 | X135: 0 | Z135: 0 | AB135: 0 | AD135: 0 | AG135: 0
E136: =D66 -> Entity Name 5 | H136: =IF(H66>25000,25000,H66) -> 0 | J136: =IF(H66+J66>25000,(25000-H136),J66) -> 0 | L136: =IF(H66+J66+L66>25000,(25000-(H136+J136)),L66) -> 0 | N136: =IF(H66+J66+L66+N66>25000,(25000-(H136+J136+L136)),N66) -> 0 | P136: =IF(H66+J66+L66+N66+P66>25000,(25000-(H136+J136+L136+N136)),P66) -> 0 | R136: =IF(H66+J66+L66+N66+P66+R66>25000,(25000-(H136+J136+L136+N136+P136)),R66) -> 0 | T136: =IF(H66+J66+L66+N66+P66+R66+T66>25000,(25000-(H136+J136+L136+N136+P136+R136)),T66) -> 0 | V136: =IF(H66+J66+L66+N66+P66+R66+T66+V66>25000,(25000-(H136+J136+L136+N136+P136+R136+T136)),V66) -> 0 | X136: =IF(H66+J66+L66+N66+P66+R66+T66+V66+X66>25000,(25000-(H136+J136+L136+N136+P136+R136+T136+V136)),X66) -> 0 | Z136: =IF(H66+J66+L66+N66+P66+R66+T66+V66+X66+Z66>25000,(25000-(H136+J136+L136+N136+P136+R136+T136+V136+X136)),Z66) -> 0 | AB136: =IF(H66+J66+L66+N66+P66+R66+T66+V66+X66+Z66+AB66>25000,(25000-(H136+J136+L136+N136+P136+R136+T136+V136+X136+Z136)),AB66) -> 0 | AD136: =IF(H66+J66+L66+N66+P66+R66+T66+V66+X66+Z66+AB66+AD66>25000,(25000-(H136+J136+L136+N136+P136+R136+T136+V136+X136+Z136+AB136)),AD66) -> 0 | AG136: =SUM(H136:AD136) -> 0
E137: Total | H137: =SUM(H132:H136) -> 0 | J137: =SUM(J132:J136) -> 0 | L137: 0 | N137: 0 | P137: 0 | R137: 0 | T137: 0 | V137: 0 | X137: 0 | Z137: 0 | AB137: 0 | AD137: 0 | AG137: =SUM(H137:AD137) -> 0

Sheet budg-LOA ISC format (hidden)
A1: For hourly rate information, please check with your RDO Rep.
A2: professional esc:
A3: 9/1/16 -08/31/17 | D3: 12 | E3: =D3*1 -> 12
A4: 9/1/17 -08/31/18 | D4: 0 | E4: =D4*1.03 -> 0
A5: 9/1/18 -08/31/19 | D5: 0 | E5: =D5*1.03*1.03 -> 0
A6: 9/1/19 -08/31/20 | D6: 0 | E6: =D6*1.03*1.03*1.03 -> 0
A7: 9/1/20 - 08/31/21 | D7: 0 | E7: =D7*1.03*1.03*1.03*1.03 -> 0
A9: Total months | D9: =SUM(D3:D7) -> 12 | E9: =SUM(E3:E7) -> 12
A11: Ave pro esc | E11: =(E9/D9)-1 -> 0 | G11: =E11+1 -> 1
A12: REMEMBER TO FILL IN THE APPROPRIATE MONTHS IN THE ESCALATION PORTION ABOVE.
E13: Current | G13: Hr. Rate
A14: Professional | D14: Hours | E14: Hr. Rate | G14: w/Escalat. | I14: Total Salaries
A15: Insert Name here | D15: 0 | E15: 0 | G15: =ROUND(E15*$G$11,2) -> 0 | I15: =ROUND(G15*D15,0) -> 0
A16: Researcher-Name | D16: 0 | E16: 0 | G16: =ROUND(E16*$G$11,2) -> 0 | I16: =ROUND(G16*D16,0) -> 0
A17: Researcher-Name | D17: 0 | E17: 0 | G17: =ROUND(E17*$G$11,2) -> 0 | I17: =ROUND(G17*D17,0) -> 0
A18: Researcher-Name | D18: 0 | E18: 0 | G18: =ROUND(E18*$G$11,2) -> 0 | I18: =ROUND(G18*D18,0) -> 0
A19: Researcher-Name | D19: 0 | E19: 0 | G19: 0 | I19: 0
A20: Researcher-Name | D20: 0 | E20: 0 | G20: 0 | I20: 0
A21: Researcher-Name | D21: 0 | E21: 0 | G21: =ROUND(E21*$G$11,2) -> 0 | I21: =ROUND(G21*D21,0) -> 0
A23: Subprofessional/Technical | D23: Hours | E23: Hr. Rate
A24: Subprofessional-Name | D24: 0 | E24: 0 | G24: =ROUND(E24*$G$11,2) -> 0 | I24: =ROUND(G24*D24,0) -> 0
A25: Subprofessional-Name | D25: 0 | E25: 0 | G25: =ROUND(E25*$G$11,2) -> 0 | I25: =ROUND(G25*D25,0) -> 0
A26: Subprofessional-Name | D26: 0 | E26: 0 | G26: =ROUND(E26*$G$11,2) -> 0 | I26: =ROUND(G26*D26,0) -> 0
A27: Subprofessional-Name | D27: 0 | E27: 0 | G27: =ROUND(E27*$G$11,2) -> 0 | I27: =ROUND(G27*D27,0) -> 0
A28: Subprofessional-Name | D28: 0 | E28: 0 | G28: =ROUND(E28*$G$11,2) -> 0 | I28: =ROUND(G28*D28,0) -> 0
A30: Clerical | D30: Hours | E30: Hr. Rate | K30: * All Materials proposals must included
A31: Clerical-Name | D31: 0 | E31: 0 | G31: =ROUND(E31*$G$11,2) -> 0 | I31: =ROUND(G31*D31,0) -> 0 | K31: clerical. Materials PIs must contact Dave
A32: Clerical-Name | D32: 0 | E32: 0 | G32: =ROUND(E32*$G$11,2) -> 0 | I32: =ROUND(G32*D32,0) -> 0 | K32: Newcomb if clerical is not budgeted.
A34: Students | D34: Hours | E34: Hr. Rate
A35: Graduate Student-PhD-Name | D35: 0 | E35: 0 | G35: =ROUND(E35*$G$11,2) -> 0 | I35: =ROUND(G35*D35,0) -> 0 | J35: hired pre 9/1/04
A36: Graduate Student-Masters-Name | D36: 0 | E36: 0 | G36: =ROUND(E36*$G$11,2) -> 0 | I36: =ROUND(G36*D36,0) -> 0 | J36: hired post 9/1/04 | L36: no tuition rate/hour | N36: tuition rate/hour
A37: Undergraduate Student-Name | D37: 0 | E37: 0 | G37: =ROUND(E37*$G$11,2) -> 0 | I37: =ROUND(G37*D37,0) -> 0 | K37: PhD | L37: 24.25 | N37: 18.39
K38: MS | L38: 23.1 | N38: 17.24
K39: ME | L39: 21.95 | N39: 16.09
A40: ATTACHMENT B
A41: ESTIMATED BUDGET FOR THE TEXAS A&M TRANSPORTATION INSTITUTE
A43: Estimated Budget through xx/xx/xxxx | K43: =(#REF!&" " &#REF!) -> 
A44: =#REF! ->  | K44: =(#REF!&" " &#REF!) -> 
A45: =#REF! -> 
A46: =#REF! -> 
A47: Principal Investigator: | C47: =#REF! -> 
A49: A. Direct Costs
B50: 1. Salaries and Wages(1)
B51: Professional Services | G51: =ROUND(SUM(D15:D21)/174,2) -> 0 | H51: staff-mo | I51: =ROUND(SUM(I15:I21),0) -> 0
B52: Subprofessional and Technical | G52: =ROUND(SUM(D24:D28)/174,2) -> 0 | H52: staff-mo | I52: =ROUND(SUM(I24:I28),0) -> 0
B53: Clerical Services(2) | G53: =ROUND(SUM(D31+D32)/174,2) -> 0 | H53: staff-mo | I53: =ROUND(I31+I32,0) -> 0
B54: Students (Graduate) | G54: =ROUND((D35+D36)/87,2) -> 0 | H54: staff-mo | I54: =ROUND(I35+I36,0) -> 0
B55: Students (Undergraduate) | G55: =ROUND(D37/87,2) -> 0 | H55: staff-mo | I55: =ROUND(I37,0) -> 0
E56: TOTAL SALARIES AND WAGES | K56: =ROUND(SUM(I51:I55),0) -> 0
B58: 2. Fringe Benefits(3)
B59: 0.175 | C59: of Salaries and Wages (Staff) | I59: =ROUND((SUM(I51:I53))*B59,0) -> 0
B60: 0.031 | C60: of Salaries and Wages (Students) | I60: =ROUND((SUM(I54:I55)*B60),0) -> 0
B61: 745 | C61: Health Insurance (Staff person/month) | I61: =ROUND((G51+G52+G53)*B61,0) -> 0
B62: 193 | C62: Health Insurance (Graduate Student/month) | I62: =ROUND(G54*B62,0) -> 0
E63: TOTAL FRINGE BENEFITS | K63: =ROUND(SUM(I59:I62),0) -> 0
B65: 3. Expendable Goods/Supplies
B66: Photographic Film, Supplies, and Processing | I66: 0
B67: Computer Supplies | I67: 0
B68: Materials for Construction | I68: 0
E69: TOTAL SUPPLIES | K69: =ROUND(SUM(I66:I68),0) -> 0
B71: 4. Travel(4) (Out of State or Country travel may require special approval.)
C72: Number of Round Trips | D72: Miles per Round Trip | E72: Number of Days | F72: Number of People | G72: Total | H72: Current Rates | M72: Per Diem Link
B73: Mileage | G73: =C73*D73 -> 0 | H73: 0.535 | I73: =ROUND(SUM(G73*H73),0) -> 0 | M73: Meals are calculated at 75% first and last day of travel, for example: 1 trip x 1 person x 2 days @ $71, use formula: =1*1*2*(71*0.75), for a total of $106.50.
B74: Rental Car | G74: =C74*E74 -> 0 | H74: 36 | I74: =ROUND(SUM(G74*H74),0) -> 0
B75: Meals | G75: =C75*E75*F75 -> 0 | H75: 51 | I75: =ROUND(SUM(G75*H75),0) -> 0
B76: Lodging | G76: =C76*E76*F76 -> 0 | H76: 89 | I76: =ROUND(SUM(G76*H76),0) -> 0
B77: Airfare | G77: =C77*F77 -> 0 | I77: =ROUND(SUM(G77*H77),0) -> 0
E78: TOTAL TRAVEL | K78: =SUM(I73:I77) -> 0
B80: 5a. Other Operating Expenses
B81: Other | I81: 0
B82: Reproduction | I82: 0
B83: Air Courier | I83: 0
C84: SUB-TOTAL OTHER OPERATING EXPENSES | J84: =ROUND(SUM(I81:I83),0) -> 0
B86: 5b. Other Operating Costs (NO INDIRECT) | M86: Current Service Center Rate Sheet
B87: Computer Operations(5) | I87: =ROUND(((SUM(G51:G53))*225),0) -> 0
B88: Tuition | F88: 0 | G88: hours @ | H88: 390 | I88: =ROUND(F88*H88,0) -> 0
B89: Location Shoot Operations | F89: 0 | G89: hours @ | H89: 30 | I89: 0
B90: Video Effects | F90: 0 | G90: hours @ | H90: 15 | I90: 0
B91: Video Production Specialists | F91: 0 | G91: hours @ | H91: 75 | I91: 0
B92: Photographic Equipment | F92: 0 | G92: hours @ | H92: 8 | I92: 0
B93: Photographer | F93: 0 | G93: hours @ | H93: 70 | I93: 0
B94: Graphic Design Services - sponsored projects | F94: 0 | G94: hours @ | H94: 74 | I94: 0
B95: Graphic Design Services - TAMU/System Dept projects | F95: 0 | G95: hours @ | H95: 78 | I95: 0
B96: Graphic Presentation Services | F96: 0 | G96: hours @ | H96: 65 | I96: 0
B97: Electromechanical Research Instrumentation | F97: 0 | G97: hours @ | H97: 57 | I97: 0
B98: Construction Section | F98: 0 | G98: hours @ | H98: 55 | I98: 0
B99: Evaluation/Reporting & Photographic Res. | F99: 0 | G99: hours @ | H99: 85 | I99: 0
B100: Test Vehicle - Small Car | F100: 0 | G100: hours @ | H100: 9347 | I100: 0
B101: Test Vehicle - Pickup Truck-Quad Cab | F101: 0 | G101: each @ | H101: 12149 | I101: 0
B102: Computer Simulation Computation | F102: 0 | G102: each @ | H102: 1.14 | I102: 0
C103: SUB-TOTAL OTHER OPERATING EXPENSES (No Indirect) | J103: =ROUND(SUM(I87:I102),0) -> 0
F104: TOTAL OTHER OPERATING EXPENSES | K104: =ROUND(SUM(J84:J103),0) -> 0
B106: 6. Capital Equipment (Itemize) | I106: 0
F107: TOTAL CAPITAL EQUIPMENT | K107: =ROUND(I106,0) -> 0
B109: 7. Subcontract/Consultant (Specify Name if Known) | L109: Do NOT Remove These Formulas
B110: Insert Subcontractor #1 | I110: 0 | L110: =IF(I110>25000,25000,I110) -> 0
B111: Insert Subcontractor #2 | I111: 0 | L111: =IF(I111>25000,25000,I111) -> 0
B112: Insert Subcontractor #3 | I112: 0 | L112: =IF(I112>25000,25000,I112) -> 0
B113: Insert Subcontractor #4 | I113: 0 | L113: =IF(I113>25000,25000,I113) -> 0
B114: Insert Subcontractor #5 | I114: 0 | L114: =IF(I114>25000,25000,I114) -> 0
F115: TOTAL SUBCONTRACT/CONSULTANT | K115: =SUM(I110:I114) -> 0
F117: TOTAL DIRECT COSTS | K117: =SUM(K56:K115) -> 0
A119: B. Administrative Costs | E119: =#REF! ->  | F119: MODIFIED TOTAL DIRECT COST(6) | I119: =ROUND(K117-K107-J103-I110+L110-I111+L111-I112+L112-I113+L113-I114+L114,0) -> 0 | J119: =ROUND(E119*I119,0) -> 
F121: TOTAL ADMINISTRATIVE COSTS | K121: =J119 -> 
H122: NET COST TO SPONSOR | K122: =ROUND(SUM(K117:K121),0) -> 
A124: All facilities and equipment necessary to accomplish the required work are available.
A125: The Texas A&M University System serves people of all ages, regardless of socioeconomic level, race, color, sex, religion, disability or national origin.
A126: 1 | B126: Salaries are estimated to include any expected pay increases during the contract period. Except for the Program Manager and Other Experts, salary rates are estimated based on a pool of available personnel. Reimbursement will be based on actual costs per employee in accordance with the Performing Agency's payroll policy and salary rate.
A127: 2 | B127: Clerical Staff are directly charged as the support required is significantly greater than the routine level of services provided by academic departments.
A128: 3 | B128: Fringe benefit rates are estimates only. Reimbursement will be based on actual cost per employee.
A129: 4 | B129: The Performing Agency shall bill the Receiving Agency for travel expenses not to exceed the limits reimbursable under state law. Travel M&IE is calculated at 75% on the first and last days of travel. Trips shown are estimates only.
A130: 5 | B130: Includes computer equipment usage fee and network support services.
A131: 6 | B131: Per OMB Uniform Guidance 2 CFR 200 and the federal negotiated F&A Agreement, capital equipment purchases, rental costs, computer operations, technical support services, video operations, subcontracts >$25,000, and participant support costs are excluded from Modified Total Direct Costs.

Sheet Cumulative (hidden)

Sheet FY 2017 federal (hidden)
C1: professional esc:
D2: 9/1/16 -08/31/17 | F2: 6 | G2: =F2*1 -> 6
D3: 9/1/17 -08/31/18 | F3: 0 | G3: =F3*1.03 -> 0
D4: 9/1/18 -08/31/19 | F4: 0 | G4: =F4*1.03*1.03 -> 0
D5: 9/1/19 -08/31/20 | F5: 0 | G5: =F5*1.03*1.03*1.03 -> 0
D6: 9/1/20 -08/31/21 | F6: 0 | G6: =F6*1.03*1.03*1.03*1.03 -> 0
D7: 9/1/21 -08/31/22 | F7: 0 | G7: =F7*1.03*1.03*1.03*1.03*1.03 -> 0
D9: Total months | F9: =SUM(F2:F7) -> 6 | G9: =SUM(G2:G7) -> 6 | I9: =G9/F9 -> 1
D11: Ave pro esc | G11: =(G9/F9)-1 -> 0
C12: NOTE: IF THIS SHEET USED, YOU WILL NEED TO FIX LINKS TO ROUTING, ETC.
A13: Remember human subject forms are required more often than you might think
A14: ESTIMATED BUDGET FOR THE TEXAS A&M TRANSPORTATION INSTITUTE
A16: Title: | B16: =#REF! ->  | J16: =(#REF!&" " &#REF!) -> 
B17: =#REF! ->  | J17: =(#REF!&" " &#REF!) -> 
A18: Sponsor: | C18: =#REF! -> 
A19: Proposed Budget Period: | D19: =#REF! ->  | E19: to | F19: =#REF! -> 
A22: 1. | B22: DIRECT LABOR | F22: % Effort | G22: Est. Hours | H22: Rate/Hour | I22: Est Cost | J22: Est Cost
B23: a. | C23: Salaries and Wages | L23: Insert Hourly
C24: NAME | D24: TITLE | L24: Rate Here | M24: Escalated Rate
C25: Insert Name | D25: Principal Investigator | F25: =($G25/174)/$F$9 -> 0 | G25: 0 | H25: =M25 -> 0 | I25: =ROUND(H25*G25,0) -> 0 | L25: 0 | M25: =ROUND(L25*$I$9,2) -> 0
C27: Insert Name | F27: =($G27/174)/$F$9 -> 0 | G27: 0 | H27: =M27 -> 0 | I27: =ROUND(H27*G27,0) -> 0 | L27: 0 | M27: =ROUND(L27*$I$9,2) -> 0
C29: Insert Name | F29: =($G29/174)/$F$9 -> 0 | G29: 0 | H29: =M29 -> 0 | I29: =ROUND(H29*G29,0) -> 0 | L29: 0 | M29: =ROUND(L29*$I$9,2) -> 0
C31: Insert Name | F31: =($G31/174)/$F$9 -> 0 | G31: 0 | H31: =M31 -> 0 | I31: =ROUND(H31*G31,0) -> 0 | L31: 0 | M31: =ROUND(L31*$I$9,2) -> 0
C33: Insert Name | F33: =($G33/174)/$F$9 -> 0 | G33: 0 | H33: =M33 -> 0 | I33: =ROUND(H33*G33,0) -> 0 | L33: 0 | M33: =ROUND(L33*$I$9,2) -> 0
C35: Insert Name | F35: =($G35/174)/$F$9 -> 0 | G35: 0 | H35: =M35 -> 0 | I35: =ROUND(H35*G35,0) -> 0 | L35: 0 | M35: =ROUND(L35*$I$9,2) -> 0
C37: Insert Name | F37: =($G37/174)/$F$9 -> 0 | G37: 0 | H37: =M37 -> 0 | I37: =ROUND(H37*G37,0) -> 0 | L37: 0 | M37: =ROUND(L37*$I$9,2) -> 0
C39: Insert Name | F39: =($G39/174)/$F$9 -> 0 | G39: 0 | H39: =M39 -> 0 | I39: =ROUND(H39*G39,0) -> 0 | L39: 0 | M39: =ROUND(L39*$I$9,2) -> 0
C41: Insert Name | F41: =($G41/174)/$F$9 -> 0 | G41: 0 | H41: =M41 -> 0 | I41: =ROUND(H41*G41,0) -> 0 | L41: 0 | M41: =ROUND(L41*$I$9,2) -> 0
C43: Insert Name | F43: =($G43/174)/$F$9 -> 0 | G43: 0 | H43: =M43 -> 0 | I43: =ROUND(H43*G43,0) -> 0 | L43: 0 | M43: =ROUND(L43*$I$9,2) -> 0 | O43: no tuition rate/hour | Q43: tuition rate/hour
C45: Insert Name | D45: Grad. Res. Asst. (Ph.D) | F45: =($G45/87)/$F$9 -> 0 | G45: 0 | H45: =M45 -> 0 | I45: =H45*G45 -> 0 | L45: 0 | M45: =ROUND(L45*$I$9,2) -> 0 | N45: PhD | O45: 24.25 | Q45: 18.39
C47: Insert Name | D47: Grad. Res. Asst. (Masters) | F47: =($G47/87)/$F$9 -> 0 | G47: 0 | H47: =M47 -> 0 | I47: =ROUND(H47*G47,0) -> 0 | L47: 0 | M47: =ROUND(L47*$I$9,2) -> 0 | N47: MS | O47: 23.1 | Q47: 17.24
C49: Insert Name | D49: Undergraduate Student | F49: =($G49/87)/$F$9 -> 0 | G49: 0 | H49: =M49 -> 0 | I49: =ROUND(H49*G49,0) -> 0 | L49: 0 | M49: =ROUND(L49*$I$9,2) -> 0 | N49: ME | O49: 21.95 | Q49: 16.09
E51: Subtotal Hours / Salaries | G51: =SUM(G25:G49) -> 0 | I51: =SUM(I25:I49) -> 0 | N51: =SUM(I25:I49) -> 0
B54: b. | C54: Employee Fringe Benefits
C55: 0.175 | D55: of Salaries and Wages (Staff) | I55: =ROUND(((N51)-((I45+I47+I49)))*C55,0) -> 0
C56: 0.031 | D56: of Salaries and Wages (Students) | I56: =ROUND(((I45+I47+I49))*C56,0) -> 0
C57: 745 | D57: Health Insurance (Staff person/month) | I57: =ROUND(((G51-G47-G45-G49)/174)*C57,0) -> 0
C58: 193 | D58: Health Insurance (Graduate Student/month) | I58: =ROUND(((G45+G47)/87)*C58,0) -> 0
E60: Subtotal Fringe Benefits | I60: =SUM(I55:I58) -> 0
D63: Total Direct Labor Costs (a+b) | J63: =ROUND(SUM(I51+I60),0) -> 0
A65: 2. | B65: EQUIPMENT | J65: 0
A67: 3. | B67: TRAVEL | N67: Per Diem Link
B68: Purpose and destination of travel | N68: Meals are calculated at 75% first and last day of travel, for example: 1 trip x 1 person x 2 days @ $71, use formula: =1*1*2*(71*0.75), for a total of $106.50.
D69: Number of Round Trips | E69: Miles per Round Trip | F69: Number of Days | G69: Number of People | H69: Rate
B70: a. | C70: Mileage | H70: 0.535 | I70: =ROUND(SUM(D70*E70*H70),0) -> 0
B71: b. | C71: Rental Car | H71: 36 | I71: =ROUND(SUM(D71*F71*H71),0) -> 0
B72: c. | C72: Meals | H72: 51 | I72: =ROUND(SUM(D72*F72*G72*H72),0) -> 0
B73: d. | C73: Lodging | H73: 89 | I73: =ROUND(SUM(D73*F73*G73*H73),0) -> 0
B74: e. | C74: Airfare | H74: 600 | I74: =ROUND(SUM(D74*G74*H74),0) -> 0
D75: Total Travel | J75: =ROUND(SUM(I70:I74),0) -> 0
A77: 4. | B77: SUBCONTRACTS
B78: a. | C78: Insert Subcontractor Name | I78: 0 | N78: =IF(I78>25000,25000,I78) -> 0
B79: b. | C79: Insert Subcontractor Name | I79: 0 | N79: =IF(I79>25000,25000,I79) -> 0
B80: c. | C80: Insert Subcontractor Name | I80: 0 | N80: =IF(I80>25000,25000,I80) -> 0
B81: d. | C81: Insert Subcontractor Name | I81: 0 | N81: =IF(I81>25000,25000,I81) -> 0
B82: e. | C82: Insert Subcontractor Name | I82: 0 | N82: =IF(I82>25000,25000,I82) -> 0
D83: Total Subcontracts | J83: =SUM(I78:I82) -> 0 | N83: =SUM(N78:N82) -> 0
A85: 5. | B85: DIRECT MATERIALS
B86: a. | C86: Research Supplies | I86: 0
B87: b. | C87: lab/research supplies | I87: 0
B88: c. | C88: [description] | I88: 0
B89: d. | C89: [description] | I89: 0
D90: Total Direct Materials | J90: =SUM(I86:I89) -> 0
A92: 6. | B92: OTHER DIRECT COSTS | N92: Current Service Center Rate Sheet
B93: a. | C93: Computer Operations @ $225/staff-month | I93: =ROUND(((G51-G45-G47-G49)/174)*225,0) -> 0
B94: b. | C94: Electro-Mechanical Res. Instrumentation | E94: 0 | F94: hours @ | G94: 57 | I94: =ROUND(E94*G94,0) -> 0
B95: c. | C95: Construction Section Services | E95: 0 | F95: hours @ | G95: 55 | I95: 0
B96: d. | C96: Evaluation/Reporting & Photographic Res. | E96: 0 | F96: hours @ | G96: 85 | I96: 0
B97: e. | C97: Eagle Aerial Lift Trailer | E97: 0 | F97: uses @ | G97: 150 | I97: 0
B98: f. | C98: Push-Pull Tractor Trailer | E98: 0 | F98: tests @ | G98: 631 | I98: 0
B99: g. | C99: Water Tank Trailer | E99: 0 | F99: hours @ | G99: 25 | I99: 0
B100: h. | C100: Surrogate Vehicle Testing | E100: 0 | F100: tests @ | G100: 145 | I100: 0
B101: i. | C101: Computer Simulation Computation | E101: 0 | F101: hours @ | G101: 1.14 | I101: 0
B102: j. | C102: Crash Test Vehicle - 820 kg Passenger Car | E102: 0 | F102: each @ | G102: 9347 | I102: 0
B103: k. | C103: Crash Test Vehicle - Pickup Truck-Quad Cab | E103: 0 | F103: each @ | G103: 12149 | I103: 0
B104: l. | C104: Tuition | E104: 0 | F104: hours @ | G104: 390 | I104: =ROUND(E104*G104,0) -> 0
B105: m. | C105: Reproduction | I105: 0
B106: n. | C106: [description] | I106: 0
D107: Total Other Direct Costs | J107: =ROUND(SUM(I93:I106),0) -> 0
A109: 7. | B109: TOTAL DIRECT COST | J109: =ROUND(SUM(J63:J107),0) -> 0 | N109: =J109-25000 -> -25000
A111: 8. | B111: ADMINISTRATIVE COSTS | D111: =#REF! ->  | E111: of Modified total direct costs | H111: =ROUND(J90+J63+J75+N83+(SUM(I105:I106)),0) -> 0 | J111: =ROUND(H111*D111,0) -> 
A113: 9. | B113: TOTAL ESTIMATED COST | J113: =ROUND(J109+J111,0) -> 
A115: BUDGET NOTES:
A117: All facilities and equipment necessary to accomplish the required work are available.
A118: The Texas A&M University System serves people of all ages, regardless of socioeconomic level, race, color, sex, religion,
A119: disability or national origin.
A120: 1a. Clerical salaries are directly charged as the support required is significantly greater than the routine level of
A121: services provided by academic departments.
A122: 3. Travel M&IE is calculated at 75% on the first and last days of travel.
A123: 6a. Computer equipment usage fee and network support services is an established rate and is not charged indirect.
A124: 6a - 6l are established rates and not charged indirect.
A125: 8 excludes 2, 4 each part above $25,000 and 6a - 6l.
T127: =ROUND(P127*R127,0) -> 0
T128: 0
T129: 0
T130: 0
T131: 0
T132: 0
T133: 0
T134: 0
T135: 0
T136: 0
T137: 0
T138: 0
T139: 0
T140: 0
T141: 0
T142: 0
T144: =ROUND(P144*R144,0) -> 0
T145: 0
T146: 0
T147: 0
T148: 0
T149: 0
T150: 0
T151: 0
T152: 0
T153: 0
T154: 0
T155: 0
T156: 0
I170: =ROUND(E170*G170,0) -> 0
I171: 0
I172: 0
I173: 0
I174: 0
I175: 0
I176: 0
I177: 0
I178: 0
I179: 0
I180: 0
I181: 0

Sheet FY 2018 federal (hidden)
C1: professional esc:
D2: 9/1/16 -08/31/17 | F2: 0 | G2: =F2*1 -> 0
D3: 9/1/17 -08/31/18 | F3: 12 | G3: =F3*1.03 -> 12.36
D4: 9/1/18 -08/31/19 | F4: 0 | G4: =F4*1.03*1.03 -> 0
D5: 9/1/19 -08/31/20 | F5: 0 | G5: =F5*1.03*1.03*1.03 -> 0
D6: 9/1/20 -08/31/21 | F6: 0 | G6: =F6*1.03*1.03*1.03*1.03 -> 0
D7: 9/1/21 -08/31/22 | F7: 0 | G7: =F7*1.03*1.03*1.03*1.03*1.03 -> 0
D9: Total months | F9: =SUM(F2:F7) -> 12 | G9: =SUM(G2:G7) -> 12.36 | I9: =G9/F9 -> 1.03
D11: Ave pro esc | G11: =(G9/F9)-1 -> 0.03
C12: NOTE: IF THIS SHEET USED, YOU WILL NEED TO FIX LINKS TO ROUTING, ETC.
A13: Remember human subject forms are required more often than you might think
A14: ESTIMATED BUDGET FOR THE TEXAS A&M TRANSPORTATION INSTITUTE
A16: Title: | B16: =#REF! ->  | J16: =(#REF!&" " &#REF!) -> 
B17: =#REF! ->  | J17: =(#REF!&" " &#REF!) -> 
A18: Sponsor: | C18: =#REF! -> 
A19: Proposed Budget Period: | D19: =#REF! ->  | E19: to | F19: =#REF! -> 
A22: 1. | B22: DIRECT LABOR | F22: % Effort | G22: Est. Hours | H22: Rate/Hour | I22: Est Cost | J22: Est Cost
B23: a. | C23: Salaries and Wages | L23: Insert Hourly
C24: NAME | D24: TITLE | L24: Rate Here | M24: Escalated Rate
C25: Insert Name | D25: Principal Investigator | F25: =($G25/174)/$F$9 -> 0 | G25: 0 | H25: =M25 -> 0 | I25: =ROUND(H25*G25,0) -> 0 | L25: 0 | M25: =ROUND(L25*$I$9,2) -> 0
C27: Insert Name | F27: =($G27/174)/$F$9 -> 0 | G27: 0 | H27: =M27 -> 0 | I27: =ROUND(H27*G27,0) -> 0 | L27: 0 | M27: =ROUND(L27*$I$9,2) -> 0
C29: Insert Name | F29: =($G29/174)/$F$9 -> 0 | G29: 0 | H29: =M29 -> 0 | I29: =ROUND(H29*G29,0) -> 0 | L29: 0 | M29: =ROUND(L29*$I$9,2) -> 0
C31: Insert Name | F31: =($G31/174)/$F$9 -> 0 | G31: 0 | H31: =M31 -> 0 | I31: =ROUND(H31*G31,0) -> 0 | L31: 0 | M31: =ROUND(L31*$I$9,2) -> 0
C33: Insert Name | F33: =($G33/174)/$F$9 -> 0 | G33: 0 | H33: =M33 -> 0 | I33: =ROUND(H33*G33,0) -> 0 | L33: 0 | M33: =ROUND(L33*$I$9,2) -> 0
C35: Insert Name | F35: =($G35/174)/$F$9 -> 0 | G35: 0 | H35: =M35 -> 0 | I35: =ROUND(H35*G35,0) -> 0 | L35: 0 | M35: =ROUND(L35*$I$9,2) -> 0
C37: Insert Name | F37: =($G37/174)/$F$9 -> 0 | G37: 0 | H37: =M37 -> 0 | I37: =ROUND(H37*G37,0) -> 0 | L37: 0 | M37: =ROUND(L37*$I$9,2) -> 0
C39: Insert Name | F39: =($G39/174)/$F$9 -> 0 | G39: 0 | H39: =M39 -> 0 | I39: =ROUND(H39*G39,0) -> 0 | L39: 0 | M39: =ROUND(L39*$I$9,2) -> 0
C41: Insert Name | F41: =($G41/174)/$F$9 -> 0 | G41: 0 | H41: =M41 -> 0 | I41: =ROUND(H41*G41,0) -> 0 | L41: 0 | M41: =ROUND(L41*$I$9,2) -> 0
C43: Insert Name | F43: =($G43/174)/$F$9 -> 0 | G43: 0 | H43: =M43 -> 0 | I43: =ROUND(H43*G43,0) -> 0 | L43: 0 | M43: =ROUND(L43*$I$9,2) -> 0 | O43: no tuition rate/hour | Q43: tuition rate/hour
C45: Insert Name | D45: Grad. Res. Asst. (Ph.D) | F45: =($G45/87)/$F$9 -> 0 | G45: 0 | H45: =M45 -> 0 | I45: =H45*G45 -> 0 | L45: 0 | M45: =ROUND(L45*$I$9,2) -> 0 | N45: PhD | O45: 24.25 | Q45: 18.39
C47: Insert Name | D47: Grad. Res. Asst. (Masters) | F47: =($G47/87)/$F$9 -> 0 | G47: 0 | H47: =M47 -> 0 | I47: =ROUND(H47*G47,0) -> 0 | L47: 0 | M47: =ROUND(L47*$I$9,2) -> 0 | N47: MS | O47: 23.1 | Q47: 17.24
C49: Insert Name | D49: Undergraduate Student | F49: =($G49/87)/$F$9 -> 0 | G49: 0 | H49: =M49 -> 0 | I49: =ROUND(H49*G49,0) -> 0 | L49: 0 | M49: =ROUND(L49*$I$9,2) -> 0 | N49: ME | O49: 21.95 | Q49: 16.09
E51: Subtotal Hours / Salaries | G51: =SUM(G25:G49) -> 0 | I51: =SUM(I25:I49) -> 0 | N51: =SUM(I25:I49) -> 0
B54: b. | C54: Employee Fringe Benefits
C55: 0.175 | D55: of Salaries and Wages (Staff) | I55: =ROUND(((N51)-((I45+I47+I49)))*C55,0) -> 0
C56: 0.031 | D56: of Salaries and Wages (Students) | I56: =ROUND(((I45+I47+I49))*C56,0) -> 0
C57: 745 | D57: Health Insurance (Staff person/month) | I57: =ROUND(((G51-G47-G45-G49)/174)*C57,0) -> 0
C58: 193 | D58: Health Insurance (Graduate Student/month) | I58: =ROUND(((G45+G47)/87)*C58,0) -> 0
E60: Subtotal Fringe Benefits | I60: =SUM(I55:I58) -> 0
D63: Total Direct Labor Costs (a+b) | J63: =ROUND(SUM(I51+I60),0) -> 0
A65: 2. | B65: EQUIPMENT | J65: 0
A67: 3. | B67: TRAVEL | N67: Per Diem Link
B68: Purpose and destination of travel | N68: Meals are calculated at 75% first and last day of travel, for example: 1 trip x 1 person x 2 days @ $71, use formula: =1*1*2*(71*0.75), for a total of $106.50.
D69: Number of Round Trips | E69: Miles per Round Trip | F69: Number of Days | G69: Number of People | H69: Rate
B70: a. | C70: Mileage | H70: 0.535 | I70: =ROUND(SUM(D70*E70*H70),0) -> 0
B71: b. | C71: Rental Car | H71: 36 | I71: =ROUND(SUM(D71*F71*H71),0) -> 0
B72: c. | C72: Meals | H72: 51 | I72: =ROUND(SUM(D72*F72*G72*H72),0) -> 0
B73: d. | C73: Lodging | H73: 89 | I73: =ROUND(SUM(D73*F73*G73*H73),0) -> 0
B74: e. | C74: Airfare | H74: 600 | I74: =ROUND(SUM(D74*G74*H74),0) -> 0
D75: Total Travel | J75: =ROUND(SUM(I70:I74),0) -> 0
A77: 4. | B77: SUBCONTRACTS
B78: a. | C78: Insert Subcontractor Name | I78: 0 | N78: =IF(I78>25000,25000,I78) -> 0
B79: b. | C79: Insert Subcontractor Name | I79: 0 | N79: =IF(I79>25000,25000,I79) -> 0
B80: c. | C80: Insert Subcontractor Name | I80: 0 | N80: =IF(I80>25000,25000,I80) -> 0
B81: d. | C81: Insert Subcontractor Name | I81: 0 | N81: =IF(I81>25000,25000,I81) -> 0
B82: e. | C82: Insert Subcontractor Name | I82: 0 | N82: =IF(I82>25000,25000,I82) -> 0
D83: Total Subcontracts | J83: =SUM(I78:I82) -> 0 | N83: =SUM(N78:N82) -> 0
A85: 5. | B85: DIRECT MATERIALS
B86: a. | C86: Research Supplies | I86: 0
B87: b. | C87: lab/research supplies | I87: 0
B88: c. | C88: [description] | I88: 0
B89: d. | C89: [description] | I89: 0
D90: Total Direct Materials | J90: =SUM(I86:I89) -> 0
A92: 6. | B92: OTHER DIRECT COSTS | N92: Current Service Center Rate Sheet
B93: a. | C93: Computer Operations @ $225/staff-month | I93: =ROUND(((G51-G45-G47-G49)/174)*225,0) -> 0
B94: b. | C94: Electro-Mechanical Res. Instrumentation | E94: 0 | F94: hours @ | G94: 57 | I94: =ROUND(E94*G94,0) -> 0
B95: c. | C95: Construction Section Services | E95: 0 | F95: hours @ | G95: 55 | I95: 0
B96: d. | C96: Evaluation/Reporting & Photographic Res. | E96: 0 | F96: hours @ | G96: 85 | I96: 0
B97: e. | C97: Eagle Aerial Lift Trailer | E97: 0 | F97: uses @ | G97: 150 | I97: 0
B98: f. | C98: Push-Pull Tractor Trailer | E98: 0 | F98: tests @ | G98: 631 | I98: 0
B99: g. | C99: Water Tank Trailer | E99: 0 | F99: hours @ | G99: 25 | I99: 0
B100: h. | C100: Surrogate Vehicle Testing | E100: 0 | F100: tests @ | G100: 145 | I100: 0
B101: i. | C101: Computer Simulation Computation | E101: 0 | F101: hours @ | G101: 1.14 | I101: 0
B102: j. | C102: Crash Test Vehicle - 820 kg Passenger Car | E102: 0 | F102: each @ | G102: 9347 | I102: 0
B103: k. | C103: Crash Test Vehicle - Pickup Truck-Quad Cab | E103: 0 | F103: each @ | G103: 12149 | I103: 0
B104: l. | C104: Tuition | E104: 0 | F104: hours @ | G104: 390 | I104: 0
B105: m. | C105: Reproduction | I105: 0
B106: n. | C106: [description] | I106: 0
D107: Total Other Direct Costs | J107: =ROUND(SUM(I93:I106),0) -> 0
A109: 7. | B109: TOTAL DIRECT COST | J109: =ROUND(SUM(J63:J107),0) -> 0 | N109: =J109-25000 -> -25000
A111: 8. | B111: ADMINISTRATIVE COSTS | D111: =#REF! ->  | E111: of Modified total direct costs | H111: =ROUND(J90+J63+J75+N83+(SUM(I105:I106)),0) -> 0 | J111: =ROUND(H111*D111,0) -> 
A113: 9. | B113: TOTAL ESTIMATED COST | J113: =ROUND(J109+J111,0) -> 
A115: BUDGET NOTES:
A117: All facilities and equipment necessary to accomplish the required work are available.
A118: The Texas A&M University System serves people of all ages, regardless of socioeconomic level, race, color, sex, religion,
A119: disability or national origin.
A120: 1a. Clerical salaries are directly charged as the support required is significantly greater than the routine level of
A121: services provided by academic departments.
A122: 3. Travel M&IE is calculated at 75% on the first and last days of travel.
A123: 6a. Computer equipment usage fee and network support services is an established rate and is not charged indirect.
A124: 6a - 6l are established rates and not charged indirect.
A125: 8 excludes 2, 4 each part above $25,000 and 6a - 6l.
T127: =ROUND(P127*R127,0) -> 0
T128: 0
T129: 0
T130: 0
T131: 0
T132: 0
T133: 0
T134: 0
T135: 0
T136: 0
T137: 0
T138: 0
T139: 0
T140: 0
T141: 0
T142: 0
T144: =ROUND(P144*R144,0) -> 0
T145: 0
T146: 0
T147: 0
T148: 0
T149: 0
T150: 0
T151: 0
T152: 0
T153: 0
T154: 0
T155: 0
T156: 0
I170: =ROUND(E170*G170,0) -> 0
I171: 0
I172: 0
I173: 0
I174: 0
I175: 0
I176: 0
I177: 0
I178: 0
I179: 0
I180: 0
I181: 0

Sheet budg-fhwa format w-Cost Share (hidden)
C1: professional esc:
D2: 9/1/16 -08/31/17 | F2: 12 | G2: =F2*1 -> 12
D3: 9/1/17 -08/31/18 | F3: 0 | G3: =F3*1.03 -> 0
D4: 9/1/18 -08/31/19 | F4: 0 | G4: =F4*1.03*1.03 -> 0
D5: 9/1/19 -08/31/20 | F5: 0 | G5: =F5*1.03*1.03*1.03 -> 0
D6: 9/1/20 -08/31/21 | F6: 0 | G6: =F6*1.03*1.03*1.03*1.03 -> 0
D7: 9/1/21 -08/31/22 | F7: 0 | G7: =F7*1.03*1.03*1.03*1.03*1.03 -> 0
D9: Total months | F9: =SUM(F2:F7) -> 12 | G9: =SUM(G2:G7) -> 12 | I9: =G9/F9 -> 1
D11: Ave pro esc | G11: =(G9/F9)-1 -> 0
C12: NOTE: IF THIS SHEET USED, YOU WILL NEED TO FIX LINKS TO ROUTING, ETC.
A13: Remember human subject forms are required more often than you might think
A14: ESTIMATED BUDGET FOR THE TEXAS A&M TRANSPORTATION INSTITUTE
A16: Title: | B16: =#REF! ->  | K16: =(#REF!&" " &#REF!) -> 
B17: =#REF! ->  | K17: =(#REF!&" " &#REF!) -> 
A18: Sponsor: | C18: =#REF! -> 
A19: Proposed Budget Period: | D19: =#REF! ->  | E19: to | F19: =#REF! -> 
J20: Cost Share
K21: Rate/Hour
A22: 1. | B22: DIRECT LABOR | F22: % Effort | G22: Est. Hours | H22: Rate/Hour | I22: Est Cost | J22: Est. Hours | L22: Est Cost
B23: a. | C23: Salaries and Wages | N23: Insert Hourly
C24: NAME | D24: TITLE | N24: Rate Here | O24: Escalated Rate
C25: Insert Name | D25: Principal Investigator | F25: =($G25/174)/$F$9 -> 0 | G25: 0 | H25: =O25 -> 0 | I25: =ROUND(H25*G25,0) -> 0 | J25: 0 | K25: =O25 -> 0 | L25: =ROUND(K25*J25,0) -> 0 | N25: 0 | O25: =ROUND(N25*$I$9,2) -> 0
C27: Insert Name | F27: =($G27/174)/$F$9 -> 0 | G27: 0 | H27: =O27 -> 0 | I27: =ROUND(H27*G27,0) -> 0 | J27: 0 | K27: =O27 -> 0 | L27: =ROUND(K27*J27,0) -> 0 | N27: 0 | O27: =ROUND(N27*$I$9,2) -> 0
C29: Insert Name | F29: =($G29/174)/$F$9 -> 0 | G29: 0 | H29: =O29 -> 0 | I29: =ROUND(H29*G29,0) -> 0 | J29: 0 | K29: =O29 -> 0 | L29: =ROUND(K29*J29,0) -> 0 | N29: 0 | O29: =ROUND(N29*$I$9,2) -> 0
C31: Insert Name | F31: =($G31/174)/$F$9 -> 0 | G31: 0 | H31: =O31 -> 0 | I31: =ROUND(H31*G31,0) -> 0 | J31: 0 | K31: =O31 -> 0 | L31: =ROUND(K31*J31,0) -> 0 | N31: 0 | O31: =ROUND(N31*$I$9,2) -> 0
C33: Insert Name | F33: =($G33/174)/$F$9 -> 0 | G33: 0 | H33: =O33 -> 0 | I33: =ROUND(H33*G33,0) -> 0 | J33: 0 | K33: =O33 -> 0 | L33: =ROUND(K33*J33,0) -> 0 | N33: 0 | O33: =ROUND(N33*$I$9,2) -> 0
C35: Insert Name | F35: =($G35/174)/$F$9 -> 0 | G35: 0 | H35: =O35 -> 0 | I35: =ROUND(H35*G35,0) -> 0 | J35: 0 | K35: =O35 -> 0 | L35: =ROUND(K35*J35,0) -> 0 | N35: 0 | O35: =ROUND(N35*$I$9,2) -> 0
C37: Insert Name | F37: =($G37/174)/$F$9 -> 0 | G37: 0 | H37: =O37 -> 0 | I37: =ROUND(H37*G37,0) -> 0 | J37: 0 | K37: =O37 -> 0 | L37: =ROUND(K37*J37,0) -> 0 | N37: 0 | O37: =ROUND(N37*$I$9,2) -> 0
C39: Insert Name | F39: =($G39/174)/$F$9 -> 0 | G39: 0 | H39: =O39 -> 0 | I39: =ROUND(H39*G39,0) -> 0 | J39: 0 | K39: =O39 -> 0 | L39: =ROUND(K39*J39,0) -> 0 | N39: 0 | O39: =ROUND(N39*$I$9,2) -> 0
C41: Insert Name | F41: =($G41/174)/$F$9 -> 0 | G41: 0 | H41: =O41 -> 0 | I41: =ROUND(H41*G41,0) -> 0 | J41: 0 | K41: =O41 -> 0 | L41: =ROUND(K41*J41,0) -> 0 | N41: 0 | O41: =ROUND(N41*$I$9,2) -> 0
C43: Insert Name | F43: =($G43/174)/$F$9 -> 0 | G43: 0 | H43: =O43 -> 0 | I43: =ROUND(H43*G43,0) -> 0 | J43: 0 | K43: =O43 -> 0 | L43: =ROUND(K43*J43,0) -> 0 | N43: 0 | O43: =ROUND(N43*$I$9,2) -> 0 | Q43: no tuition rate/hour | S43: tuition rate/hour
C45: to be named | D45: Grad. Res. Asst. (Ph.D) | F45: =($G45/87)/$F$9 -> 0 | G45: 0 | H45: =O45 -> 0 | I45: =H45*G45 -> 0 | J45: 0 | K45: =O45 -> 0 | L45: =K45*J45 -> 0 | N45: 0 | O45: =ROUND(N45*$I$9,2) -> 0 | P45: PhD | Q45: 24.25 | S45: 18.39 | U45: =1600/87 -> 18.3908046 | V45: + tuition
C47: to be named | D47: Grad. Res. Asst. (Masters) | F47: =($G47/87)/$F$9 -> 0 | G47: 0 | H47: =O47 -> 0 | I47: =ROUND(H47*G47,0) -> 0 | J47: 0 | K47: =O47 -> 0 | L47: =ROUND(K47*J47,0) -> 0 | N47: 0 | O47: =ROUND(N47*$I$9,2) -> 0 | P47: MS | Q47: 23.1 | S47: 17.24 | U47: =1400/87 -> 16.09195402 | V47: + tuition
C49: To be named | D49: Undergraduate Student | F49: =($G49/87)/$F$9 -> 0 | G49: 0 | H49: =O49 -> 0 | I49: =ROUND(H49*G49,0) -> 0 | J49: 0 | K49: =O49 -> 0 | L49: =ROUND(K49*J49,0) -> 0 | N49: 0 | O49: =ROUND(N49*$I$9,2) -> 0 | P49: ME | Q49: 21.95 | S49: 16.09
E51: Subtotal Hours / Salaries | G51: =SUM(G25:G49) -> 0 | I51: =SUM(I25:I49) -> 0 | J51: =SUM(J25:J49) -> 0 | L51: =SUM(L25:L49) -> 0 | P51: =SUM(I25:I49) -> 0 | Q51: =SUM(L25:L49) -> 0
B54: b. | C54: Employee Fringe Benefits
C55: 0.175 | D55: of Salaries and Wages (Staff) | I55: =ROUND(((P51)-((I45+I47+I49)))*C55,0) -> 0 | L55: =ROUND(((Q51)-((L45+L47+L49)))*C55,0) -> 0
C56: 0.031 | D56: of Salaries and Wages (Students) | I56: =ROUND(((I45+I47+I49))*C56,0) -> 0 | L56: =ROUND(((L45+L47+L49))*C56,0) -> 0
C57: 745 | D57: Health Insurance (Staff person/month) | I57: =ROUND(((G51-G47-G45-G49)/174)*C57,0) -> 0 | L57: =ROUND(((L51-L47-L45-L49)/174)*C57,0) -> 0
C58: 193 | D58: Health Insurance (Graduate Student/month) | I58: =ROUND(((G45+G47)/87)*C58,0) -> 0 | L58: =ROUND(((L45+L47)/87)*C58,0) -> 0
E60: Subtotal Medical Insurance Cost | I60: =SUM(I55:I58) -> 0 | L60: =SUM(L55:L58) -> 0
D62: Total Direct Labor Costs (a+b+c) | I62: =ROUND(SUM(I51+I60),0) -> 0 | L62: =ROUND(SUM(L51+L60),0) -> 0 | Q62: Meals are calculated at 75% first and last day of travel, for example: 1 trip x 1 person x 2 days @ $71, use formula: =1*1*2*(71*0.75), for a total of $106.50.
A64: 2. | B64: EQUIPMENT | I64: 0 | L64: 0
A66: 3. | B66: TRAVEL | P66: Per Diem Link
B67: Purpose and destination of travel
D68: Number of Round Trips | E68: Miles per Round Trip | F68: Number of Days | G68: Number of People | H68: Rate
B69: a. | C69: Mileage | H69: 0.535 | I69: =ROUND(SUM(D69*E69*H69),0) -> 0 | L69: 0
B70: b. | C70: Rental Car | H70: 36 | I70: =ROUND(SUM(D70*F70*H70),0) -> 0 | L70: 0
B71: c. | C71: Meals | H71: 51 | I71: =ROUND(SUM(D71*F71*G71*H71),0) -> 0 | L71: 0
B72: d. | C72: Lodging | H72: 89 | I72: =ROUND(SUM(D72*F72*G72*H72),0) -> 0 | L72: 0
B73: e. | C73: Airfare | H73: 600 | I73: =ROUND(SUM(D73*G73*H73),0) -> 0 | L73: 0
D74: Total Travel | I74: =ROUND(SUM(I68:I73),0) -> 0 | L74: =ROUND(SUM(L69:L73),0) -> 0
A76: 4. | B76: SUBCONTRACTS | P76: Cost Share
B77: a. | C77: Insert Subcontractor Name | I77: 0 | L77: 0 | O77: =IF(I77>25000,25000,I77) -> 0 | P77: =IF(L77>25000,25000,J77) -> 0
B78: b. | C78: Insert Subcontractor Name | I78: 0 | L78: 0 | O78: =IF(I78>25000,25000,I78) -> 0 | P78: =IF(L78>25000,25000,J78) -> 0
B79: c. | C79: Insert Subcontractor Name | I79: 0 | L79: 0 | O79: =IF(I79>25000,25000,I79) -> 0 | P79: =IF(L79>25000,25000,J79) -> 0
B80: d. | C80: Insert Subcontractor Name | I80: 0 | L80: 0 | O80: =IF(I80>25000,25000,I80) -> 0 | P80: =IF(L80>25000,25000,J80) -> 0
B81: e. | C81: Insert Subcontractor Name | I81: 0 | L81: 0 | O81: =IF(I81>25000,25000,I81) -> 0 | P81: =IF(L81>25000,25000,J81) -> 0
D82: Total Subcontracts | I82: =SUM(I77:I81) -> 0 | L82: =SUM(L77:L81) -> 0 | O82: =SUM(O77:O81) -> 0 | P82: =SUM(P77:P81) -> 0
A84: 5. | B84: DIRECT MATERIALS
B85: a. | C85: Research Supplies | I85: 0 | L85: 0
B86: b. | C86: lab/research supplies | I86: 0 | L86: 0
B87: c. | C87: [description] | I87: 0 | L87: 0
B88: d. | C88: [description] | I88: 0 | L88: 0
D89: Total Direct Materials | I89: =SUM(I85:I88) -> 0 | L89: =SUM(L85:L88) -> 0
A91: 6. | B91: OTHER DIRECT COSTS | P91: Current Service Center Rate Sheet
B92: a. | C92: Computer Operations @ $225/staff-month | I92: =ROUND(((G51-G45-G47-G49)/174)*225,0) -> 0 | L92: =ROUND(((J51-J45-J47-J49)/174)*225,0) -> 0
B93: b. | C93: Electro-Mechanical Res. Instrumentation | E93: 0 | F93: hours @ | G93: 57 | I93: =ROUND(E93*G93,0) -> 0 | L93: 0
B94: c. | C94: Construction Section Services | E94: 0 | F94: hours @ | G94: 55 | I94: 0 | L94: 0
B95: d. | C95: Evaluation/Reporting & Photographic Res. | E95: 0 | F95: hours @ | G95: 85 | I95: 0 | L95: 0
B96: e. | C96: Eagle Aerial Lift Trailer | E96: 0 | F96: uses @ | G96: 150 | I96: 0 | L96: 0
B97: f. | C97: Push-Pull Tractor Trailer | E97: 0 | F97: tests @ | G97: 631 | I97: 0 | L97: 0
B98: g. | C98: Water Tank Trailer | E98: 0 | F98: hours @ | G98: 25 | I98: 0 | L98: 0
B99: h. | C99: Surrogate Vehicle Testing | E99: 0 | F99: tests @ | G99: 145 | I99: 0 | L99: 0
B100: i. | C100: Computer Simulation Computation | E100: 0 | F100: hours @ | G100: 1.14 | I100: 0 | L100: 0
B101: j. | C101: Crash Test Vehicle - 820 kg Passenger Car | E101: 0 | F101: each @ | G101: 9347 | I101: 0 | L101: 0
B102: k. | C102: Crash Test Vehicle - Pickup Truck-Quad Cab | E102: 0 | F102: each @ | G102: 12149 | I102: 0 | L102: 0
B103: l. | C103: Tuition | E103: 0 | F103: hours @ | G103: 390 | I103: 0 | L103: 0
B104: m. | C104: Reproduction | I104: 0 | L104: 0
B105: n. | C105: [description] | I105: 0 | L105: 0
D106: Total Other Direct Costs | I106: =ROUND(SUM(I92:I105),0) -> 0 | L106: =ROUND(SUM(L92:L105),0) -> 0
A108: 7. | B108: TOTAL DIRECT COST | I108: =ROUND(SUM(J62:J106),0) -> 0 | L108: =SUM(L25:L105) -> 0 | P108: =I108-25000 -> -25000
A110: 8. | B110: ADMINISTRATIVE COSTS | D110: =#REF! ->  | E110: of Modified total direct costs | H110: =ROUND(I89+I62+I74+O82+(SUM(I104:I105)),0) -> 0 | I110: =ROUND(H110*0.485,0) -> 0 | L110: =L108*0.485 -> 0
A112: 9. | B112: TOTAL ESTIMATED COST | I112: =ROUND(I108+I110,0) -> 0 | L112: =L108+L110 -> 0
A114: BUDGET NOTES:
A116: All facilities and equipment necessary to accomplish the required work are available.
A117: The Texas A&M University System serves people of all ages, regardless of socioeconomic level, race, color, sex, religion,
A118: disability or national origin.
A119: 1a. Clerical salaries are directly charged as the support required is significantly greater than the routine level of
A120: services provided by academic departments.
A121: 3. Travel M&IE is calculated at 75% on the first and last days of travel.
A122: 6a. Computer equipment usage fee and network support services is an established rate and is not charged indirect.
A123: 6a - 6l are established rates and not charged indirect.
A124: 8 excludes 2, 4 each part above $25,000 and 6a - 6l.
C126: Video Operations | P126: Research Equipment & Testing Facilities | V126: =ROUND(R126*T126,0) -> 0
C127: Video Post Production | F127: 0 | G127: hours @ | H127: 60 | I127: =ROUND(F127*H127,0) -> 0 | P127: Diesel Powered Probe | R127: 0 | S127: hours @ | T127: 200 | V127: 0
C128: Location Shoot Operations | F128: 0 | G128: hours @ | H128: 80 | I128: 0 | P128: XRD-Optical Microscope (OM) | R128: 0 | S128: hours @ | T128: 20 | V128: 0
C129: Music Royalties (per minute) | F129: 0 | G129: hours @ | H129: 58 | I129: 0 | P129: Overlay Tester | R129: 0 | S129: tests @ | T129: 160 | V129: 0
C130: Digital Media Production | F130: 0 | G130: hours @ | H130: 14 | I130: 0 | P130: Falling Weight Calibration Center | R130: 0 | S130: cals @ | T130: 800 | V130: 0
C131: Video Production Specialists | F131: 0 | G131: hours @ | H131: 56 | I131: 0 | P131: Conductivity Meter | R131: 0 | S131: samples @ | T131: 20 | V131: 0
C132: Photographic Equipment | F132: 0 | G132: hours @ | H132: 15 | I132: 0 | P132: Video Equipment | R132: 0 | S132: hours @ | T132: 12 | V132: 0
C133: Photographer | F133: 0 | G133: hours @ | H133: 50 | I133: 0 | P133: Material Testing System: Contract Research | R133: 0 | S133: hours @ | T133: 30 | V133: 0
C134: Graphic Design Services - sponsored projects | F134: 0 | G134: hours @ | H134: 65 | I134: 0 | P134: Soil Drilling & Testing: Density Testing | R134: 0 | S134: tests @ | T134: 10 | V134: 0
C135: Graphic Design Services - TAMU/System Dept projects | F135: 0 | G135: hours @ | H135: 68 | I135: 0 | P135: Soil Drilling & Testing: Drilling SYSTEM | R135: 0 | S135: days @ | T135: 100 | V135: 0
C136: Graphic Presentation Services | F136: 0 | G136: hours @ | H136: 55 | I136: 0 | P136: Soil Drilling & Testing: Conditioner Box | R136: 0 | S136: days @ | T136: 30 | V136: 0
C137: Video Effects and DVD Production | F137: 0 | G137: hours @ | H137: 48 | I137: 0 | P137: Soil Drilling & Testing: Data System | R137: 0 | S137: days @ | T137: 50 | V137: 0
C138: Graphic Presentation Services | F138: 0 | G138: hours @ | H138: 55 | I138: 0 | P138: UTM 25 Servo Hydraulic Testing System | R138: 0 | S138: hours @ | T138: 30 | V138: 0
P139: Capacitance-Based Pavement Density Systems | R139: 0 | S139: tests @ | T139: 42 | V139: 0
P140: Driving Simulator | R140: 0 | S140: hours @ | T140: 60 | V140: 0
P141: TTI Rail Tunnel | R141: 0 | S141: days @ | T141: 4300 | V141: 0
P142: Highlander Research Vehicle | R142: 0 | S142: days @ | T142: 36
P143: Petrographic Microscope Analysis | R143: 0 | S143: samples @ | T143: 20 | V143: =ROUND(R143*T143,0) -> 0
P144: TTI Model & Machining Ctr-w/Machinest | R144: 0 | S144: hours @ | T144: 52 | V144: 0
P145: TTI Model & Machining Ctr-w/o Machinest | R145: 0 | S145: hours @ | T145: 25 | V145: 0
P146: TTI Model & Machining Non-Shop Related Work | R146: 0 | S146: hours @ | T146: 39 | V146: 0
P147: Ground Penetrating Radar | R147: 0 | S147: hours @ | T147: 115 | V147: 0
P148: Tractor/Forklift | R148: 0 | S148: hours @ | T148: 20 | V148: 0
P149: Inertial Profiler | R149: 0 | S149: hours @ | T149: 120 | V149: 0
P150: Dynamic Shear Rheometer | R150: 0 | S150: hours @ | T150: 40 | V150: 0
P151: SHRP Bending Beam Rheometer | R151: 0 | S151: hours @ | T151: 40 | V151: 0
P152: Advanced Soils & Aggregates Lab | R152: 0 | S152: samples @ | T152: 1500 | V152: 0
P153: Auto Asphalt Pavement Analyzer | R153: 0 | S153: hours @ | T153: 40 | V153: 0
P154: Erosion Function Apparatus Testing (basic testing) | R154: 0 | S154: tests @ | T154: 1200 | V154: 0
P155: Erosion Function Apparatus Testing (salt water) | R155: 0 | S155: tests @ | T155: 1500 | V155: 0
I169: =ROUND(E169*G169,0) -> 0
I170: 0
I171: 0
I172: 0
I173: 0
I174: 0
I175: 0
I176: 0
I177: 0
I178: 0
I179: 0
I180: 0

Sheet budg-IAC format (hidden)
B1: For hourly rate information, please check with your RDO Rep.
B2: professional esc:
B3: 9/1/16 -08/31/17 | E3: 12 | G3: =E3*1 -> 12
B4: 9/1/17 -08/31/18 | E4: 0 | G4: =E4*1.03 -> 0
B5: 9/1/18 -08/31/19 | E5: 0 | G5: =E5*1.03*1.03 -> 0
B6: 9/1/19 -08/31/20 | E6: 0 | G6: =E6*1.03*1.03*1.03 -> 0
B7: 9/1/20 -08/31/21 | E7: 0 | G7: =E7*1.03*1.03*1.03*1.03 -> 0
B9: Total months | E9: =SUM(E3:E7) -> 12 | G9: =SUM(G3:G7) -> 12
B11: Ave pro esc | G11: =(G9/E9)-1 -> 0 | H11: =G11+1 -> 1
A12: DO NOT CHANGE | B12: REMEMBER TO FILL IN THE APPROPRIATE MONTHS IN THE ESCALATION PORTION ABOVE.
A13: TITLES | G13: Current | H13: Hr. Rate
A14: Employee Title | B14: Professional | E14: Hours | G14: Hr. Rate | H14: w/Escalat. | J14: Total Salaries
A15: Insert Title | B15: researcher name | E15: 0 | G15: 0 | H15: =ROUND(G15*$H$11,2) -> 0 | J15: =ROUND(H15*E15,0) -> 0
A16: Insert Title | B16: researcher name | E16: 0 | G16: 0 | H16: =ROUND(G16*$H$11,2) -> 0 | J16: 0
A17: Insert Title | B17: researcher name | E17: 0 | G17: 0 | H17: 0 | J17: 0
A18: Insert Title | B18: researcher name | E18: 0 | G18: 0 | H18: =ROUND(G18*$H$11,2) -> 0 | J18: =ROUND(H18*E18,0) -> 0
A19: Insert Title | B19: researcher name | E19: 0 | G19: 0 | H19: 0 | J19: 0
A20: Insert Title | B20: researcher name | E20: 0 | G20: 0 | H20: 0 | J20: 0
A21: Insert Title | B21: researcher name | E21: 0 | G21: 0 | H21: 0 | J21: 0
A22: Insert Title | B22: researcher name | E22: 0 | G22: 0 | H22: 0 | J22: 0
A23: Insert Title | B23: researcher name | E23: 0 | G23: 0 | H23: 0 | J23: 0
B25: Subprofessional/Technical | E25: Hours | G25: Hr. Rate
A26: Insert Title | B26: Technical-Name | E26: 0 | G26: 0 | H26: =ROUND(G26*$H$11,2) -> 0 | J26: =ROUND(H26*E26,0) -> 0
A27: Insert Title | B27: Technical-Name | E27: 0 | G27: 0 | H27: =ROUND(G27*$H$11,2) -> 0 | J27: =ROUND(H27*E27,0) -> 0
A28: Insert Title | B28: Technical-Name | E28: 0 | G28: 0 | H28: 0 | J28: 0
A29: Insert Title | B29: Technical-Name | E29: 0 | G29: 0 | H29: 0 | J29: 0
A30: Insert Title | B30: Technical-Name | E30: 0 | G30: 0 | H30: 0 | J30: 0
A31: Insert Title | B31: Technical-Name | E31: 0 | G31: 0 | H31: =ROUND(G31*$H$11,2) -> 0 | J31: =ROUND(H31*E31,0) -> 0
B33: Clerical | E33: Hours | G33: Hr. Rate
A34: Insert Title | B34: Clerial Name | E34: 0 | G34: 0 | H34: =ROUND(G34*$H$11,2) -> 0 | J34: =ROUND(H34*E34,0) -> 0 | K34: * All Materials proposals must included
A35: Insert Title | B35: Clerial Name | E35: 0 | G35: 0 | H35: =ROUND(G35*$H$11,2) -> 0 | J35: =ROUND(H35*E35,0) -> 0 | K35: clerical. Materials PIs must contact Dave
K36: Newcomb if clerical is not budgeted.
B37: Students | E37: Hours | G37: Hr. Rate
A38: Graduate Student-PhD | B38: Graduate Student-PhD-Name | E38: 0 | G38: 0 | H38: =ROUND(G38*$H$11,2) -> 0 | J38: =ROUND(H38*E38,0) -> 0 | L38: *no tuition rate/hr | N38: *tuition rate/hr
A39: Graduate Student-Masters | B39: Graduate Student-Masters-Name | E39: 0 | G39: 0 | H39: =ROUND(G39*$H$11,2) -> 0 | J39: =ROUND(H39*E39,0) -> 0 | K39: PhD | L39: 24.25 | N39: 18.39
A40: Graduate Student-Masters | B40: Graduate Student-Masters-Name | E40: 0 | G40: 0 | H40: =ROUND(G40*$H$11,2) -> 0 | J40: =ROUND(H40*E40,0) -> 0 | K40: MS | L40: 23.1 | N40: 17.24
A41: Undergraduate Student | B41: Undergraduate Student-Name | E41: 0 | G41: 0 | H41: =ROUND(G41*$H$11,2) -> 0 | J41: =ROUND(H41*E41,0) -> 0
A42: Undergraduate Student | B42: Undergraduate Student-Name | E42: 0 | G42: 0 | H42: =ROUND(G42*$H$11,2) -> 0 | J42: =ROUND(H42*E42,0) -> 0 | K42: ME | L42: 21.95 | N42: 16.09
B43: Total Staff Mos | D43: =ROUND(((SUM(E15:E23))+(SUM(E34:E35))+(SUM(E26:E31)))/174,2) -> 0 | E43: Total Grad Mos | G43: =ROUND((SUM(E38:E40))/87,2) -> 0
B45: ATTACHMENT B
B46: ESTIMATED BUDGET FOR THE TEXAS A&M TRANSPORTATION INSTITUTE
B48: Estimated Budget thru Fyxx | L48: =(#REF!&" " &#REF!) -> 
B49: =#REF! ->  | L49: =(#REF!&" " &#REF!) -> 
B50: =#REF! -> 
B51: =#REF! -> 
B53: Description | H53: Est. Hours | I53: Hourly Rates | J53: Line Item Total | K53: Category Subtotals | L53: Total Est. Cost
B54: PERSONNEL
B55: Direct Costs | F55: Percent | G55: Est. Staff
C56: Salaries and Wages - Regular Time(1) | F56: Effort | G56: Mo.
C57: =A15 -> Insert Title | F57: =ROUND(H57/($E$9*174),2) -> 0 | G57: =ROUND(H57/174,2) -> 0 | H57: =E15 -> 0 | I57: =H15 -> 0 | J57: =ROUND(H57*I57,0) -> 0 | M57: Please fill in hours at the top
C58: Insert Title | F58: 0 | G58: 0 | H58: 0 | I58: 0 | J58: 0 | M58: of the spreadsheet!! (Column E)
C59: Insert Title | F59: 0 | G59: 0 | H59: 0 | I59: 0 | J59: 0
C60: Insert Title | F60: =ROUND(H60/($E$9*174),2) -> 0 | G60: =ROUND(H60/174,2) -> 0 | H60: 0 | I60: 0 | J60: =ROUND(H60*I60,0) -> 0
C61: Insert Title | F61: 0 | G61: 0 | H61: 0 | I61: 0 | J61: 0
C62: Insert Title | F62: 0 | G62: 0 | H62: 0 | I62: 0 | J62: 0
C63: Insert Title | F63: 0 | G63: 0 | H63: 0 | I63: 0 | J63: 0
C64: Insert Title | F64: 0 | G64: 0 | H64: 0 | I64: 0 | J64: 0
C65: Insert Title | F65: 0 | G65: 0 | H65: 0 | I65: 0 | J65: 0
C66: =A26 -> Insert Title | F66: 0 | G66: 0 | H66: =E26 -> 0 | I66: =H26 -> 0 | J66: 0
C67: Insert Title | F67: =ROUND(H67/($E$9*174),2) -> 0 | G67: =ROUND(H67/174,2) -> 0 | H67: 0 | I67: 0 | J67: =ROUND(H67*I67,0) -> 0
C68: Insert Title | F68: 0 | G68: 0 | H68: 0 | I68: 0 | J68: 0
C69: Insert Title | F69: 0 | G69: 0 | H69: 0 | I69: 0 | J69: 0
C70: Insert Title | F70: 0 | G70: 0 | H70: 0 | I70: 0 | J70: 0
C71: Insert Title | F71: 0 | G71: 0 | H71: 0 | I71: 0 | J71: 0
C72: =A34 -> Insert Title | F72: 0 | G72: 0 | H72: =E34 -> 0 | I72: =H34 -> 0 | J72: 0
C73: =A35 -> Insert Title | F73: =ROUND(H73/($E$9*174),2) -> 0 | G73: =ROUND(H73/174,2) -> 0 | H73: =E35 -> 0 | I73: =H35 -> 0 | J73: =ROUND(H73*I73,0) -> 0
C74: Sub Total Faculty & Staff | K74: =ROUND(SUM(J57:J73),0) -> 0
C75: =A38 -> Graduate Student-PhD | F75: =ROUND(H75/($E$9*87),2) -> 0 | G75: =ROUND(H75/87,2) -> 0 | H75: 0 | I75: =H38 -> 0 | J75: 0
C76: =A39 -> Graduate Student-Masters | F76: 0 | G76: =ROUND(H76/87,2) -> 0 | H76: 0 | I76: =H39 -> 0 | J76: 0
C77: =A40 -> Graduate Student-Masters | F77: =ROUND(H77/($E$9*87),2) -> 0 | G77: =ROUND(H77/87,2) -> 0 | H77: =E40 -> 0 | I77: =H40 -> 0 | J77: =ROUND(H77*I77,0) -> 0
C78: Sub Total Grad Students | K78: =ROUND(SUM(J75:J77),0) -> 0
C79: =A41 -> Undergraduate Student | G79: =ROUND(H79/87,2) -> 0 | H79: =E41 -> 0 | I79: =H41 -> 0 | J79: =ROUND(H79*I79,0) -> 0
C80: =A42 -> Undergraduate Student | G80: =ROUND(H80/87,2) -> 0 | H80: =E42 -> 0 | I80: =H42 -> 0 | J80: =ROUND(H80*I80,0) -> 0
C81: Sub Total Undergraduate Students | K81: =ROUND(SUM(J79:J80),0) -> 0
C82: Total Salary and Wages | L82: =ROUND(SUM(J57:J79),0) -> 0
C83: Fringe Benefits(3) | H83: Staff Months | I83: Month Rate | J83: Line Item Total
C84: 0.175 | D84: of Salaries and Wages (Faculty & Staff) | J84: =ROUND(K74*C84,0) -> 0
C85: 0.031 | D85: of Salaries and Wages (Students) | J85: =ROUND((K78+K81)*C85,0) -> 0
D86: Health Insurance per staff month (Faculty & Staff) | H86: =D43 -> 0 | I86: 745 | J86: =ROUND(H86*I86,0) -> 0
D87: Health Insurance per staff month (Grad. Students) | H87: =G43 -> 0 | I87: 193 | J87: =ROUND(H87*I87,0) -> 0
C88: Total Fringe Benefits | L88: =ROUND(SUM(J84:J87),0) -> 0
C89: Travel and Per Diem (4)
D91: Number of Round Trips | E91: Miles per Round Trip | F91: Number of Days | G91: Number of People | H91: Total | I91: Rate | J91: Line Item Total | M91: Per Diem Link
C92: Mileage | E92: 0 | H92: =D92*E92 -> 0 | I92: 0.535 | J92: =ROUND(SUM(H92*I92),0) -> 0
C93: Mileage | H93: =D93*E93 -> 0 | I93: 0.56 | J93: =ROUND(SUM(H93*I93),0) -> 0
C94: Meals | H94: =D94*F94*G94 -> 0 | I94: 51 | J94: 0
C95: Lodging | H95: =D95*F95*G95 -> 0 | I95: 89 | J95: 0
C96: Rental Car | H96: =D96*F96*G96 -> 0 | I96: 65 | J96: 0
C97: Airfare | H97: =D97*G97 -> 0 | I97: 450 | J97: 0
C98: Total Travel and Per Diem | L98: =SUM(J92:J97) -> 0
C99: Capital Equipment | J99: 0
C100: Total Capital Equipment | L100: =ROUND(J99,0) -> 0
C101: Expendable Goods/Supplies (Provide breakdown of supplies)
C102: Research Supplies | J102: 0
C103: Computer Supplies | J103: 0
C104: Materials for Construction or Surveys, etc. | J104: 0
C105: Total Expendable Goods/Supplies | L105: =ROUND(SUM(J102:J104),0) -> 0
C106: Subcontract/Consultant (Do not include name) | M106: Do NOT Remove These Formulas
C107: Subcontractor to be named - insert description of services to be performed. | J107: 0 | M107: =IF(J107>25000,25000,J107) -> 0
C108: Subcontractor to be named - insert description of services to be performed. | J108: 0 | M108: =IF(J108>25000,25000,J108) -> 0
C109: Subcontractor to be named - insert description of services to be performed. | J109: 0 | M109: =IF(J109>25000,25000,J109) -> 0
C110: Subcontractor to be named - insert description of services to be performed. | J110: 0 | M110: =IF(J110>25000,25000,J110) -> 0
C111: Subcontractor to be named - insert description of services to be performed. | J111: 0 | M111: =IF(J111>25000,25000,J111) -> 0
C112: Total Subcontract/Consultant | L112: =SUM(J107:J111) -> 0
C113: Other Operating Expenses
C114: Film Processing/Conversion (QTVR) | J114: 0
C115: Reproduction/Printing | J115: 0
C116: Air Courier/Express Mail | J116: 0
C117: Subtotal Other Operating Expenses | K117: =ROUND(SUM(J114:J116),0) -> 0
C119: Other Operating Costs (NO INDIRECT) | H119: Units | I119: Cost/unit | J119: Total
C120: Computer Operations (5) | J120: =ROUND(((SUM(G57:G72))*225),0) -> 0
C121: Tuition | H121: 0 | I121: 390 | J121: =ROUND(H121*I121,0) -> 0
C122: Location Shoot Operations | H122: 0 | I122: 30 | J122: =ROUND(H122*I122,0) -> 0 | M122: Current Service Center Rate Sheet
C123: Video Production Specialists | H123: 0 | I123: 75 | J123: 0
C124: Photographic Equipment | H124: 0 | I124: 8 | J124: 0
C125: Photographer | H125: 0 | I125: 70 | J125: 0
C126: Graphic Design Services - sponsored projects | H126: 0 | I126: 74 | J126: 0
C127: Graphic Design Services - TAMU/System Dept projects | H127: 0 | I127: 78 | J127: 0
C128: Graphic Presentation Services | H128: 0 | I128: 65 | J128: 0
C129: Video Effects | H129: 0 | I129: 15 | J129: 0
C130: Electromechanical Research Instrumentation | H130: 0 | I130: 57 | J130: 0
C131: Construction Section | H131: 0 | I131: 55 | J131: 0
C132: Evaluation & Reporting & Photographic Res. Instrumentation | H132: 0 | I132: 85 | J132: 0
C133: Test Vehicle - Small Car | H133: 0 | I133: 9347 | J133: 0
C134: Test Vehicle - Pickup Truck-Quad Cab | H134: 0 | I134: 12149 | J134: 0
C135: Computer Simulation Computation | H135: 0 | I135: 1.14 | J135: 0
C136: Subtotal Other Operating Expenses (No Indirect) | K136: =ROUND(SUM(J120:J135),0) -> 0
C138: Total Other Operating Expenses | L138: =ROUND(SUM(K117:K136),0) -> 0
B139: TOTAL DIRECT COSTS | L139: =ROUND(SUM(L82:L138),0) -> 0 | M139: =SUM(L82:L138) -> 0 | N139: =L139-M139 -> 0
B142: Administrative Costs | E142: =#REF! ->  | F142: MODIFIED TOTAL DIRECT COST(6) | J142: =ROUND(L139-L100-K136-J107+M107-J108+M108-J109+M109-J110+M110-J111+M111,0) -> 0 | K142: =ROUND(E142*J142,0) -> 
B143: TOTAL ADMINISTRATIVE COSTS | L143: =K142 -> 
M144: =L139+L143 ->  | N144: =L144-M144 -> 
B145: NET COST TO SPONSOR | L145: =ROUND(SUM(L139:L143),0) -> 
B146: All facilities and equipment necessary to accomplish the required work are available.
B147: The Texas A&M University System serves people of all ages, regardless of socioeconomic level, race, color, sex, religion, disability or national origin.
B148: 1 | C148: Salaries are estimated to include any expected pay increases during the contract period. Except for the Program Manager and Other Experts, salary rates are estimated based on a pool of available personnel. Reimbursement will be based on actual costs per employee in accordance with the Performing Agency's payroll policy and salary rate.
B149: 2 | C149: Clerical Staff are directly charged as the support required is significantly greater than the routine level of services provided by academic departments.
B150: 3 | C150: Fringe benefit rates are estimates only. Reimbursement will be based on actual cost per employee.
B151: 4 | C151: The Performing Agency shall bill the Receiving Agency for travel expenses not to exceed the limits reimbursable under state law. Travel M&IE is calculated at 75% on the first and last days of travel. Trips shown are estimates only.
B152: 5 | C152: Includes computer equipment usage fee and network support services.
B153: 6 | C153: Per OMB Uniform Guidance 2 CFR 200 and the federal negotiated F&A Agreement, capital equipment purchases, rental costs, computer operations, technical support services, video operations, subcontracts >$25,000, and participant support costs are excluded from Modified Total Direct Costs.

Sheet loaded rates (hidden)
A1: FULLY LOADED RATES
G2: Current | H2: Includes Escalation at 3% each September 1.
F3: Computer | G3: FY 2017 | H3: FY 2018 | I3: FY 2019 | J3: FY 2020 | K3: FY 2021
B4: FY 17 | C4: Fringe | D4: Health @ | E4: Indirect @ | F4: Operations | G4: Yr 1 Loaded | H4: Yr 2 Loaded | I4: Yr 03 Loaded | J4: Yr 04 Loaded | K4: Yr 05 Loaded | L4: % effort
A5: Title/Name | B5: Hourly Rate | C5: 0.175 | D5: 745 | E5: =#REF! ->  | F5: 225 | G5: Hourly Rate | H5: Hourly Rate | I5: Hourly Rate | J5: Hourly Rate | K5: Hourly Rate
D6: staff-mo | F6: staff-mo
A8: =#REF! ->  | B8: 0 | C8: =ROUND(B8*C5,2) -> 0 | D8: =ROUND(D5/174,2) -> 4.28 | E8: =ROUND((B8+C8+D8)*E5,2) ->  | F8: =ROUND(F5/174,2) -> 1.29 | G8: =ROUND(B8+C8+D8+E8+F8,2) ->  | H8: =ROUND(($B8*1.03*(1+$C$5)*(1+$E$5))+($D8*(1+$E$5)),2)+F8 ->  | I8: =ROUND(($B8*1.03*1.03*(1+$C$5)*(1+$E$5))+($D8*(1+$E$5)),2)+F8 ->  | J8: =ROUND(($B8*1.03*1.03*1.03*(1+$C$5)*(1+$E$5))+($D8*(1+$E$5)),2)+F8 ->  | K8: =ROUND(($B8*1.03*1.03*1.03*1.03*(1+$C$5)*(1+$E$5))+($D8*(1+$E$5)),2)+F8 ->  | L8: =1/2088 -> 0.0004789272031
A9: =#REF! ->  | B9: 0 | C9: =ROUND(B9*C5,2) -> 0 | D9: =ROUND(D5/174,2) -> 4.28 | E9: =ROUND((B9+C9+D9)*E5,2) ->  | F9: =ROUND(F5/174,2) -> 1.29 | G9: =ROUND(B9+C9+D9+E9+F9,2) ->  | H9: =ROUND(($B9*1.03*(1+$C$5)*(1+$E$5))+($D9*(1+$E$5)),2)+F9 ->  | I9: =ROUND(($B9*1.03*1.03*(1+$C$5)*(1+$E$5))+($D9*(1+$E$5)),2)+F9 ->  | J9: =ROUND(($B9*1.03*1.03*1.03*(1+$C$5)*(1+$E$5))+($D9*(1+$E$5)),2)+F9 ->  | K9: =ROUND(($B9*1.03*1.03*1.03*1.03*(1+$C$5)*(1+$E$5))+($D9*(1+$E$5)),2)+F9 ->  | L9: 0.0004789272031
A10: =#REF! ->  | B10: 0 | C10: =ROUND(B10*C5,2) -> 0 | D10: =ROUND(D5/174,2) -> 4.28 | E10: =ROUND((B10+C10+D10)*E5,2) ->  | F10: =ROUND(F5/174,2) -> 1.29 | L10: 0.0004789272031
A11: =#REF! ->  | B11: 0 | C11: =ROUND(B11*C5,2) -> 0 | D11: =ROUND(D5/174,2) -> 4.28 | E11: =ROUND((B11+C11+D11)*E5,2) ->  | F11: =ROUND(F5/174,2) -> 1.29 | L11: 0.0004789272031
A12: =#REF! ->  | B12: 0 | C12: =ROUND(B12*C5,2) -> 0 | D12: =ROUND(D5/174,2) -> 4.28 | E12: =ROUND((B12+C12+D12)*E5,2) ->  | F12: =ROUND(F5/174,2) -> 1.29 | L12: 0.0004789272031
A13: =#REF! ->  | B13: 0 | C13: =ROUND(B13*C5,2) -> 0 | D13: =ROUND(D5/174,2) -> 4.28 | E13: =ROUND((B13+C13+D13)*E5,2) ->  | F13: =ROUND(F5/174,2) -> 1.29 | L13: 0.0004789272031
A14: =#REF! ->  | B14: 0 | C14: =ROUND(B14*C5,2) -> 0 | D14: =ROUND(D5/174,2) -> 4.28 | E14: =ROUND((B14+C14+D14)*E5,2) ->  | F14: =ROUND(F5/174,2) -> 1.29 | L14: 0.0004789272031
A15: =#REF! ->  | B15: 0 | C15: =ROUND(B15*C5,2) -> 0 | D15: =ROUND(D5/174,2) -> 4.28 | E15: =ROUND((B15+C15+D15)*E5,2) ->  | F15: =ROUND(F5/174,2) -> 1.29 | L15: 0.0004789272031
A16: =#REF! ->  | B16: 0 | C16: =ROUND(B16*C5,2) -> 0 | D16: =ROUND(D5/174,2) -> 4.28 | E16: =ROUND((B16+C16+D16)*E5,2) ->  | F16: =ROUND(F5/174,2) -> 1.29 | L16: 0.0004789272031
A17: =#REF! ->  | B17: 0 | C17: =ROUND(B17*C5,2) -> 0 | D17: =ROUND(D5/174,2) -> 4.28 | E17: =ROUND((B17+C17+D17)*E5,2) ->  | F17: =ROUND(F5/174,2) -> 1.29 | L17: 0.0004789272031
A18: =#REF! ->  | B18: 0 | C18: =ROUND(B18*C5,2) -> 0 | D18: =ROUND(D5/174,2) -> 4.28 | E18: =ROUND((B18+C18+D18)*E5,2) ->  | F18: =ROUND(F5/174,2) -> 1.29 | L18: 0.0004789272031
A19: =#REF! ->  | B19: 0 | C19: =ROUND(B19*C5,2) -> 0 | D19: =ROUND(D5/174,2) -> 4.28 | E19: =ROUND((B19+C19+D19)*E5,2) ->  | F19: =ROUND(F5/174,2) -> 1.29 | L19: 0.0004789272031
A20: =#REF! ->  | B20: 0 | C20: =ROUND(B20*C5,2) -> 0 | D20: =ROUND(D5/174,2) -> 4.28 | E20: =ROUND((B20+C20+D20)*E5,2) ->  | F20: =ROUND(F5/174,2) -> 1.29 | L20: 0.0004789272031
A21: =#REF! ->  | B21: 0 | C21: =ROUND(B21*C5,2) -> 0 | D21: =ROUND(D5/174,2) -> 4.28 | E21: =ROUND((B21+C21+D21)*E5,2) ->  | F21: =ROUND(F5/174,2) -> 1.29 | L21: 0.0004789272031
A22: =#REF! ->  | B22: 0 | C22: =ROUND(B22*C5,2) -> 0 | D22: =ROUND(D5/174,2) -> 4.28 | E22: =ROUND((B22+C22+D22)*E5,2) ->  | F22: =ROUND(F5/174,2) -> 1.29 | H22: =ROUND(($B22*1.03*(1+$C$5)*(1+$E$5))+($D22*(1+$E$5)),2)+F22 ->  | L22: 0.0004789272031
A24: Grad Student - Health @ different rate | C24: Fringe | D24: Health @
C25: 0.031 | D25: 193
D26: staff-mo
A27: ='budg-LOA ISC format'!A35 -> Graduate Student-PhD-Name | B27: 0 | C27: =ROUND(B27*$C$25,2) -> 0 | D27: =ROUND(D25/87,2) -> 2.22 | E27: =ROUND((B27+C27+D27)*E5,2) ->  | F27: 0 | G27: =ROUND(B27+C27+D27+E27,2) ->  | H27: =ROUND(($B27*1.03*(1+$C$25)*(1+$E$5))+($D27*(1+$E$5)),2) ->  | I27: =ROUND(($B27*1.03*1.03*(1+$C$25)*(1+$E$5))+($D27*(1+$E$5)),2) ->  | J27: =ROUND(($B27*1.03*1.03*1.03*(1+$C$25)*(1+$E$5))+($D27*(1+$E$5)),2) ->  | K27: =ROUND(($B27*1.03*1.03*1.03*1.03*(1+$C$25)*(1+$E$5))+($D27*(1+$E$5)),2) ->  | L27: =1/2088 -> 0.0004789272031
A28: ='budg-LOA ISC format'!A36 -> Graduate Student-Masters-Name | B28: 0 | C28: =ROUND(B28*$C$25,2) -> 0 | D28: =ROUND(D25/87,2) -> 2.22 | E28: =ROUND((B28+C28+D28)*E5,2) ->  | F28: 0 | G28: =ROUND(B28+C28+D28+E28,2) ->  | H28: =ROUND(($B28*1.03*(1+$C$25)*(1+$E$5))+($D28*(1+$E$5)),2) ->  | I28: =ROUND(($B28*1.03*1.03*(1+$C$25)*(1+$E$5))+($D28*(1+$E$5)),2) ->  | J28: =ROUND(($B28*1.03*1.03*1.03*(1+$C$25)*(1+$E$5))+($D28*(1+$E$5)),2) ->  | K28: =ROUND(($B28*1.03*1.03*1.03*1.03*(1+$C$25)*(1+$E$5))+($D28*(1+$E$5)),2) ->  | L28: =1/2088 -> 0.0004789272031
A30: Undergrad Students | C30: 0.031 | D30: No Health
A31: ='budg-LOA ISC format'!A37 -> Undergraduate Student-Name | B31: 0 | C31: =ROUND(B31*$C$25,2) -> 0 | D31: 0 | E31: =ROUND((B31+C31+D31)*E5,2) ->  | F31: 0 | G31: =ROUND(B31+C31+D31+E31,2) ->  | H31: =ROUND(($B31*1.03*(1+$C$25)*(1+$E$5))+($D31*(1+$E$5)),2) ->  | I31: =ROUND(($B31*1.03*1.03*(1+$C$25)*(1+$E$5))+($D31*(1+$E$5)),2) ->  | J31: =ROUND(($B31*1.03*1.03*1.03*(1+$C$25)*(1+$E$5))+($D31*(1+$E$5)),2) ->  | K31: =ROUND(($B31*1.03*1.03*1.03*1.03*(1+$C$25)*(1+$E$5))+($D31*(1+$E$5)),2) ->  | L31: =1/2088 -> 0.0004789272031
A33: Note: Loaded rates for comparison purposes only. TTI bills based on level of effort. A researcher who expends 10% of monthly effort on a project bills the sponsor for 10% of monthly salary.
A34: Project billings itemize component costs exactly as they are incurred.
A35: For proposal purposes, Computer Operations use fees calculate at a rate of $1.29 per hour based on the level of effort charged to a particular project.

Sheet eff-by-tasks (hidden)
A2: Names of Principal Staff Members and Subcontractors | B2: Role in Study | C2: Time* (%) Over 24 Months | E2: Hours | M2: Fully Loaded Hourly Rate ($) | N2: Est. Cost ($) | O2: Will need to change number of months time is divided by in column C. | S2: Base Rate | T2: Rate w/Esc. | U2: Fringe x 1.155 | V2: Med + 1.79 | W2: OH x 1.455
D3: Task 1 | E3: Task 2 | F3: Task 3 | G3: Task 4 | H3: Task 5 | I3: Task 6 | J3: Task 7 | K3: Task 8 | L3: Total Est. Hrs.
A4: =#REF! ->  | B4: Principal Investigator | C4: =($L4/174)/24 ->  | D4: =#REF! ->  | E4: =#REF! ->  | F4: =#REF! ->  | G4: =#REF! ->  | H4: =#REF! ->  | I4: =#REF! ->  | J4: =#REF! ->  | K4: =#REF! ->  | L4: =SUM(D4:K4) ->  | M4: =W4 -> 2.60445 | N4: =L4*M4 ->  | O4: Hours by task are linked to | R4: enter name here | S4: 0 | T4: 0 | U4: =T4*1.155 -> 0 | V4: =U4+1.79 -> 1.79 | W4: =V4*1.455 -> 2.60445
O5: budg-05-by task budget
A6: =#REF! ->  | B6: =#REF! ->  | C6: =($L6/174)/24 ->  | D6: =#REF! ->  | E6: =#REF! ->  | F6: =#REF! ->  | G6: =#REF! ->  | H6: =#REF! ->  | I6: =#REF! ->  | J6: =#REF! ->  | K6: =#REF! ->  | L6: =SUM(D6:K6) ->  | M6: =W6 -> 2.60445 | N6: =L6*M6 ->  | R6: name | S6: 0 | T6: 0 | U6: =T6*1.155 -> 0 | V6: =U6+1.79 -> 1.79 | W6: =V6*1.455 -> 2.60445
A8: =#REF! ->  | B8: =#REF! ->  | C8: =($L8/174)/24 ->  | D8: =#REF! ->  | E8: =#REF! ->  | F8: =#REF! ->  | G8: =#REF! ->  | H8: =#REF! ->  | I8: =#REF! ->  | J8: =#REF! ->  | K8: =#REF! ->  | L8: =SUM(D8:K8) ->  | M8: =W8 -> 2.60445 | N8: =L8*M8 ->  | R8: name | S8: 0 | T8: 0 | U8: =T8*1.155 -> 0 | V8: =U8+1.79 -> 1.79 | W8: =V8*1.455 -> 2.60445
A10: =#REF! ->  | B10: =#REF! ->  | C10: =($L10/174)/24 ->  | D10: =#REF! ->  | E10: =#REF! ->  | F10: =#REF! ->  | G10: =#REF! ->  | H10: =#REF! ->  | I10: =#REF! ->  | J10: =#REF! ->  | K10: =#REF! ->  | L10: =SUM(D10:K10) ->  | M10: =W10 -> 2.60445 | N10: =L10*M10 ->  | R10: add others as needed | S10: 0 | T10: 0 | U10: =T10*1.155 -> 0 | V10: =U10+1.79 -> 1.79 | W10: =V10*1.455 -> 2.60445
A12: =#REF! ->  | B12: =#REF! ->  | C12: =($L12/174)/24 ->  | D12: =#REF! ->  | E12: =#REF! ->  | F12: =#REF! ->  | G12: =#REF! ->  | H12: =#REF! ->  | I12: =#REF! ->  | J12: =#REF! ->  | K12: =#REF! ->  | L12: =SUM(D12:K12) ->  | M12: =W12 -> 0 | N12: =L12*M12 -> 
A14: =#REF! ->  | B14: =#REF! ->  | C14: =($L14/174)/24 ->  | D14: =#REF! ->  | E14: =#REF! ->  | F14: =#REF! ->  | G14: =#REF! ->  | H14: =#REF! ->  | I14: =#REF! ->  | J14: =#REF! ->  | K14: =#REF! ->  | L14: =SUM(D14:K14) ->  | M14: =W14 -> 0 | N14: =L14*M14 -> 
A16: =#REF! ->  | B16: =#REF! ->  | C16: =($L16/174)/24 ->  | D16: =#REF! ->  | E16: =#REF! ->  | F16: =#REF! ->  | G16: =#REF! ->  | H16: =#REF! ->  | I16: =#REF! ->  | J16: =#REF! ->  | K16: =#REF! ->  | L16: =SUM(D16:K16) ->  | M16: =W16 -> 0 | N16: =L16*M16 -> 
B18: Totals | C18: * | D18: =SUM(D4:D11) ->  | N18: =SUM(N4:N10) -> 
B20: Sub-contractor | C20: Total Est. Costs | D20: =#REF! ->  | E20: =#REF! ->  | F20: =#REF! ->  | G20: =#REF! ->  | H20: =#REF! ->  | I20: =#REF! ->  | J20: =#REF! ->  | K20: =#REF! ->  | N20: =SUM(D20:K20) ->  | O20: Will need to modify chart if more than one subcontractor is used.
A22: TOTALS | N22: =SUM(N18:N20) -> 
A23: *Total Hours / 174 hours per month (including leave) / total contract months
R25: Jesse Casas | S25: 55.51 | X25: =(S25) -> 55.51
R28: Johanna Zmud | S28: 93.32 | X28: =(S28) -> 93.32
R31: To be named | S31: 31.07 | X31: =(S31) -> 31.07

Sheet label (hidden)
G2: FAR (48) CFR 53.214(g))
B3: OF-17 (12/93) | G3: FAR (48) CFR 53.215-1(h))
B4: Offer Label | E4: NOTICE TO OFFEROR
C6: 1. THIS LABEL MAY ONLY BE USED ON ENVELOPES
C7: LARGER THAN 156 mm (6 1/8 INCHES) IN HEIGHT
C8: AND 292 mm (11 1/2 INCHES) IN LENGTH.
C10: 2. Print or type your name and address in the UPPER left corner
C11: of the envelope containing your offer.
C13: 3. Complete the bottom portion of this form and paste it on the
C14: LOWER left corner of the envelope, unless the envelope is
C15: 156 mm by 292 mm ( 6 1/8 inches by 11 1/2 inches) or smaller.
B17: OFFER
B19: SOLICITATION NO.
B21: DATE FOR RECEIPT OF OFFERS
B23: TIME FOR RECEIPT OF OFFERS
D24: AM | G24: PM
B25: OFFICE DESIGNATED TO RECEIVE OFFERS

Sheet prorate (hidden)
A2: RFP # | B2: 0 | M2: 0
A3: Title: | B3: title line 1 | M3: P2012???
B4: title line 2
A5: Submitted by: | B5: Texas Transportation Institute
A8: Financial Plan Keyed to Organized Work Plan
B11: A | C11: B | D11: C | E11: D | F11: E | G11: F | H11: G | I11: H | J11: I | K11: J | L11: K | M11: TOTAL
A13: Labor | B13: 0 | C13: =(C$33/$M$33)*$M$13 -> 0 | D13: 0 | E13: 0 | F13: 0 | G13: 0 | H13: 0 | I13: 0 | J13: 0 | K13: 0 | L13: 0 | M13: 0 | N13: Labor | O13: =SUM($B13:$L13) -> 0
A15: Travel | B15: 0 | C15: =(C$33/$M$33)*$M$15 -> 0 | D15: 0 | E15: 0 | F15: 0 | G15: 0 | H15: 0 | I15: 0 | J15: 0 | K15: 0 | L15: 0 | M15: 0 | N15: Travel | O15: =SUM($B15:$L15) -> 0
A17: no idc item | B17: =(B$33/$M$33)*$M$17 ->  | C17: =(C$33/$M$33)*$M$17 ->  | D17: =(D$33/$M$33)*$M$17 ->  | M17: link to budget | N17: =A17 -> no idc item | O17: =SUM($B17:$L17) -> 
A19: added item | B19: =(B$33/$M$33)*$M$19 ->  | M19: link to budget and * 1.465 | N19: =A19 -> added item | O19: =SUM($B19:$L19) -> 
A21: added item | B21: =(B$33/$M$33)*$M$21 ->  | M21: link to budget and * 1.465 | N21: =A21 -> added item | O21: =SUM($B21:$L21) -> 
A23: added item | B23: =(B$33/$M$33)*$M$23 ->  | C23: =(C$33/$M$33)*$M$23 ->  | M23: link to budget and * 1.465 | N23: =A23 -> added item | O23: =SUM($B23:$L23) -> 
A25: Reproduction | B25: =(B$33/$M$33)*$M$25 -> 0 | C25: 0 | D25: 0 | E25: 0 | F25: 0 | G25: 0 | H25: 0 | I25: 0 | J25: 0 | K25: 0 | L25: 0 | M25: 0 | N25: Reproduction | O25: =SUM($B25:$L25) -> 0
A27: Computer Cost | B27: =(B$33/$M$33)*$M$27 -> 0 | C27: 0 | D27: 0 | E27: 0 | F27: 0 | G27: 0 | H27: 0 | I27: 0 | J27: 0 | K27: 0 | L27: 0 | M27: 0 | N27: Computer Cost | O27: =SUM($B27:$L27) -> 0
A30: TOTAL | B30: =SUM(B$13:B$27) ->  | M30: =SUM(M13:M27) -> 0 | O30: =SUM(B30:L30) -> 
N31: 0
A32: Hours by Task | B32: 100 | C32: 100 | D32: 100 | E32: 100 | F32: 100 | G32: 100 | H32: 100 | I32: 100 | J32: 100 | K32: 100 | L32: 100 | M32: =SUM(B32:L32) -> 1100
A33: Labor Estimate | B33: =B32/174 -> 0.5747126437 | C33: =C32/174 -> 0.5747126437 | D33: 0.5747126437 | E33: 0.5747126437 | F33: 0.5747126437 | G33: 0.5747126437 | H33: 0.5747126437 | I33: 0.5747126437 | J33: 0.5747126437 | K33: 0.5747126437 | L33: 0.5747126437 | M33: =SUM(A33:L33) -> 6.32183908 | N33: can make this line percent of effort. If so, hide line above.
A36: NOTE: Figures above include Fringe Benefits, and Facilities and Administrative Expense as applicable.
A37: One staff month = 174 staff hours

Sheet Loaded Rates (2) (hidden)
A2: Escalation | B2: Sept.1, 16 - 08/31/17 | D2: 12 | E2: =D2*1 -> 12
B3: Sept. 1, 17 -08/31/18 | D3: 0 | E3: =D3*1.03 -> 0
B4: Sept. 1, 18 -08/31/19 | D4: 0 | E4: =D4*1.03*1.03*1 -> 0
B5: Sept. 1, 19 -08/31/20 | D5: 0 | E5: =D5*1.03*1.03*1.03*1 -> 0
B6: Sept. 1, 20 -08/31/21 | D6: 0 | E6: =D6*1.03*1.03*1.03*1.03*1 -> 0
B7: Sept. 1, 21 -08/31/22 | D7: 0 | E7: =D7*1.03*1.03*1.03*1.03*1.03*1 -> 0
B8: Sept. 1, 14 -08/31/15 | D8: 0 | E8: =D8*1.04*1.04*1.04*1.04*1.04*1.04*1 -> 0
B9: Total months | D9: =SUM(D2:D8) -> 12 | E9: =SUM(E2:E8) -> 12
B10: Ave pro esc | E10: =ROUND((E9/D9)-1,4) -> 0 | G10: =ROUND(E10,4) -> 0
A15: TTI Fully Loaded Hourly Rates - For Estimation Purposes Only****
A16: Project Title
A17: RFP Number
A19: Staff Name | B19: FY17 Base Hourly Rate | C19: Escalation* | D19: Fringe: Staff | E19: Medical: Staff/month** | F19: Computer Ops: staff month** | G19: F&A | H19: Fully Loaded Hourly Rate
D20: 0.175 | E20: 745 | F20: 225 | G20: 0.485
A22: Title | B22: 50 | C22: =ROUND((B22)*(E$10),2) -> 0 | D22: =ROUND((B22+C22)*D20,2) -> 8.75 | E22: =ROUND(E20/174,2) -> 4.28 | F22: =ROUND(F20/174,2) -> 1.29 | G22: =ROUND((B22+C22+D22+E22)*G20,2) -> 30.57 | H22: =ROUND(B22+C22+D22+E22+F22+G22,2) -> 94.89
A23: Name
A25: Title | B25: 50 | C25: =ROUND((B25)*(E$10),2) -> 0 | D25: =ROUND((B25+C25)*D20,2) -> 8.75 | E25: =ROUND(E20/174,2) -> 4.28 | F25: =ROUND(F20/174,2) -> 1.29 | G25: =ROUND((B25+C25+D25+E25)*G20,2) -> 30.57 | H25: =ROUND(B25+C25+D25+E25+F25+G25,2) -> 94.89
A26: Name
A28: Title | B28: 50 | C28: =ROUND((B28)*(E$10),2) -> 0 | D28: =ROUND((B28+C28)*D20,2) -> 8.75 | E28: =ROUND(E20/174,2) -> 4.28 | F28: =ROUND(F20/174,2) -> 1.29 | G28: =ROUND((B28+C28+D28+E28)*G20,2) -> 30.57 | H28: =ROUND(B28+C28+D28+E28+F28+G28,2) -> 94.89
A29: Name
A31: Title | B31: 50 | C31: =ROUND((B31)*(E$10),2) -> 0 | D31: =ROUND((B31+C31)*D20,2) -> 8.75 | E31: =ROUND(E20/174,2) -> 4.28 | F31: =ROUND(F20/174,2) -> 1.29 | G31: =ROUND((B31+C31+D31+E31)*G20,2) -> 30.57 | H31: =ROUND(B31+C31+D31+E31+F31+G31,2) -> 94.89
A32: Name
A34: Title | B34: 50 | C34: =ROUND((B34)*(E$10),2) -> 0 | D34: =ROUND((B34+C34)*D20,2) -> 8.75 | E34: =ROUND(E20/174,2) -> 4.28 | F34: =ROUND(F20/174,2) -> 1.29 | G34: =ROUND((B34+C34+D34+E34)*G20,2) -> 30.57 | H34: =ROUND(B34+C34+D34+E34+F34+G34,2) -> 94.89
A35: Name
A37: Title | B37: 50 | C37: =ROUND((B37)*(E$10),2) -> 0 | D37: =ROUND((B37+C37)*D20,2) -> 8.75 | E37: =ROUND(E20/174,2) -> 4.28 | F37: =ROUND(F20/174,2) -> 1.29 | G37: =ROUND((B37+C37+D37+E37)*G20,2) -> 30.57 | H37: =ROUND(B37+C37+D37+E37+F37+G37,2) -> 94.89
A38: Name
A40: Title | B40: 50 | C40: =ROUND((B40)*(E$10),2) -> 0 | D40: =ROUND((B40+C40)*D20,2) -> 8.75 | E40: =ROUND(E20/174,2) -> 4.28 | F40: =ROUND(F20/174,2) -> 1.29 | G40: =ROUND((B40+C40+D40+E40)*G20,2) -> 30.57 | H40: =ROUND(B40+C40+D40+E40+F40+G40,2) -> 94.89
A41: Name
A43: Student Name | B43: FY17 Base Hourly Rate | C43: Escalation* | D43: Fringe: Student - | E43: Medical: Student/month** | F43: No Computer Opts: | G43: F&A | H43: Fully Loaded Hourly Rate
D44: 0.031 | E44: 193 | G44: 0.485
A46: To be named | B46: 20.8 | C46: =ROUND((B46)*(E$10),2) -> 0 | D46: =ROUND((B46+C46)*(D44),2) -> 0.64 | E46: =ROUND(E44/(174/2),2) -> 2.22 | F46: 0 | G46: =ROUND((B46+C46+D46+E46)*G44,2) -> 11.48 | H46: =ROUND(B46+C46+D46+E46+F46+G46,2) -> 35.14
A47: Graduate Student Worker
A49: To be named | B49: 20.8 | C49: =ROUND((B49)*(E$10),2) -> 0 | D49: =ROUND((B49+C49)*(D44),2) -> 0.64 | E49: =ROUND(E44/(174/2),2) -> 2.22 | F49: 0 | G49: =ROUND((B49+C49+D49+E49)*G44,2) -> 11.48 | H49: =ROUND(B49+C49+D49+E49+F49+G49,2) -> 35.14
A50: Graduate Student Worker
A52: * Provision for estimated salary escalation each September 1st
A53: ** 1 Staff month = 174 hours
A54: ***Period of Performance -- 9/1/2016 - 8/31/2017
A55: **** TTI is an institute of higher learning, part of The Texas A&M University System, and an agency of the State of Texas. The Texas A&M University System and TTI are bound by the cost principles established in the OMB Uniform Guidance 2 CFR 200. These cost principles require TTI to represent our costs consistently – from proposal to reporting to billing. Although for a sponsor’s convenience TTI can provide fully-loaded hourly rates, the Texas A&M University System uses percent of effort to estimate, accumulate, report, and bill effort.

Sheet Budget
C1: professional esc:
D2: 9/1/16 -08/31/17 | F2: 0 | G2: =F2*1 -> 0
D3: 9/1/17 -08/31/18 | F3: 12 | G3: =F3 -> 12
D4: 9/1/18 -08/31/19 | F4: 4 | G4: =F4*1.03 -> 4.12
D5: 9/1/19 -08/31/20 | F5: 0 | G5: =F5*1.03*1.03*1.03 -> 0
D6: 9/1/20 -08/31/21 | F6: 0 | G6: =F6*1.03*1.03*1.03*1.03 -> 0
D7: 9/1/21 -08/31/22 | F7: 0 | G7: =F7*1.03*1.03*1.03*1.03*1.03 -> 0
D9: Total months | F9: =SUM(F2:F7) -> 16 | G9: =SUM(G2:G7) -> 16.12 | I9: =G9/F9 -> 1.0075
D11: Ave pro esc | G11: =(G9/F9)-1 -> 0.0075
C12: NOTE: IF THIS SHEET USED, YOU WILL NEED TO FIX LINKS TO ROUTING, ETC.
A13: Remember human subject forms are required more often than you might think
A14: ESTIMATED BUDGET FOR THE TEXAS A&M TRANSPORTATION INSTITUTE
A16: Title: | B16: Countermeasures to Detect and Combat Inattention While Driving Partially Automated Systems
A17: Principal Investigator: Tom Ferris
A18: Sponsor: | C18: Safe-D
A19: Proposed Budget Period: | D19: 2017-09-01 | E19: to | F19: 2018-12-31
A22: 1. | B22: DIRECT LABOR | F22: % Effort | G22: Est. Hours | H22: Rate/Hour | I22: Est Cost | J22: Est Cost
B23: a. | C23: Salaries and Wages | L23: Insert Hourly
C24: NAME | D24: TITLE | L24: Rate Here | M24: Escalated Rate
C25: Tara Ramani | D25: Principal Investigator | F25: =($G25/174)/$F$9 -> 0.1312859195 | G25: 365.5 | H25: =M25 -> 58.35 | I25: =ROUND(H25*G25,0) -> 21327 | L25: 57.92 | M25: =ROUND(L25*$I$9,2) -> 58.35
C27: Rohit | F27: =($G27/174)/$F$9 -> 0.0470545977 | G27: 131 | H27: =M27 -> 24.13 | I27: =ROUND(H27*G27,0) -> 3161 | L27: 23.95 | M27: =ROUND(L27*$I$9,2) -> 24.13
C29: Amber | F29: =($G29/174)/$F$9 -> 0.0470545977 | G29: 131 | H29: 38.01 | I29: =ROUND(H29*G29,0) -> 4979 | L29: 38.01 | M29: =ROUND(L29*$I$9,2) -> 38.3 | R29: no tuition rate/hour | T29: tuition rate/hour
C31: Suriya | F31: =($G31/174)/$F$9 -> 0.0470545977 | G31: 131 | H31: =M31 -> 40.17 | I31: =ROUND(H31*G31,0) -> 5262 | L31: 39.87 | M31: =ROUND(L31*$I$9,2) -> 40.17 | Q31: PhD | R31: 24.25 | T31: 18.39
C33: Jeremy | F33: =($G33/174)/$F$9 -> 0 | G33: 0 | H33: =M33 -> 37.77 | I33: =ROUND(H33*G33,0) -> 0 | L33: 37.49 | M33: =ROUND(L33*$I$9,2) -> 37.77 | Q33: MS | R33: 23.1 | T33: 17.24
C35: Natilie | F35: =($G35/174)/$F$9 -> 0.0470545977 | G35: 131 | H35: =M35 -> 52.66 | I35: =ROUND(H35*G35,0) -> 6898 | L35: 52.27 | M35: =ROUND(L35*$I$9,2) -> 52.66 | Q35: ME | R35: 21.95 | T35: 16.09
C37: Haneen Khreis | F37: =($G37/174)/$F$9 -> 0.0470545977 | G37: 131 | H37: 39.47 | I37: =ROUND(H37*G37,0) -> 5171 | L37: 39.47 | M37: =ROUND(L37*$I$9,2) -> 39.77
C39: Lupe Ramos | F39: =($G39/174)/$F$9 -> 0 | G39: 0 | H39: =M39 -> 26.86 | I39: =ROUND(H39*G39,0) -> 0 | L39: =O39/174 -> 26.66074713 | M39: =ROUND(L39*$I$9,2) -> 26.86 | O39: 4638.97
C41: Alfredo Sanchez | F41: =($G41/174)/$F$9 -> 0 | G41: 0 | H41: =M41 -> 42.15 | I41: =ROUND(H41*G41,0) -> 0 | L41: =O41/174 -> 41.83425287 | M41: =ROUND(L41*$I$9,2) -> 42.15 | O41: 7279.16
C43: Lorenzo Cornejo | F43: =($G43/174)/$F$9 -> 0 | G43: 0 | H43: =M43 -> 26.62 | I43: =ROUND(H43*G43,0) -> 0 | L43: =O43/174 -> 26.42327586 | M43: =ROUND(L43*$I$9,2) -> 26.62 | O43: 4597.65
C45: Inyang | D45: Grad. Res. Asst. (Ph.D) | F45: 0.5 | G45: 1218 | H45: =M45 -> 22.99 | I45: =H45*G45 -> 28001.82 | L45: 22.99 | M45: 22.99
C47: TBD | D47: Grad. Res. Asst. (Masters) | F47: =($G47/87)/$F$9 -> 0 | G47: 0 | H47: =M47 -> 23.1 | I47: =ROUND(H47*G47,0) -> 0 | L47: 23.1 | M47: =L47 -> 23.1 | O47: 2010
C49: Insert Name | D49: Undergraduate Student | F49: =($G49/87)/$F$9 -> 0 | G49: 0 | H49: =M49 -> 0 | I49: =ROUND(H49*G49,0) -> 0 | L49: 0 | M49: =ROUND(L49*$I$9,2) -> 0
E51: Subtotal Hours / Salaries | G51: =SUM(G25:G49) -> 2238.5 | I51: =SUM(I25:I49) -> 74799.82
B54: b. | C54: Employee Fringe Benefits
C55: 0.175 | D55: of Salaries and Wages (Staff) | I55: =ROUND(((N63)-((I45+I47+I49)))*C55,0) -> 8190
C56: 0.031 | D56: of Salaries and Wages (Students) | I56: =ROUND(((I45+I47+I49))*C56,0) -> 868
C57: 745 | D57: Health Insurance (Staff person/month) | I57: =ROUND(((G51-G47-G45-G49)/174)*C57,0) -> 4369
C58: 193 | D58: Health Insurance (Graduate Student/month) | I58: =ROUND(((G45+G47)/87)*C58,0) -> 2702
E60: Subtotal Fringe Benefits | I60: =SUM(I55:I58) -> 16129
D63: Total Direct Labor Costs (a+b) | J63: =ROUND(SUM(I51+I60),0) -> 90929 | N63: =SUM(I25:I49) -> 74799.82
A65: 2. | B65: EQUIPMENT | J65: 0
A67: 3. | B67: TRAVEL | N67: Per Diem Link
B68: Purpose and destination of travel | N68: Meals are calculated at 75% first and last day of travel, for example: 1 trip x 1 person x 2 days @ $71, use formula: =1*1*2*(71*0.75), for a total of $106.50.
D69: Number of Round Trips | E69: Miles per Round Trip | F69: Number of Days | G69: Number of People | H69: Rate
B70: a. | C70: Mileage | H70: 0.535 | I70: =ROUND(SUM(D70*E70*H70),0) -> 0
B71: b. | C71: Rental Car | H71: 36 | I71: =ROUND(SUM(D71*F71*H71),0) -> 0
B72: c. | C72: Meals | H72: 51 | I72: =ROUND(SUM(D72*F72*G72*H72),0) -> 0
B73: d. | C73: Lodging | H73: 89 | I73: =ROUND(SUM(D73*F73*G73*H73),0) -> 0
B74: e. | C74: Airfare | D74: 1 | G74: 1 | H74: 1500 | I74: =ROUND(SUM(D74*G74*H74),0) -> 1500
D75: Total Travel | J75: 3000
A77: 4. | B77: SUBCONTRACTS
B78: a. | C78: Insert Subcontractor Name | I78: 0 | N78: =IF(I78>25000,25000,I78) -> 0
B79: b. | C79: Insert Subcontractor Name | I79: 0 | N79: =IF(I79>25000,25000,I79) -> 0
B80: c. | C80: Insert Subcontractor Name | I80: 0 | N80: =IF(I80>25000,25000,I80) -> 0
B81: d. | C81: Insert Subcontractor Name | I81: 0 | N81: =IF(I81>25000,25000,I81) -> 0
B82: e. | C82: Insert Subcontractor Name | I82: 0 | N82: =IF(I82>25000,25000,I82) -> 0
D83: Total Subcontracts | J83: =SUM(I78:I82) -> 0 | N83: =SUM(N78:N82) -> 0
A85: 5. | B85: DIRECT MATERIALS
B86: a. | C86: Supples and shipping | I86: 8000
B87: b. | I87: 0
B88: c. | C88: [description] | I88: 0
B89: d. | C89: [description] | I89: 0
D90: Total Direct Materials | J90: =SUM(I86:I89) -> 8000
A92: 6. | B92: OTHER DIRECT COSTS | N92: Current Service Center Rate Sheet
B93: a. | C93: Computer Operations @ $225/staff-month | I93: =ROUND(((G51-G31-G45-G47-G49)/174)*225,0) -> 1150
B94: b. | C94: Electro-Mechanical Res. Instrumentation | E94: 0 | F94: hours @ | G94: 57 | I94: =ROUND(E94*G94,0) -> 0
B95: c. | C95: Construction Section Services | E95: 0 | F95: hours @ | G95: 55 | I95: 0
B96: d. | C96: Evaluation/Reporting & Photographic Res. | E96: 0 | F96: hours @ | G96: 85 | I96: 0
B97: e. | C97: Eagle Aerial Lift Trailer | E97: 0 | F97: uses @ | G97: 150 | I97: 0
B98: f. | C98: Push-Pull Tractor Trailer | E98: 0 | F98: tests @ | G98: 631 | I98: 0
B99: g. | C99: Water Tank Trailer | E99: 0 | F99: hours @ | G99: 25 | I99: 0
B100: h. | C100: Surrogate Vehicle Testing | E100: 0 | F100: tests @ | G100: 145 | I100: 0
B101: i. | C101: Computer Simulation Computation | E101: 0 | F101: hours @ | G101: 1.14 | I101: 0
B102: j. | C102: Crash Test Vehicle - 820 kg Passenger Car | E102: 0 | F102: each @ | G102: 9347 | I102: 0
B103: k. | C103: Crash Test Vehicle - Pickup Truck-Quad Cab | E103: 0 | F103: each @ | G103: 12149 | I103: 0
B104: l. | C104: Tuition | E104: 0 | F104: hours @ | G104: 390 | I104: 0
B105: m. | C105: Human Subjects Participant Payments
B106: n. | I106: 0
D107: Total Other Direct Costs | J107: =ROUND(SUM(I93:I106),0) -> 1150
A109: 7. | B109: TOTAL DIRECT COST | J109: =ROUND(SUM(J63:J107),0) -> 103079 | N109: =J109-25000 -> 78079
A111: 8. | B111: ADMINISTRATIVE COSTS | D111: 0.485 | E111: of Modified total direct costs | H111: =ROUND(J90+J63+J75+N83+(SUM(I105:I106)),0) -> 101929 | J111: =ROUND(H111*D111,0) -> 49436
A113: 9. | B113: TOTAL ESTIMATED COST | J113: =ROUND(J109+J111,0) -> 152515
A115: BUDGET NOTES:
A117: All facilities and equipment necessary to accomplish the required work are available.
A118: The Texas A&M University System serves people of all ages, regardless of socioeconomic level, race, color, sex, religion,
A119: disability or national origin.
A120: 1a. Clerical salaries are directly charged as the support required is significantly greater than the routine level of
A121: services provided by academic departments.
A122: 3. Travel M&IE is calculated at 75% on the first and last days of travel.
A123: 6a. Computer equipment usage fee and network support services is an established rate and is not charged indirect.
A124: 6a - 6l are established rates and not charged indirect.
A125: 8 excludes 2, 4 each part above $25,000 and 6a - 6l.
T127: =ROUND(P127*R127,0) -> 0
T128: 0
T129: 0
T130: 0
T131: 0
T132: 0
T133: 0
T134: 0
T135: 0
T136: 0
T137: 0
T138: 0
T139: 0
T140: 0
T141: 0
T142: 0
T144: =ROUND(P144*R144,0) -> 0
T145: 0
T146: 0
T147: 0
T148: 0
T149: 0
T150: 0
T151: 0
T152: 0
T153: 0
T154: 0
T155: 0
T156: 0
I170: =ROUND(E170*G170,0) -> 0
I171: 0
I172: 0
I173: 0
I174: 0
I175: 0
I176: 0
I177: 0
I178: 0
I179: 0
I180: 0
I181: 0

Sheet State update 06292018
A1: through August 31, 2018
B2: Budget | C2: September | D2: October | E2: November | F2: December | G2: January | H2: February | I2: March | J2: April | K2: May | L2: June | M2: July | N2: August | O2: September | P2: Total Expenses | Q2: Projected Expenses | R2: Pending Corrections | S2: Balance | V2: Month multiplier | W2: LOE | X2: Name | Y2: Salaries | Z2: Longevity | AA2: Total | AB2: Insurance | AC2: Fringe | AD2: total | AE2: monthly rate | AF2: hrly rate
A3: Salaries/Fringe | B3: 92578 | P3: =SUM(C3:O3) -> 0 | S3: =B3-(P3+Q3+R3) -> 92578
A4: Tara | E4: 1496.47 | F4: 1511.6 | G4: 1511.6 | H4: 1511.6 | I4: 1511.6 | J4: 1511.6 | K4: 1511.6 | P4: 10566.07 | Q4: =(V5*W5*AD5) -> 1511.596178 | S4: -12077.66618 | T4: =(Q4+P4)*1.485 -> 17935.33427 | V4: 0 | W4: 0 | X4: Tara | Y4: 9359.92 | Z4: 100 | AA4: =SUM(Y4:Z4) -> 9459.92 | AB4: 600.36 | AC4: =0.0018*AA4 -> 17.027856 | AD4: =SUM(AA4:AC4) -> 10077.30786 | AE4: =W4*AD4 -> 0 | AF4: =AD4/174 -> 57.91556239
A5: Inyang | E5: 2401.41 | F5: 2401.41 | G5: 2401.41 | H5: 2401.41 | I5: 2401.41 | J5: 2401.41 | K5: 2401.41 | P5: 16809.87 | Q5: =V6*W6*AD6 -> 7204.23 | S5: -24014.1 | T5: =(Q5+P5)*1.485 -> 35660.9385 | V5: 3 | W5: 0.05 | X5: Tara | Y5: 9359.92 | Z5: 100 | AA5: =SUM(Y5:Z5) -> 9459.92 | AB5: 600.36 | AC5: =0.0018*AA5 -> 17.027856 | AD5: =SUM(AA5:AC5) -> 10077.30786 | AE5: =W5*AD5 -> 503.8653928 | AF5: =AD5/174 -> 57.91556239
A6: Amber | P6: 0 | Q6: 1642.94435 | S6: -1642.94435 | T6: 2439.77236 | V6: 3 | W6: 1 | X6: Inyang | Y6: 2000 | Z6: 0 | AA6: =SUM(Y6:Z6) -> 2000 | AB6: 397.81 | AC6: =0.0018*AA6 -> 3.6 | AD6: =SUM(AA6:AC6) -> 2401.41 | AE6: =W6*AD6 -> 2401.41 | AF6: =AD6/174 -> 13.8012069
A7: Rohit | G7: 477.46 | I7: 477.46 | J7: 477.46 | K7: 519.2 | P7: 1951.58 | Q7: 2196.283803 | S7: -4147.863803 | T7: 6159.577747 | V7: 1 | W7: 0.23 | X7: Amber | Y7: 6491.28 | Z7: 40 | AA7: 6531.28 | AB7: 600.2 | AC7: 11.756304 | AD7: 7143.236304 | AE7: 1642.94435 | AF7: 41.05308221 | AG7: 1 wk
A8: Suriya | H8: 1105.64 | P8: 1105.64 | Q8: 0 | S8: -1105.64 | T8: 1641.8754 | V8: 1 | W8: 0.46 | X8: Rohit | Y8: 4166.67 | Z8: 0 | AA8: 4166.67 | AB8: 600.36 | AC8: 7.500006 | AD8: 4774.530006 | AE8: 2196.283803 | AF8: 27.43982762 | AG8: 2 wks
A9: Jeremy | P9: 0 | Q9: 0 | S9: 0 | T9: =(#REF!+#REF!)*1.485 ->  | V9: 0 | W9: 0.05 | X9: Suriya | Y9: 7103.5 | Z9: 0 | AA9: 7103.5 | AB9: 254 | AC9: 12.7863 | AD9: 7370.2863 | AE9: 368.514315 | AF9: 42.35796724
A10: Natalie J. | J10: 2476.58 | K10: 2476.58 | P10: 4953.16 | Q10: 2476.587467 | S10: -7429.747466 | T10: =(Q9+P9)*1.485 -> 0 | V10: 0 | W10: 0.05 | X10: Jeremy | Y10: 6530.65 | Z10: 180 | AA10: 6710.65 | AB10: 995.83 | AC10: 12.07917 | AD10: 7718.55917 | AE10: =W10*AD10 -> 385.9279585 | AF10: =AD10/174 -> 44.35953546
A11: Haneen | E11: 345.12 | P11: =SUM(C11:O11) -> 345.12 | Q11: 0 | S11: -345.12 | T11: =(Q10+P10)*1.485 -> 11033.17499 | V11: 1 | W11: 0.25 | X11: Natalie | Y11: 9094.37 | Z11: 0 | AA11: 9094.37 | AB11: 795.61 | AC11: 16.369866 | AD11: 9906.349866 | AE11: =W11*AD11 -> 2476.587467 | AF11: =AD11/174 -> 56.93304521
A12: Lupe | P12: =SUM(C12:O12) -> 0 | Q12: 0 | S12: 0 | V12: 0 | W12: 0.05 | X12: Haneen | Y12: 6625 | Z12: 0 | AA12: 6625 | AB12: 600.36 | AC12: 11.925 | AD12: 7237.285 | AE12: =W12*AD12 -> 361.86425 | AF12: =AD12/174 -> 41.59359195
A13: Alfredo | P13: 0 | Q13: 0 | S13: 0 | V13: 0 | W13: 0.46 | X13: Lupe | Y13: 4538.97 | Z13: 100 | AA13: 4638.97 | AB13: 600.4 | AC13: =0.1588*AA13 -> 736.668436 | AD13: 5976.038436 | AE13: =W13*AD13 -> 2748.977681 | AF13: =AD13/174 -> 34.34504848 | AG13: 2 wks
A14: Lorenzo | P14: 0 | Q14: 0 | S14: 0 | V14: 0 | W14: 0.46 | X14: Alfredo | Y14: 7059.16 | Z14: 220 | AA14: 7279.16 | AB14: 795.61 | AC14: =0.157*AA14 -> 1142.82812 | AD14: =SUM(AA14:AC14) -> 9217.59812 | AE14: =W14*AD14 -> 4240.095135 | AF14: =AD14/174 -> 52.97470184 | AG14: 2 wks
A15: Travel | P15: =SUM(C15:O15) -> 0 | S15: 0 | V15: 0 | W15: 0.46 | X15: Lorenzo | Y15: 4537.65 | Z15: 60 | AA15: 4597.65 | AB15: 881.4 | AC15: =0.1549*AA15 -> 712.175985 | AD15: 6191.225985 | AE15: =W15*AD15 -> 2847.963953 | AF15: =AD15/174 -> 35.58175853 | AG15: 2 wks
A16: Supplies | P16: 0 | S16: 0 | AE16: =W12*AD12 -> 361.86425
A17: Consultants | P17: 0 | S17: 0 | V17: N&L
A18: Network and Leasing | F18: 45.03 | G18: 34.01 | H18: 54.37 | I18: 56.46 | J18: 54.37 | K18: 54.37 | P18: 298.61 | Q18: =V27 -> 155.25 | S18: -453.86 | V18: =V4*W4*225 -> 0
A19: Subcontracts | P19: 0 | S19: 0 | V19: =V7*W7*225 -> 51.75
A20: Other Direct (shipping) | P20: 0 | S20: 0 | V20: =V8*W8*225 -> 103.5
A21: Other Direct (exempt) | P21: 0 | S21: 0 | V21: =V9*W9*225 -> 0
A22: Total Direct | B22: =SUM(B3:B21) -> 92578 | C22: 0 | D22: 0 | E22: 4243 | F22: 3958.04 | G22: 4424.48 | H22: 5073.02 | I22: 4446.93 | J22: 6921.42 | K22: 6963.16 | L22: 0 | M22: 0 | N22: 0 | O22: 0 | P22: =SUM(C22:O22) -> 36030.05 | Q22: =SUM(Q3:Q21) -> 15186.8918 | R22: =SUM(R3:R21) -> 0 | S22: 41361.0582 | V22: =V10*W10*225 -> 0
A23: Indirect | B23: 44397 | C23: =ROUND(0.485*(C22-(C21+C19+C18)),2) -> 0 | D23: 0 | E23: 2057.86 | F23: 1897.81 | G23: 2129.38 | H23: 2434.05 | I23: 2129.38 | J23: 3330.52 | K23: 3350.76 | L23: 0 | M23: 0 | N23: 0 | O23: 0 | P23: 17329.76 | Q23: =ROUND(0.485*(Q22-(Q21+Q19+Q18)),2) -> 7290.35 | R23: =ROUND(0.485*(R22-(R21+R19+R18)),2) -> 0 | S23: 19776.89 | V23: =V12*W12*225 -> 0
A24: Total | B24: =SUM(B22:B23) -> 136975 | C24: =SUM(C22:C23) -> 0 | D24: 0 | E24: 6300.86 | F24: 5855.85 | G24: 6553.86 | H24: 7507.07 | I24: 6576.31 | J24: 10251.94 | K24: 10313.92 | L24: 0 | M24: 0 | N24: 0 | O24: 0 | P24: 53359.81 | Q24: =SUM(Q22:Q23) -> 22477.2418 | R24: =SUM(R22:R23) -> 0 | S24: 61137.9482 | V24: =V13*W13*225 -> 0
V25: =V14*W14*225 -> 0
P26: =B22-P22 -> 56547.95 | V26: =V15*W15*225 -> 0
V27: =SUM(V18:V26) -> 155.25
A29: 9/1/18 - 2/28/19
B30: Budget | C30: September | D30: October | E30: November | F30: December | G30: January | H30: February | I30: March | J30: April | K30: May | L30: June | M30: July | N30: August | O30: September | P30: Total Expenses | Q30: Projected Expenses | R30: Pending Corrections | S30: Balance
A31: Salaries/Fringe | B31: 41361 | P31: =SUM(C31:O31) -> 0 | S31: =B31-(P31+Q31+R31) -> 41361
A32: Tara | P32: 0 | Q32: =V34*W34*AD34 -> 3079.452964 | S32: -3079.452964
A33: Inyang | P33: 0 | Q33: =V35*W35*AD35 -> 14408.46 | S33: -14408.46 | V33: Month multiplier | W33: LOE | X33: Name | Y33: Salaries | Z33: Longevity | AA33: Total | AB33: Insurance | AC33: Fringe | AD33: total | AE33: monthly rate | AF33: hrly rate
P34: 0 | S34: 0 | V34: 6 | W34: 0.05 | X34: Tara | Y34: =9359.92*1.02 -> 9547.1184 | Z34: 100 | AA34: =SUM(Y34:Z34) -> 9647.1184 | AB34: 600.36 | AC34: =0.0018*AA34 -> 17.36481312 | AD34: =SUM(AA34:AC34) -> 10264.84321 | AE34: =W34*AD34 -> 513.2421607 | AF34: =AD34/174 -> 58.9933518
P35: =SUM(C35:O35) -> 0 | S35: 0 | V35: 6 | W35: 1 | X35: Inyang | Y35: 2000 | Z35: 0 | AA35: =SUM(Y35:Z35) -> 2000 | AB35: 397.81 | AC35: =0.0018*AA35 -> 3.6 | AD35: =SUM(AA35:AC35) -> 2401.41 | AE35: =W35*AD35 -> 2401.41 | AF35: =AD35/174 -> 13.8012069
P36: =SUM(C36:O36) -> 0 | S36: 0
A37: Travel | P37: =SUM(C37:O37) -> 0 | Q37: 6000 | S37: -6000
A38: Supplies | P38: 0 | Q38: 6000 | S38: -6000
A39: Consultants | P39: 0 | S39: 0
A40: Network and Leasing | P40: 0 | Q40: =55*4 -> 220 | S40: -220
A41: Subcontracts | P41: 0 | S41: 0
A42: Other Direct (shipping) | P42: 0 | Q42: 4000 | S42: -4000
A43: Other Direct (exempt) | P43: 0 | S43: 0
A44: Total Direct | B44: =SUM(B31:B43) -> 41361 | C44: 0 | D44: 0 | E44: 0 | F44: 0 | G44: 0 | H44: 0 | I44: 0 | J44: 0 | K44: 0 | L44: 0 | M44: 0 | N44: 0 | O44: 0 | P44: =SUM(C44:O44) -> 0 | Q44: =SUM(Q31:Q43) -> 33707.91296 | R44: =SUM(R31:R43) -> 0 | S44: 7653.087036
A45: Indirect | B45: 0 | C45: =ROUND(0.485*(C44-(C43+C41+C40)),2) -> 0 | D45: 0 | E45: 0 | F45: 0 | G45: 0 | H45: 0 | I45: 0 | J45: 0 | K45: 0 | L45: 0 | M45: 0 | N45: 0 | O45: 0 | P45: =SUM(C45:O45) -> 0 | Q45: =ROUND(0.485*(Q44-(Q43+Q41+Q40)),2) -> 16241.64 | R45: =ROUND(0.485*(R44-(R43+R41+R40)),2) -> 0 | S45: -16241.64
A46: Total | B46: =SUM(B44:B45) -> 41361 | C46: =SUM(C44:C45) -> 0 | D46: 0 | E46: 0 | F46: 0 | G46: 0 | H46: 0 | I46: 0 | J46: 0 | K46: 0 | L46: 0 | M46: 0 | N46: 0 | O46: 0 | P46: 0 | Q46: =SUM(Q44:Q45) -> 49949.55296 | R46: =SUM(R44:R45) -> 0 | S46: -8588.552964
Q49: Direct | R49: Indirect | S49: Total
P50: Total Project Budget | Q50: 133279.1 | R50: 63684.67 | S50: =SUM(W22:X22) -> 0
P51: FY17 Expenses: | Q51: -30113.1 | R51: -14206.67 | S51: =SUM(W23:X23) -> 0
P52: Balance remaining FY17 | Q52: 103166 | R52: 49478 | S52: =SUM(W24:X24) -> 0
P54: Expenses - FY18 thru 11/30
P55: Federal Funds | Q55: -10588.17 | R55: -5081.21 | S55: =SUM(W27:X27) -> 0
P56: State Funds | Q56: -4243 | R56: -2057.86 | S56: =SUM(W28:X28) -> 0
P57: Balance remaining FY18: | Q57: =SUM(Q52:Q56) -> 88334.83 | R57: =SUM(R52:R56) -> 42338.93 | S57: =SUM(Q49:R49) -> 0
P59: Current balance | Q59: 88334.83 | R59: 42338.93 | S59: =SUM(Q51:R51) -> -44319.77
P60: 11/30 expenses | Q60: 4243 | R60: 2057.86 | S60: =SUM(Q52:R52) -> 152644
P61: Total FY 18 State budget | Q61: =SUM(Q59:Q60) -> 92577.83 | R61: =SUM(R59:R60) -> 44396.79 | S61: =SUM(Q53:R53) -> 0

Sheet Federal 05082018
A1: November 1, 2017 - December 31, 2018
B2: Budget | C2: September | D2: October | E2: November | F2: December | G2: January | H2: February | I2: March | J2: April | K2: May | L2: June | M2: July | N2: August | O2: September | P2: October | Q2: November | R2: December | S2: January | T2: Total Expenses | U2: Projected Expenses | V2: Pending Corrections | W2: Balance | Z2: Month multiplier | AA2: LOE | AB2: Name | AC2: Salaries | AD2: Longevity | AE2: Total | AF2: Insurance | AG2: Fringe | AH2: total | AI2: monthly rate | AJ2: hrly rate
A3: Salaries/Fringe | B3: 10588.38 | T3: =SUM(C3:S3) -> 0 | W3: =B3-(T3+U3+V3) -> 10588.38
A4: Tara | C4: 1736.46 | D4: 1736.46 | T4: =SUM(C4:S4) -> 3472.92 | U4: =Z4*AA4*AH4 -> 6929.562845 | W4: -10402.48284 | X4: =(U4+T4)*1.485 -> 15447.68702 | Z4: 4 | AA4: 0.15 | AB4: Tara | AC4: =9359.92 -> 9359.92 | AD4: 100 | AE4: =SUM(AC4:AD4) -> 9459.92 | AF4: 600.36 | AG4: =0.1574*AE4 -> 1488.991408 | AH4: =SUM(AE4:AG4) -> 11549.27141 | AI4: =AA4*AH4 -> 1732.390711 | AJ4: =AH4/174 -> 66.37512303
A5: Inyang | C5: 2158.6 | D5: 2403.41 | T5: 4562.01 | U5: 9605.64 | W5: -14167.65 | X5: =(U5+T5)*1.485 -> 21038.96025 | Z5: 4 | AA5: 1 | AB5: Inyang | AC5: 2000 | AD5: 0 | AE5: 2000 | AF5: 397.81 | AG5: =0.0018*AE5 -> 3.6 | AH5: 2401.41 | AI5: =AA5*AH5 -> 2401.41 | AJ5: =AH5/174 -> 13.8012069
A6: Amber | T6: 0 | U6: 0 | W6: 0 | X6: 0 | Z6: 0 | AA6: 0.23 | AB6: Amber | AC6: 6491.28 | AD6: 40 | AE6: 6531.28 | AF6: 600.2 | AG6: 11.756304 | AH6: 7143.236304 | AI6: 1642.94435 | AJ6: 41.05308221 | AK6: 1 wk
A7: Rohit | C7: 765.88 | E7: 510.59 | T7: 1276.47 | U7: 0 | W7: -1276.47 | X7: 1895.55795 | Z7: 0 | AA7: 0.15 | AB7: Rohit | AC7: 4166.67 | AD7: 0 | AE7: 4166.67 | AF7: 600.36 | AG7: 7.500006 | AH7: 4774.530006 | AI7: 716.1795009 | AJ7: 27.43982762 | AK7: 2 wks
A8: Suriya | C8: 420.68 | F8: 1271.87 | H8: -1271.87 | T8: 420.68 | U8: 0 | W8: -420.68 | X8: 624.7098 | Z8: 0 | AA8: 0.05 | AB8: Suriya | AC8: 7103.5 | AD8: 0 | AE8: 7103.5 | AF8: 254 | AG8: 12.7863 | AH8: 7370.2863 | AI8: 368.514315 | AJ8: 42.35796724
A9: Jeremy | T9: 0 | U9: 0 | W9: 0 | X9: =(#REF!+#REF!)*1.485 ->  | Z9: 0 | AA9: 0.05 | AB9: Jeremy | AC9: 6530.65 | AD9: 180 | AE9: 6710.65 | AF9: 995.83 | AG9: 12.07917 | AH9: 7718.55917 | AI9: 385.9279585 | AJ9: 44.35953546
A10: Natalie J. | T10: 0 | U10: 0 | W10: 0 | X10: =(U9+T9)*1.485 -> 0 | Z10: 0 | AA10: 0.25 | AB10: Natalie | AC10: 9094.37 | AD10: 0 | AE10: 9094.37 | AF10: 795.61 | AG10: 16.369866 | AH10: 9906.349866 | AI10: =AA10*AH10 -> 2476.587467 | AJ10: =AH10/174 -> 56.93304521
A11: Haneen | C11: 363.48 | D11: 381.16 | T11: 744.64 | U11: 0 | W11: -744.64 | X11: =(U10+T10)*1.485 -> 0 | Z11: 0 | AA11: 0.05 | AB11: Haneen | AC11: 6625 | AD11: 0 | AE11: =SUM(AC11:AD11) -> 6625 | AF11: 600.36 | AG11: =0.0018*AE11 -> 11.925 | AH11: =SUM(AE11:AG11) -> 7237.285 | AI11: =AA11*AH11 -> 361.86425 | AJ11: =AH11/174 -> 41.59359195
A12: Lupe | T12: 0 | U12: 2748.977681 | W12: -2748.977681 | Z12: 1 | AA12: 0.46 | AB12: Lupe | AC12: 4538.97 | AD12: 100 | AE12: =SUM(AC12:AD12) -> 4638.97 | AF12: 600.4 | AG12: =0.1588*AE12 -> 736.668436 | AH12: =SUM(AE12:AG12) -> 5976.038436 | AI12: =AA12*AH12 -> 2748.977681 | AJ12: =AH12/174 -> 34.34504848 | AK12: 2 wks
A13: Alfredo | T13: 0 | U13: 4240.095135 | W13: -4240.095135 | Z13: 1 | AA13: 0.46 | AB13: Alfredo | AC13: 7059.16 | AD13: 220 | AE13: =SUM(AC13:AD13) -> 7279.16 | AF13: 795.61 | AG13: =0.157*AE13 -> 1142.82812 | AH13: =SUM(AE13:AG13) -> 9217.59812 | AI13: =AA13*AH13 -> 4240.095135 | AJ13: =AH13/174 -> 52.97470184 | AK13: 2 wks
A14: Lorenzo | T14: 0 | U14: 0 | W14: 0 | Z14: 0 | AA14: 0.46 | AB14: Lorenzo | AC14: 4537.65 | AD14: 60 | AE14: =SUM(AC14:AD14) -> 4597.65 | AF14: 881.4 | AG14: =0.1549*AE14 -> 712.175985 | AH14: 6191.225985 | AI14: =AA14*AH14 -> 2847.963953 | AJ14: =AH14/174 -> 35.58175853 | AK14: 2 wks
T15: 0 | U15: 0 | W15: 0 | AI15: =AA11*AH11 -> 361.86425
T16: 0 | U16: 0 | W16: 0
T17: 0 | U17: 0 | W17: 0 | Z17: N&L
A18: Travel | T18: 0 | U18: 6000 | W18: -6000 | Z18: =Z4*AA4*225 -> 135
A19: Supplies | T19: 0 | U19: 6000 | W19: -6000 | Z19: =Z6*AA6*225 -> 0
A20: Consultants | T20: 0 | W20: 0 | Z20: =Z7*AA7*225 -> 0
A21: Network and Leasing | D21: 72.69 | E21: 38.76 | F21: 20.2 | G21: 22.08 | I21: -22.29 | T21: 131.44 | U21: =Z27 -> 342 | W21: -473.44 | Z21: =Z8*AA8*225 -> 0 | AB21: Joe | AC21: 18288.38 | AD21: 180 | AE21: =SUM(AC21:AD21) -> 18468.38 | AF21: 795.61 | AG21: =0.0018*AE21 -> 33.243084 | AH21: =SUM(AE21:AG21) -> 19297.23308
A22: Subcontracts | T22: 0 | W22: 0 | Z22: =Z9*AA9*225 -> 0 | AB22: Guido | AC22: 85 | AD22: 0 | AE22: =SUM(AC22:AD22) -> 85 | AF22: 0 | AG22: =0.0018*AE22 -> 0.153 | AH22: =SUM(AE22:AG22) -> 85.153
A23: Other Direct (shipping) | T23: 0 | U23: 4000 | W23: -4000 | Z23: =Z11*AA11*225 -> 0 | AB23: Melissa | AC23: 15551.63 | AD23: 100 | AE23: =SUM(AC23:AD23) -> 15651.63 | AF23: 881.4 | AG23: =0.0018*AE23 -> 28.172934 | AH23: =SUM(AE23:AG23) -> 16561.20293
A24: Other Direct (exempt) | T24: 0 | W24: 0 | Z24: =Z12*AA12*225 -> 103.5 | AB24: Marcia | AC24: 7649.7 | AD24: 120 | AE24: =SUM(AC24:AD24) -> 7769.7 | AF24: 600.36 | AG24: =0.0018*AE24 -> 13.98546 | AH24: =SUM(AE24:AG24) -> 8384.04546
A25: Total Direct | B25: =SUM(B3:B24) -> 10588.38 | C25: 5445.1 | D25: 4593.72 | E25: 549.35 | F25: 1292.07 | G25: 22.08 | H25: -1271.87 | I25: -22.29 | J25: 0 | K25: 0 | L25: 0 | M25: 0 | N25: 0 | O25: 0 | P25: =SUM(P3:P24) -> 0 | Q25: 0 | R25: 0 | S25: =SUM(S3:S24) -> 0 | T25: =SUM(C25:O25) -> 10608.16 | U25: =SUM(U3:U24) -> 39866.27566 | V25: =SUM(V3:V24) -> 0 | W25: -39886.05566 | Z25: =Z13*AA13*225 -> 103.5 | AB25: Kristi | AC25: 4754.92 | AD25: 40 | AE25: =SUM(AC25:AD25) -> 4794.92 | AF25: 119.41 | AG25: =0.0018*AE25 -> 8.630856 | AH25: =SUM(AE25:AG25) -> 4922.960856
A26: Indirect | B26: 5081 | C26: =ROUND(0.485*(C25-(C24+C22+C21)),2) -> 2640.87 | D26: =ROUND(0.485*(D25-(D24+D22+D21)),2) -> 2192.7 | E26: 247.64 | F26: 616.86 | G26: =ROUND(0.485*(G25-(G24+G22+G21)),2) -> 0 | H26: -616.86 | I26: 0 | J26: 0 | K26: 0 | L26: 0 | M26: 0 | N26: 0 | O26: 0 | P26: =ROUND(0.485*(P25-(P24+P22+P21)),2) -> 0 | Q26: 0 | R26: 0 | S26: =ROUND(0.485*(S25-(S24+S22+S21)),2) -> 0 | T26: =SUM(C26:O26) -> 5081.21 | U26: =ROUND(0.485*(U25-(U24+U22+U21)),2) -> 19169.27 | V26: =ROUND(0.485*(V25-(V24+V22+V21)),2) -> 0 | W26: -19169.48 | Z26: =Z14*AA14*225 -> 0
A27: Total | B27: =SUM(B25:B26) -> 15669.38 | C27: =SUM(C25:C26) -> 8085.97 | D27: 6786.42 | E27: 796.99 | F27: 1908.93 | G27: =SUM(G25:G26) -> 22.08 | H27: -1888.73 | I27: -22.29 | J27: 0 | K27: 0 | L27: 0 | M27: 0 | N27: 0 | O27: 0 | P27: =SUM(P25:P26) -> 0 | Q27: 0 | R27: 0 | S27: =SUM(S25:S26) -> 0 | T27: =SUM(C27:O27) -> 15689.37 | U27: =SUM(U25:U26) -> 59035.54566 | V27: =SUM(V25:V26) -> 0 | W27: -59055.53566 | Z27: =SUM(Z18:Z26) -> 342
T29: =B27-T27 -> -19.99 | AA29: Direct | AB29: Indirect | AC29: Total
Z30: Total Project Budget | AA30: 133279.1 | AB30: 63684.67 | AC30: =SUM(AA30:AB30) -> 196963.77
Z31: FY17 Expenses: | AA31: -30113.1 | AB31: -14206.67 | AC31: =SUM(AA31:AB31) -> -44319.77
Z32: Balance remaining FY17 | AA32: 103166 | AB32: 49478 | AC32: =SUM(AA32:AB32) -> 152644
Z34: Expenses - FY18 thru 11/30
Z35: Federal Funds | AA35: -10588.17 | AB35: -5081.21 | AC35: =SUM(AA35:AB35) -> -15669.38
Z36: State Funds | AA36: -4243 | AB36: -2057.86 | AC36: =SUM(AA36:AB36) -> -6300.86
Z37: Balance remaining FY18: | AA37: =SUM(AA32:AA36) -> 88334.83 | AB37: =SUM(AB32:AB36) -> 42338.93 | AC37: =SUM(AA37:AB37) -> 130673.76
Z39: Current balance | AA39: 88334.83 | AB39: 42338.93 | AC39: =SUM(AA39:AB39) -> 130673.76
Z40: 11/30 expenses | AA40: 4243 | AB40: 2057.86 | AC40: =SUM(AA40:AB40) -> 6300.86
Z41: Total FY 18 State budget | AA41: =SUM(AA39:AA40) -> 92577.83 | AB41: =SUM(AB39:AB40) -> 44396.79 | AC41: =SUM(AA41:AB41) -> 136974.62

Sheet Notes
A1: 2018-05-09
A2: I think we had decided to take Haneen, Jeremy, Suriya and Lorenzo out after running the first set of numbers as we exceeded the budget. So I think we just go with the charges as listed in my later email, i.e.:
A3: · 1 week of Amber and 2 weeks of Rohit to finish up Phase 1 assessment and documentation
A4: · Inyang supported as GAR through December 2018.
A5: · Natalie and Tara as previously budgeted in – Natalie over summer, Tara spread out over duration of project
A6: · 2 weeks of time each for Lupe and Alfredo to assist in El Paso
A7: · Additional costs assumed
A8: o Travel - $6000
A9: o Shipping - $4000
A10: o Supplies - $6000
A12: Of this, I suggest backing out charges already spent since March (for example Rohit’s charges in April). Besides that, you approach/breakdown below seems fine – but wouldn’t natalie be 25% over 3 months not 1? If we have funds unallocated after covering the above, I suggest just keeping it in reserve for now.
B16: 2018-06-28
A37: Ok, great. So we could potentially do this until April, with the 16k set aside for travel/other stuff, right? Lets just keep that as the plan for now. I want to talk to Natalie about it also..
A39: From: Walker, Marcia
A40: Sent: Friday, June 29, 2018 1:53 PM
A41: To: Ramani, Tara <T-Ramani@tti.tamu.edu>
A42: Subject: RE: budget update
A44: Not quite. Together you’re $2,914/month so three months would be $8,744. You’d be about $1143 short..
A46: From: Ramani, Tara
A47: Sent: Friday, June 29, 2018 1:50 PM
A48: To: Walker, Marcia <M-Walker@tti.tamu.edu>
A49: Subject: RE: budget update
A51: Would the $7600 balance cover Inyang @50% plus me @ 5% for March-May 2019 as well?
A53: From: Walker, Marcia
A54: Sent: Friday, June 29, 2018 11:30 AM
A55: To: Ramani, Tara <T-Ramani@tti.tamu.edu>
A56: Subject: budget update
A58: See what you think. I projected your and Inyang’s time out from September through February 2019 and put in a 2% salary increase for you (just a guess). The table below is a cleaned-up summary of what’s on the attached worksheet on the “state update 062918” tab.
D60: State | E60: Federal
D61: 6/1 - 8/31 | E61: 9/1 - 2/28 | F61: Total
A62: Labor | B62: effort | C62: months
A63: Tara | B63: 0.05 | C63: 9 | D63: 1511.61 | E63: 3079.44 | F63: 4591.05
A64: Inyang | B64: 0.5 | C64: 9 | D64: 7204.23 | E64: 14408.46 | F64: 21612.69
A65: Amber | B65: 1 wk | C65: 1 | D65: 1642.94 | E65: 0 | F65: 1642.94
A66: Rohit | B66: 2 wks | C66: 1 | D66: 2196.28 | E66: 0 | F66: 2196.28
A67: Natalie | B67: 0.25 | C67: 1 | D67: 2476.59 | E67: 0 | F67: 2476.59
A68: Lupe | B68: 2 wks | C68: 1 | D68: 0 | E68: 0 | F68: 0
A69: Alfredo | B69: 2 wks | C69: 1 | D69: 0 | E69: 0 | F69: 0
A70: Lorenzo | B70: 2 wks | C70: 1 | D70: 0 | E70: 0 | F70: 0
C71: Total Labor | D71: 15031.65 | E71: 17487.9 | F71: 32519.55
A72: Travel | D72: 0 | E72: 6000 | F72: 6000
A73: Supplies | D73: 0 | E73: 6000 | F73: 6000
A74: Computer | D74: 155.25 | E74: 220 | F74: 375.25
A75: Shipping | D75: 0 | E75: 4000 | F75: 4000
A76: Total Direct: | D76: 15186.9 | E76: 33707.9 | F76: 48894.8
A77: Indirect | D77: 7290 | E77: 16242 | F77: 23532
A78: Total | D78: 22476.9 | E78: 49949.9 | F78: 72426.8
C80: Current Funds Available: | D80: 56548
C81: Less balance of FY18 exp's: | D81: -15186.9
C82: Less FY19 exp's: | D82: -33707.9
C83: balance remaining: | D83: 7653.2

Sheet payroll
A1: Name | B1: Seq | C1: Pay | D1: Cycle | E1: Account | F1: S/W | G1: Pct | H1: Voucher | I1: Hrs | J1: S/W/L | K1: Charged | M1: Pay Prd | N1: Pay Prd
B2: Nbr | C2: Cycle | D2: Date | F2: Obj | G2: Eft | I2: Worked | J2: Amt | K2: Benefit Amt | L2: Total | M2: Beg Date | N2: End Date
A3: Uwak, Inyang | B3: 1 | C3: M | D3: 2017-09-30 | E3: 608101-00703 | F3: 1325 | G3: 0.5 | H3: 0004086 | I3: 0.00 | J3: 2000 | K3: 158.6 | L3: =SUM(J3:K3) -> 2158.6 | M3: 2017-09-01 | N3: 2017-09-30
A4: Jaikumar, Rohit | B4: 2 | C4: M | D4: 2017-09-30 | E4: 608101-00703 | F4: 1315 | G4: 0.15 | H4: 0004086 | I4: 25.20 | J4: 625 | K4: 140.88 | L4: =SUM(J4:K4) -> 765.88 | M4: 2017-09-01 | N4: 2017-09-30
A5: Khreis, Haneen R | B5: 4 | C5: M | D5: 2017-09-30 | E5: 608101-00703 | F5: 1310 | G5: 0.05 | H5: 0004086 | I5: 0.00 | J5: 315.48 | K5: 48 | L5: 363.48 | M5: 2017-09-01 | N5: 2017-09-30
A6: Ramani, Tara L | B6: 7 | C6: M | D6: 2017-09-30 | E6: 608101-00703 | F6: 1310 | G6: 0.153 | H6: 0004086 | I6: 0.00 | J6: 1420.94 | K6: 315.52 | L6: 1736.46 | M6: 2017-09-01 | N6: 2017-09-30
A7: Vallamsundar, Suriyapriy | B7: 2 | C7: M | D7: 2017-09-30 | E7: 608101-00703 | F7: 1310 | G7: 0.05 | H7: 0004086 | I7: 0.00 | J7: 346.85 | K7: 73.83 | L7: 420.68 | M7: 2017-09-01 | N7: 2017-09-30
A9: Uwak, Inyang | B9: 1 | C9: M | D9: 2017-10-31 | E9: 608101-00703 | F9: 1325 | G9: 0.5 | H9: 0004212 | I9: 44.00 | J9: 2000 | K9: 403.41 | L9: 2403.41 | M9: 2017-10-01 | N9: 2017-10-31
A10: Khreis, Haneen R | B10: 4 | C10: M | D10: 2017-10-31 | E10: 608101-00703 | F10: 1310 | G10: 0.05 | H10: 0004212 | I10: 8.80 | J10: 331.25 | K10: 49.91 | L10: 381.16 | M10: 2017-10-01 | N10: 2017-10-31
A11: Ramani, Tara L | B11: 10 | C11: M | D11: 2017-10-31 | E11: 608101-00703 | F11: 1310 | G11: 0.153 | H11: 0004212 | I11: 26.93 | J11: 1420.94 | K11: 315.52 | L11: 1736.46 | M11: 2017-10-01 | N11: 2017-10-31
A13: Jaikumar, Rohit | B13: 1 | C13: M | D13: 2017-11-30 | E13: 608101-00703 | F13: 1315 | G13: 0.1 | H13: 0004338 | I13: 0.00 | J13: 416.67 | K13: 93.92 | L13: 510.59 | M13: 2017-11-01 | N13: 2017-11-30
A15: Vallamsundar, Suriyapriy | B15: 3 | C15: M | D15: 2017-12-31 | E15: 608101-00703 | F15: 1310 | G15: 0.15 | H15: 0018120 | I15: 0.00 | J15: 1065.53 | K15: 206.34 | L15: 1271.87 | M15: 2017-12-01 | N15: 2017-12-31
A17: Vallamsundar, Suriyapriy | B17: 1 | C17: X | D17: 2018-02-02 | E17: 608101-00703 | F17: 1310 | G17: -0.15 | H17: 0018120 | I17: 0.00 | J17: -1065.53 | K17: -206.34 | L17: -1271.87 | M17: 2017-12-01 | N17: 2017-12-31
A30: Name | B30: Seq | C30: Pay | D30: Cycle | E30: Account | F30: S/W | G30: Pct | H30: Voucher | I30: Hrs | J30: S/W/L | K30: Charged | L30: Status | M30: Pay Prd | N30: Pay Prd
B31: Nbr | C31: Cycle | D31: Date | F31: Obj | G31: Eft | I31: Worked | J31: Amt | K31: Benefit Amt | M31: Beg Date | N31: End Date
A32: Uwak, Inyang | B32: 1 | C32: M | D32: 2017-11-30 | E32: 165928-00003 | F32: 1325 | G32: 0.5 | H32: 0004338 | I32: 0.00 | J32: 2000 | K32: 401.41 | L32: =SUM(J32:K32) -> 2401.41 | M32: 2017-11-01 | N32: 2017-11-30
A33: Khreis, Haneen R | B33: 4 | C33: M | D33: 2017-11-30 | E33: 165928-00003 | F33: 1310 | G33: 0.052 | H33: 0004338 | I33: 0.00 | J33: 344.5 | K33: 0.62 | L33: =SUM(J33:K33) -> 345.12 | M33: 2017-11-01 | N33: 2017-11-30
A34: Ramani, Tara L | B34: 3 | C34: M | D34: 2017-11-30 | E34: 165928-00003 | F34: 1310 | G34: 0.1485 | H34: 0004338 | I34: 0.00 | J34: 1404.79 | K34: 91.68 | L34: 1496.47 | M34: 2017-11-01 | N34: 2017-11-30
A35: Uwak, Inyang | B35: 1 | C35: M | D35: 2017-12-31 | E35: 165928-00003 | F35: 1325 | G35: 0.5 | H35: 0018120 | I35: 0.00 | J35: 2000 | K35: 401.41 | L35: 2401.41 | M35: 2017-12-01 | N35: 2017-12-31
A36: Ramani, Tara L | B36: 3 | C36: M | D36: 2017-12-31 | E36: 165928-00003 | F36: 1310 | G36: 0.15 | H36: 0018120 | I36: 0.00 | J36: 1418.99 | K36: 92.61 | L36: 1511.6 | M36: 2017-12-01 | N36: 2017-12-31
A37: Uwak, Inyang | B37: 1 | C37: M | D37: 2018-01-31 | E37: 165928-00003 | F37: 1325 | G37: 0.5 | H37: 0018010 | I37: 0.00 | J37: 2000 | K37: 401.41 | L37: 2401.41 | M37: 2018-01-01 | N37: 2018-01-31
A38: Jaikumar, Rohit | B38: 1 | C38: M | D38: 2018-01-31 | E38: 165928-00003 | F38: 1510 | G38: 0.1 | H38: 0018010 | I38: 0.00 | J38: 416.67 | K38: 60.79 | L38: 477.46 | M38: 2018-01-01 | N38: 2018-01-31
A39: Ramani, Tara L | B39: 3 | C39: M | D39: 2018-01-31 | E39: 165928-00003 | F39: 1310 | G39: 0.15 | H39: 0018010 | I39: 0.00 | J39: 1418.99 | K39: 92.61 | L39: 1511.6 | M39: 2018-01-01 | N39: 2018-01-31
A40: Vallamsundar, Suriyapriy | B40: 2 | C40: X | D40: 2018-02-02 | E40: 165928-00003 | F40: 1310 | G40: 0.15 | H40: 0018120 | I40: 0.00 | J40: 1065.53 | K40: 40.11 | L40: 1105.64 | M40: 2017-12-01 | N40: 2017-12-31
A41: Uwak, Inyang | B41: 1 | C41: M | D41: 2018-02-28 | E41: 165928-00003 | F41: 1325 | G41: 0.5 | H41: 0018020 | I41: 0.00 | J41: 2000 | K41: 401.41 | L41: 2401.41 | M41: 2018-02-01 | N41: 2018-02-28
A42: Ramani, Tara L | B42: 3 | C42: M | D42: 2018-02-28 | E42: 165928-00003 | F42: 1310 | G42: 0.15 | H42: 0018020 | I42: 0.00 | J42: 1418.99 | K42: 92.61 | L42: 1511.6 | M42: 2018-02-01 | N42: 2018-02-28
A43: Uwak, Inyang | B43: 1 | C43: M | D43: 2018-03-31 | E43: 165928-00003 | F43: 1325 | G43: 0.5 | H43: 0018030 | I43: 0.00 | J43: 2000 | K43: 401.41 | L43: 2401.41 | M43: 2018-03-01 | N43: 2018-03-31
A44: Jaikumar, Rohit | B44: 1 | C44: M | D44: 2018-03-31 | E44: 165928-00003 | F44: 1510 | G44: 0.1 | H44: 0018030 | I44: 0.00 | J44: 416.67 | K44: 60.79 | L44: 477.46 | M44: 2018-03-01 | N44: 2018-03-31
A45: Ramani, Tara L | B45: 3 | C45: M | D45: 2018-03-31 | E45: 165928-00003 | F45: 1310 | G45: 0.15 | H45: 0018030 | I45: 0.00 | J45: 1418.99 | K45: 92.61 | L45: 1511.6 | M45: 2018-03-01 | N45: 2018-03-31
A46: Uwak, Inyang | B46: 1 | C46: M | D46: 2018-04-30 | E46: 165928-00003 | F46: 1325 | G46: 0.5 | H46: 0018040 | I46: 0.00 | J46: 2000 | K46: 401.41 | L46: 2401.41 | M46: 2018-04-01 | N46: 2018-04-30
A47: Johnson, Natalie M | B47: 1 | C47: M | D47: 2018-04-30 | E47: 165928-00003 | F47: 1310 | G47: 0.25 | H47: 0018040 | I47: 0.00 | J47: 2273.59 | K47: 202.99 | L47: 2476.58 | M47: 2018-04-01 | N47: 2018-04-30
A48: Jaikumar, Rohit | B48: 1 | C48: M | D48: 2018-04-30 | E48: 165928-00003 | F48: 1510 | G48: 0.1 | H48: 0018040 | I48: 0.00 | J48: 416.67 | K48: 60.79 | L48: 477.46 | M48: 2018-04-01 | N48: 2018-04-30
A49: Ramani, Tara L | B49: 3 | C49: M | D49: 2018-04-30 | E49: 165928-00003 | F49: 1310 | G49: 0.15 | H49: 0018040 | I49: 0.00 | J49: 1418.99 | K49: 92.61 | L49: 1511.6 | M49: 2018-04-01 | N49: 2018-04-30
A51: Uwak, Inyang | B51: 1 | C51: M | D51: 2018-05-31 | E51: 165928-00003 | F51: 1325 | G51: 0.5 | H51: 0018050 | I51: 0.00 | J51: 2000 | K51: 401.41 | L51: =SUM(J51:K51) -> 2401.41 | M51: 2018-05-01 | N51: 2018-05-31
A52: Johnson, Natalie M | B52: 1 | C52: M | D52: 2018-05-31 | E52: 165928-00003 | F52: 1310 | G52: 0.25 | H52: 0018050 | I52: 0.00 | J52: 2273.59 | K52: 202.99 | L52: =SUM(J52:K52) -> 2476.58 | M52: 2018-05-01 | N52: 2018-05-31
A53: Jaikumar, Rohit | B53: 1 | C53: M | D53: 2018-05-31 | E53: 165928-00003 | F53: 1510 | G53: 0.1 | H53: 0018050 | I53: 0.00 | J53: 458.33 | K53: 60.87 | L53: =SUM(J53:K53) -> 519.2 | M53: 2018-05-01 | N53: 2018-05-31
A54: Ramani, Tara L | B54: 3 | C54: M | D54: 2018-05-31 | E54: 165928-00003 | F54: 1310 | G54: 0.15 | H54: 0018050 | I54: 0.00 | J54: 1418.99 | K54: 92.61 | L54: =SUM(J54:K54) -> 1511.6 | M54: 2018-05-01 | N54: 2018-05-31

Sheet summary
D3: State | E3: Federal
D4: 5/1 - 8/31 | E4: 9/1 - 12/31 | F4: Total
A5: Labor | B5: effort | C5: months
A6: Tara | B6: 0.15 | C6: 8 | D6: 6046 | E6: 6930 | F6: =SUM(D6:E6) -> 12976
A7: Inyang | B7: 0.5 | C7: 8 | D7: 9606 | E7: 9606 | F7: =SUM(D7:E7) -> 19212
A8: Amber | B8: 3 wks | C8: 1 | D8: 4929 | E8: 0 | F8: 4929
A9: Rohit | B9: 2 wks | C9: 1 | D9: 2817 | E9: 0 | F9: 2817
A10: Natalie | B10: 0.25 | C10: 2 | D10: 4953 | E10: 0 | F10: 4953
A11: Lupe | B11: 2 wks | C11: 1 | D11: 0 | E11: 2749 | F11: 2749
A12: Alfredo | B12: 2 wks | C12: 1 | D12: 0 | E12: 4240 | F12: 4240
A13: Lorenzo | B13: 2 wks | C13: 1 | D13: 0 | E13: 2847.96 | F13: 2847.96
A14: Jeremy | B14: 0.05 | C14: 1?
A15: Suriya | B15: 0.05 | C15: 1?
A16: Travel | D16: 0 | E16: 6000 | F16: =SUM(D16:E16) -> 6000
A17: Supplies | D17: 0 | E17: 6000 | F17: 6000
A18: Computer | D18: 423 | E18: 445 | F18: 868
A19: Shipping | D19: 0 | E19: 4000 | F19: 4000
A20: Total Direct: | D20: =SUM(D6:D19) -> 28774 | E20: =SUM(E6:E19) -> 42817.96 | F20: 71591.96
A21: Indirect | D21: =ROUND(0.485*(D20-D18),0) -> 13750 | E21: =ROUND(0.485*(E20-E18),0) -> 20551 | F21: 34301
A22: Total | D22: =SUM(D20:D21) -> 42524 | E22: =SUM(E20:E21) -> 63368.96 | F22: 105892.96
C24: Current Funds Available: | D24: 63511
C25: Less balance of FY18 exp's: | D25: =-D20 -> -28774
D26: =SUM(D24:D25) -> 34737
C27: IDC | D27: =0.485*D26 -> 16847.445
D28: =SUM(D26:D27) -> 51584.445
A31: at 6/29/18
D33: State | E33: Federal
D34: 6/1 - 8/31 | E34: 9/1 - 2/28 | F34: Total
A35: Labor | B35: effort | C35: months
A36: Tara | B36: 0.05 | C36: 9 | D36: =3*503.87 -> 1511.61 | E36: =6*513.24 -> 3079.44 | F36: =SUM(D36:E36) -> 4591.05
A37: Inyang | B37: 0.5 | C37: 9 | D37: =3*2401.41 -> 7204.23 | E37: =6*2401.41 -> 14408.46 | F37: =SUM(D37:E37) -> 21612.69
A38: Amber | B38: 1 wk | C38: 1 | D38: 1642.94 | E38: 0 | F38: 1642.94
A39: Rohit | B39: 2 wks | C39: 1 | D39: 2196.28 | E39: 0 | F39: 2196.28
A40: Natalie | B40: 0.25 | C40: 1 | D40: 2476.59 | E40: 0 | F40: 2476.59
A41: Lupe | B41: 2 wks | C41: 1 | D41: 0 | E41: 0 | F41: 0
A42: Alfredo | B42: 2 wks | C42: 1 | D42: 0 | E42: 0 | F42: 0
A43: Lorenzo | B43: 2 wks | C43: 1 | D43: 0 | E43: 0 | F43: 0
C44: Total Labor | D44: =SUM(D36:D43) -> 15031.65 | E44: =SUM(E36:E43) -> 17487.9 | F44: 32519.55
A45: Travel | D45: 0 | E45: 6000 | F45: 6000
A46: Supplies | D46: 0 | E46: 6000 | F46: 6000
A47: Computer | D47: 155.25 | E47: 220 | F47: 375.25
A48: Shipping | D48: 0 | E48: 4000 | F48: 4000
A49: Total Direct: | D49: =SUM(D44:D48) -> 15186.9 | E49: =SUM(E44:E48) -> 33707.9 | F49: 48894.8
A50: Indirect | D50: =ROUND(0.485*(D49-D47),0) -> 7290 | E50: =ROUND(0.485*(E49-E47),0) -> 16242 | F50: 23532
A51: Total | D51: =SUM(D49:D50) -> 22476.9 | E51: =SUM(E49:E50) -> 49949.9 | F51: 72426.8
C53: Current Funds Available: | D53: 56548
C54: Less balance of FY18 exp's: | D54: =-D49 -> -15186.9
C55: Less FY19 exp's: | D55: =-E49 -> -33707.9
C56: balance remaining: | D56: =SUM(D53:D55) -> 7653.2 | F56: +

Sheet Travel Details (hidden)
C1: ESTIMATED TRAVEL DETAILS - INTERNAL ONLY
C2: TEXAS A&M TRANSPORTATION INSTITUTE
B3: ESTIMATING PARAMETERS:
B5: AUTO RENTAL - | D5: 50 | E5: /Day
B6: MILEAGE - | D6: 0.54 | E6: /Mile
B7: PER DIEM - | D7: Includes Meals, Incidental Expenses, and Lodging
J9: Choose either Rental or Mileage | O9: 0.75
E10: RATE OF | F10: # OF | G10: # PERSONS | H10: NO. OF | I10: NO. OF | J10: NO. OF | K10: NO. OF | L10: NO. OF | M10: PER DIEM | N10: PER DIEM | O10: M&IE (First/
B11: # | C11: FROM/TO | E11: AIRFARE | F11: TRIPS | G11: (MEALS) | H11: DAYS | I11: NIGHTS | J11: RENTAL CARS | K11: TTI CARS | L11: R/T MILES | M11: LODGING | N11: M&IE | O11: Last days) | P11: Task | Q11: PURPOSE
B12: 1 | C12: College Station, TX / ?? | E12: 0 | F12: 0 | G12: 0 | H12: 0 | I12: 0 | J12: 0 | K12: 0 | L12: 0 | M12: 0 | N12: 0 | O12: =+$O$9*N12 -> 0
B13: 2 | C13: College Station, TX / ?? | E13: 0 | F13: 0 | G13: 0 | H13: 0 | I13: 0 | J13: 0 | K13: 0 | L13: 0 | M13: 0 | N13: 0 | O13: 0
B14: 1 | C14: College Station, TX / ?? | E14: 0 | F14: 0 | G14: 0 | H14: 0 | I14: 0 | J14: 0 | K14: 0 | L14: 0 | M14: 0 | N14: 0 | O14: 0
B15: 4 | C15: College Station, TX / ?? | E15: 0 | F15: 0 | G15: 0 | H15: 0 | I15: 0 | J15: 0 | K15: 0 | L15: 0 | M15: 0 | N15: 0 | O15: 0
B16: 2 | C16: College Station, TX / ?? | E16: 0 | F16: 0 | G16: 0 | H16: 0 | I16: 0 | J16: 0 | K16: 0 | L16: 0 | M16: 0 | N16: 0 | O16: 0
B17: 3 | C17: College Station, TX / ?? | E17: 0 | F17: 0 | G17: 0 | H17: 0 | I17: 0 | J17: 0 | K17: 0 | L17: 0 | M17: 0 | N17: 0 | O17: 0
B18: 4 | C18: College Station, TX / ?? | E18: 0 | F18: 0 | G18: 0 | H18: 0 | I18: 0 | J18: 0 | K18: 0 | L18: 0 | M18: 0 | N18: 0 | O18: 0
H20: TRANSPOR- | N20: PER
F21: AUTO | H21: TATION | I21: LODGING | J21: M&IE | L21: M&IE (First/ | M21: SUBTOTAL | N21: DIEM | O21: TASK
B22: # | C22: FROM/TO | E22: AIRFARE | F22: RENTAL | G22: MILEAGE | H22: SUBTOTAL | I22: SUBTOTAL | J22: M&IE | L22: Last days) | M22: M&IE | N22: TOTAL | O22: TOTALS | P22: Task | Q22: PURPOSE
B23: =B12 -> 1 | C23: College Station, TX / ?? | E23: =ROUND(F12*G12*E12,2) -> 0 | F23: =ROUND(J12*F12*H12*D$5,2) -> 0 | G23: =ROUND(D$6*F12*K12*L12,0) -> 0 | H23: =SUM(E23:G23) -> 0 | I23: =ROUND(M12*F12*G12*I12,2) -> 0 | J23: =ROUND(IF(H12>=3,N12*(H12-2)*G12*F12,0),2) -> 0 | L23: =ROUND(IF(H12<=2,O12*F12*G12*H12,2*O12*F12*G12),0) -> 0 | M23: =L23+J23 -> 0 | N23: =+M23+I23 -> 0 | O23: =+N23+H23 -> 0
B24: 2 | C24: College Station, TX / ?? | E24: 0 | F24: 0 | G24: =ROUND(D$6*F13*K13*L13,0) -> 0 | H24: 0 | I24: 0 | J24: 0 | L24: =ROUND(IF(H13<=2,O13*F13*G13*H13,2*O13*F13*G13),0) -> 0 | M24: 0 | N24: 0 | O24: 0
B25: 1 | C25: College Station, TX / ?? | E25: =ROUND(F14*G14*E14,0) -> 0 | F25: =ROUND(J14*F14*H14*D$5,0) -> 0 | G25: =ROUND(D$6*F14*K14*L14,0) -> 0 | H25: =SUM(E25:G25) -> 0 | I25: =ROUND(M14*F14*G14*I14,2) -> 0 | J25: 0 | L25: =ROUND(IF(H14<=2,O14*F14*G14*H14,2*O14*F14*G14),0) -> 0 | M25: 0 | N25: 0 | O25: 0
B26: 4 | C26: College Station, TX / ?? | E26: 0 | F26: 0 | G26: =ROUND(D$6*F15*K15*L15,2) -> 0 | H26: 0 | I26: 0 | J26: 0 | L26: =ROUND(IF(H15<=2,O15*F15*G15*H15,2*O15*F15*G15),0) -> 0 | M26: 0 | N26: 0 | O26: 0
B27: 2 | C27: College Station, TX / ?? | E27: 0 | F27: 0 | G27: 0 | H27: 0 | I27: 0 | J27: 0 | L27: 0 | M27: 0 | N27: 0 | O27: 0
B28: 3 | C28: College Station, TX / ?? | E28: 0 | F28: 0 | G28: 0 | H28: 0 | I28: 0 | J28: 0 | L28: 0 | M28: 0 | N28: 0 | O28: 0
B29: 4 | C29: College Station, TX / ?? | E29: 0 | F29: 0 | G29: 0 | H29: =SUM(E29:G29) -> 0 | I29: 0 | J29: 0 | L29: 0 | M29: 0 | N29: 0 | O29: 0
D31: Total Travel Costs | E31: =SUM(E23:E30) -> 0 | F31: 0 | G31: 0 | H31: 0 | I31: 0 | J31: 0 | L31: 0 | M31: 0 | N31: 0 | O31: 0
D33: Indirect @ 48.5% | O33: =ROUND(O31*0.485,0)*0 -> 0
D35: Total Travel Costs | O35: =SUM(O23:O29) -> 0
C39: Notes: Corrected Cell H14 to show rounded 2 instead of 1.75. Per Diem calculates at .75 for first & last days so no need to enter partial days.
C40: Also added one rental car for the stay, so if this is not needed can remove the "1" in cell J14.

Sheet IDC Split- CE (hidden)
B1: CE (or other dept) faculty and staff direct labor | F1: CE (or other dept) grad student direct labor
B2: enter direct * (1+escalation)
F3: (use white cell below & add from budget)
B6: Staff Fringes | F6: Grad Fringes
B9: Staff hours (add from budget) | F9: Grad hours (add from budget)
B12: Staff medical | F12: Grad medical
D15: Total labor and fringes from budget (relink if you are using budget by phase)
D16: 0
B17: NEW PROCESS!! FILL IN THE CELLS ABOVE AND THE CELLS BELOW WILL CALCULATE. LET ME KNOW IF IT DOESN'T WORK. --SUSAN
B19: In addition to this form, make a copy of the budget showing only CE labor and fringes, and the related idc.
A21: =#REF! ->  | H21: =#REF! -> 
A22: =#REF! -> 
A24: Proposed Indirect Cost Distribution
B28: BREAKDOWN OF INDIRECT COST BASED ON SALARIES BY DEPARTMENT | L28: NOTES:
L29: CE only--% Share Distributed is 66%
B30: Department | C30: Civil
B31: Salaries, Fringe, Medical | C31: =B4+B7+B13+F4+F7+F13 -> 0 | L31: CE only--% Share Distributed is 71%
B32: RF retains .0989 of direct costs = | C32: =C31*0.0989 -> 0 | L32: when total project cost is $300,000 to $500,000
B33: IDC on Salaries, Fringe, Medical | C33: =C31*0.465 -> 0
B34: IDC minus retainage | C34: =C33-C32 -> 0 | L34: All others--% share distributed is 60%
B35: Percent distributed to Dept: | C35: 0.71
B36: IDC to Dept: | C36: =C35*C34 -> 0
B39: Department | C39: Level of Effort in $ | D39: Indirect Cost on Salaries | E39: Net IDC | F39: % Share of | G39: Share of
E40: Available for | F40: Distributed | G40: Net IDC
E41: Distribution | F41: IDC on Salaries | G41: Distributed
B43: Civil Engineering | C43: =B4+B7+B13+F4+F7+F13 -> 0 | D43: =C43*0.465 -> 0 | E43: =D52*F59 ->  | F43: 0.66 | G43: =F43*E43 ->  | J43: NOTES:
J47: CE only--% Share Distributed is 66%
B48: Notes: | J48: CE only--% Share Distributed is 71%
B49: Total direct costs = | D49: 0 | J49: when total project cost is $300,000 to $500,000
B50: RF retains .0989 of direct costs = | D50: =D49*0.0989 -> 0
B51: Total indirect on project = | D51: 0
B52: Net indirect available for sharing = | D52: =D51-D50 -> 0 | J52: All others--% share distributed is 60%
A54: Proposed Distribution Summary:
D56: Distribution | F56: Percent Share
D57: of Net | F57: of Total
D58: Indirect Dollars | F58: Indirect Costs
A59: Civil Engineering | D59: =G43 ->  | F59: =D43/D51 -> 
A60: Other | D60: =D52-G43 ->  | F60: =F61-F59 -> 
A61: Total | D61: =D52 -> 0 | F61: 1
A66: Agency Director, Texas Transportation Institute | F66: Department Head, Civil Engineering

Sheet 424p1 (hidden)
A1: APPLICATION FOR | C1: 2. DATE SUBMITTED | D1: Applicant Identifier
A2: FEDERAL ASSISTANCE
A3: 1. TYPE OF SUBMISSION | C3: 3. DATE RECEIVED BY STATE | D3: State Application Identifier
A4: Application | B4: Pre-application | C4: n/a | D4: n/a
A5: Construction | B5: Construction | C5: 4. DATE RECEIVED BY FEDERAL AGENCY | D5: Federal Identifier
A6: XX Non-construction | B6: Non-construction
A7: 5. APPLICANT INFORMATION
A8: Legal Name | C8: Organizational Unit
A9: Texas A&M Transportation Institute | C9: Texas A&M Transportation Institute
A10: Address (give city, county, state and zip code) | C10: Name and telephone number of the person to be contacted
A11: 400 Harvey Mitchell Parkway South, Suite 100 | C11: on this application (give area code)
A12: College Station, Texas 77845 | C12: Tim Hein
A13: Brazos County | C13: 979-845-8655
A14: 6. EMPLOYER IDENTIFICATION NUMBER (EIN) | C14: 7. TYPE OF APPLICANT (enter in box) | F14: RF DUNS | G14: 07-859-2789
C15: A. State | D15: H. Independent School Dist. | F15: RF EIN | G15: 74-1238434
A16: 8. TYPE OF APPLICATION | C16: B. County | D16: I. State Controlled Institute
A17: X new continuation revision | C17: C. Municipal | D17: of Higher Learning
C18: D. Township | D18: J. Private University
A19: if Revision, enter appropriate letter(s) in box(es) | C19: E. Interstate | D19: K. Indian Tribe
C20: F. Intermunicipal | D20: L. Individual
A21: A. Increase Award B. Decrease Award | C21: G. Special District | D21: M. Profit Organization
D22: N. Other - Non-Profit Corp.
C23: affiliated w/a State Educational Institution
A24: C. Increase Duration D. Decrease Duration Other | C24: 9. NAME OF FEDERAL AGENCY
C25: Federal Highway Administration
A26: 10. CATALOG OF FEDERAL DOMESTIC 2 0 2 0 5 | C26: 11. DESCRIPTIVE TITLE OF APPLICANT'S PROJECT
A27: ASSISTANCE NUMBER
A28: TITLE | C28: title line 1
A29: Highway Planning and Construction | C29: title line 2
A30: 12. AREAS AFFECTED BY PROJECT
A33: 13. PROPOSED PROJECT | C33: 14. CONGRESSIONAL DISTRICTS OF
A34: Start Date | B34: Ending Date | C34: a. Applicant | D34: b. Project
A35: 00:00:00 | B35: 00:00:00 | C35: 31st | D35: 31st
A36: 15. ESTIMATED FUNDING | C36: 16. IS APPLICATION SUBJECT TO REVIEW BY STATE EXECUTIVE ORDER
A37: a. Federal | B37: 0 | C37: 12372 PROCESS?
A38: b. Applicant | C38: a. YES THIS PREAPPLICATION APPLICATION WAS MADE AVAILABLE TO
A39: c. State | C39: THE STATE EXECUTIVE ORDER 12372 PROCESS FOR REVIEW ON
A40: d. Local | C40: DATE
A41: e. Other | C41: b. NO X PROGRAM IS NOT COVERED BY E. O. 12372
A42: f. Program Income | C42: OR PROGRAM HAS NOT BEEN SELECTED BY STATE FOR REVIEW
A43: g. TOTAL | B43: =SUM(B37:B42) -> 0
C44: 17. IS APPLICANT DELINQUENT ON ANY FEDERAL DEBT?
C45: Yes If "yes" attach an explanation | D45: X No
A46: 18. TO THE BEST OF MY KNOWLWDGE AND BELIEF ALL DATA IN THIS APPLICATION PREAPPLICATION ARE TRUE AND CORRECT. THE DOCUMENT HAS BEEN DULY
A47: AUTHORIZED BY THE GOVERNING BODY OF THE APPLICANT AND THE APPLICANT WILL COMPLY WITH THE ATTACHED ASSURANCES IF THE ASSISTANCE IS AWARDED.
A48: a. Typed name of Authorized Representative | C48: b. Title | D48: c. Telephone number
A49: Jane Zuber | C49: Associate Vice President | D49: 979-845-8615
A50: d. Signature of Authorized Representative | D50: e. Date Signed

Sheet 424A (hidden)
A2: BUDGET INFORMATION--Non-Construction Programs
A4: SECTION A--BUDGET SUMMARY
A5: Grant Program | B5: Catalog of Federal | C5: Est. Unobligated Funds | E5: New or Revised Budget
A6: Function or Activity | B6: Dom. Asst. Num. | C6: Federal | D6: Non-Federal | E6: Federal | F6: Non-Federal | G6: Totals
A7: (a) | B7: (b) | C7: (c) | D7: (d) | E7: (e) | F7: (f) | G7: (g)
A8: 1. Cooperative Agreement | B8: 20.2 | E8: 0 | G8: =E8+F8 -> 0
A9: 2
A10: 3
A11: 4
A12: 5. TOTALS | E12: =SUM(E8:E11) -> 0 | G12: =SUM(G8:G11) -> 0
A13: SECTION B--BUDGET CATEGORIES
A14: 6. Object Class Categories | C14: GRANT PROGRAM, FUNCTION OR ACTIVITY | G14: TOTAL
C15: (1) | D15: (2) | E15: (3) | F15: (4) | G15: (5)
A16: a. Personnel | G16: =SUM(C16:F16) -> 0
A17: b. Fringe Benefits | G17: 0
A18: c. Travel | G18: 0
A19: d. Equipment | G19: 0
A20: e. Supplies | G20: 0
A21: f. Contractural | G21: 0
A22: h. Other (services) | G22: 0
A23: I. Total Direct Charges | G23: 0
A24: j. Indirect Charges | G24: 0
A25: k. TOTALS | C25: =SUM(C23:C24) -> 0 | G25: 0
A27: 7. Program Income | C27: 0 | G27: 0

Sheet 4220.44-RF (hidden)
F1: Page 1 of ? Pages
A2: CONTRACT PRICING SUMMARY
A3: (For New Contracts Including Letter Contracts) | F3: OMB Control No. 2105-0517
A4: (See Instructions on Reverse) | F4: Expiration Date: 4/30/97
A5: This form is for use in support of Standard Form 1411 prescribed by GSA, FAR (48 CFR) 53.215-2 (c), Format 7A
A6: Public reporting burden for this collection of information is estimated to average 5 hours per response, including the time for reviewing instructions searching existing data sources, gathering and
A7: maintaining the data needed, and completing and reviewing the collection of information. Send comments regarding this burden estimate or any aspect of this collection of information, including
A8: suggestions for reducing this burden, to the FAR Secretariat (VRS), Office of Federal Acquisition and Regulatory Policy, GSA, Washington, D.C. 20405; and to the Office of Management and Budget,
A9: Paperwork Reduction Project (2105-0517), Washington, D.C. 20503.
A10: NAME OF OFFEROR Texas A&M Research Foundation | D10: SUPPLIES AND/OR SERVICES TO BE FURNISHED
A11: HOME OFFICE ADDRESS 400 Harvey Mitchell Parkway South, Suite 300 College Station, TX 77845
A12: DIVISION(S) AND LOCATION(S) WHERE WORK IS TO BE PERFORMED Texas A&M Transportation Institute | D12: GOV'T. SOLICITATION NO. Insert Fed RFP No. Here
A13: DETAIL DESCRIPTION OF COST ELEMENTS
A14: 1. DIRECT MATERIAL | D14: EST COST ( $) | F14: TOTAL EST COST | H14: REFER- ENCE
A15: A. PURCHASED PARTS
A16: B. SUBCONTRACTED ITEMS
A17: C. OTHER - (1) RAW MATERIAL - supplies: binders, labels, packing materials
A18: (2) STANDARD COMMERCIAL ITEMS
A19: TOTAL DIRECT MATERIAL | F19: =SUM(D15:E18) -> 0
A20: 2. MATERIAL OVERHEAD (Rate 0 % X $ 0 base = n/a) | F20: 0
A21: 3. DIRECT LABOR | B21: ESTIMATED HOURS | C21: RATE/ HOUR | D21: EST COST ( $)
A22: Insert PI Name - Title | B22: 0 | C22: 0 | D22: =ROUND(B22*C22,0) -> 0
A23: Insert Research Name - Title | B23: 0 | C23: 0 | D23: 0
A24: Insert Research Name - Title | B24: 0 | C24: 0 | D24: 0
A25: Insert Research Name - Title | B25: 0 | C25: 0 | D25: 0
A26: Insert Research Name - Title | B26: 0 | C26: 0 | D26: 0
A27: Insert Research Name - Title | B27: 0 | C27: 0 | D27: 0
A28: Insert Research Name - Title | B28: 0 | C28: 0 | D28: 0
A29: Insert Research Name - Title | B29: 0 | C29: 0 | D29: 0
A30: Insert Support Staff Name - Title | B30: 0 | C30: 0 | D30: 0
A31: Insert Support Staff Name - Title | B31: 0 | C31: 0 | D31: 0
A32: Insert Support Staff Name - Title | B32: 0 | C32: 0 | D32: 0
A33: Insert Support Staff Name - Title | B33: 0 | C33: 0 | D33: 0
A34: Insert Support Staff Name - Title | B34: 0 | C34: 0 | D34: 0
A35: Student to be Named - Support Staff | B35: 0 | C35: 0 | D35: 0
A36: TOTAL DIRECT LABOR | F36: =ROUND(SUM(D22:E35),0) -> 0
A37: 4. LABOR OVERHEAD | B37: O.H. RATE | C37: X BASE = | D37: EST COST ( $ )
A38: Fringe Benefits - Full-time Staff | B38: 0.161 | C38: =SUM(D22:E34) -> 0 | D38: =ROUND(C38*B38,0) -> 0
A39: Fringe Benefits - Students | B39: 0.012 | C39: =D35 -> 0 | D39: =ROUND(C39*B39,0) -> 0
A40: Insurance Benefits @ $459/staff month | D40: =ROUND((SUM(B22:B34)/174)*459,0) -> 0
A42: TOTAL LABOR OVERHEAD | F42: =ROUND(SUM(D38:E41),0) -> 0
A43: 5. OTHER DIRECT COSTS | D43: EST COST ( $ )
A44: A. SPECIAL TOOLING/EQUIPMENT
A47: TOTAL SPECIAL TOOLING/EQUIPMENT | F47: 0
A48: B. TRAVEL | D48: EST COST ( $ )
A49: (1) TRANSPORTATION | D49: 0
A50: (2) PER DIEM OR SUBSISTENCE | D50: 0
A51: TOTAL TRAVEL | F51: =ROUND(SUM(D49:E50),0) -> 0
A52: C. INDIVIDUAL CONSULTANT SERVICES | D52: EST COST ( $ )
A53: Insert Description/Name Here | D53: 0
A54: TOTAL INDIVIDUAL CONSULTANT SERVICES | F54: =D53 -> 0
A55: D. OTHER | D55: EST COST ( $ )
A56: (1) Computer Operations @ $225/staff month | D56: =ROUND((SUM(B22:B34)/174)*225,0) -> 0
A57: (2) Long Distance Charges | D57: 0
A58: (3) Shipping (clearinghouse docs, workshop mat'ls, exhibition mat'ls) | D58: 0
A59: (4) Postage (newsletters) | D59: 0
A60: (5) Reproduction | D60: 0
A61: (6) Graphic design services | D61: 0
A62: (7) Conference and meeting expenses (incl. web conference costs) | D62: 0
A63: (8) Web server costs | D63: 0
A64: TOTAL OTHER | F64: =ROUND(SUM(D56:E63),0) -> 0
A65: SUBTOTAL DIRECT COST AND OVERHEAD | F65: =ROUND(SUM(F19:G64),0) -> 0
A66: 6.A. GENERAL AND ADMINISTRATIVE (G&A) EXPENSE (Rate 45.5% of $???,??? BASE (EXCLUDES NOS. C each part above $25,000, D1, D6, D7, D8) | F66: =ROUND((F65-D56)*0.455,0) -> 0
A67: B. GENERAL AND ADMINISTRATIVE (G&A) EXPENSE (Rate 26% of $???,??? BASE (For Penelope Weinberger's salary, fringe, & insurance) | F67: =ROUND(0*0.26,0) -> 0
A68: 7. ROYALTIES | F68: 0
A69: 8. SUBTOTAL ESTIMATED COST | F69: =ROUND(SUM(F65:G68),0) -> 0
A70: 9. CONTRACT FACILITIES CAPITAL AND COST OF MONEY | F70: 0
A71: 10 | F71: 0
A72: 11. FEE OR PROFIT | F72: 0
A73: 12. TOTAL ESTIMATED COST AND FEE OR PROFIT | F73: =SUM(F69:G72) -> 0
A75: Form DOT F 4220.44 (Rev. 10/94) (Excel) | B75: Previous Edition Obsolete | H75: Authorized for Local Reproduction

Sheet 4220.44-TTI (hidden)
F1: Page 1 of ? Pages
A2: CONTRACT PRICING SUMMARY
A3: (For New Contracts Including Letter Contracts) | F3: OMB Control No. 2105-0517
A4: (See Instructions on Reverse) | F4: Expiration Date: 4/30/97
A5: This form is for use in support of Standard Form 1411 prescribed by GSA, FAR (48 CFR) 53.215-2 (c), Format 7A
A6: Public reporting burden for this collection of information is estimated to average 5 hours per response, including the time for reviewing instructions searching existing data sources, gathering and
A7: maintaining the data needed, and completing and reviewing the collection of information. Send comments regarding this burden estimate or any aspect of this collection of information, including
A8: suggestions for reducing this burden, to the FAR Secretariat (VRS), Office of Federal Acquisition and Regulatory Policy, GSA, Washington, D.C. 20405; and to the Office of Management and Budget,
A9: Paperwork Reduction Project (2105-0517), Washington, D.C. 20503.
A10: NAME OF OFFEROR Texas A&M Transportation Institute | D10: SUPPLIES AND/OR SERVICES TO BE FURNISHED
A11: HOME OFFICE ADDRESS 400 Harvey Mitchell Parkway South, Suite 300 College Station, TX 77845
A12: DIVISION(S) AND LOCATION(S) WHERE WORK IS TO BE PERFORMED Texas A&M Transportation Institute | D12: GOV'T. SOLICITATION NO. Insert Fed RFP No. Here
A13: DETAIL DESCRIPTION OF COST ELEMENTS
A14: 1. DIRECT MATERIAL | D14: EST COST ( $) | F14: TOTAL EST COST | H14: REFER- ENCE
A15: A. PURCHASED PARTS
A16: B. SUBCONTRACTED ITEMS
A17: C. OTHER - (1) RAW MATERIAL - supplies: binders, labels, packing materials
A18: (2) STANDARD COMMERCIAL ITEMS
A19: TOTAL DIRECT MATERIAL | F19: =SUM(D15:E18) -> 0
A20: 2. MATERIAL OVERHEAD (Rate 0 % X $ 0 base = n/a) | F20: 0
A21: 3. DIRECT LABOR | B21: ESTIMATED HOURS | C21: RATE/ HOUR | D21: EST COST ( $)
A22: Insert PI Name - Title | B22: 0 | C22: 0 | D22: =ROUND(B22*C22,0) -> 0
A23: Insert Research Name - Title | B23: 0 | C23: 0 | D23: 0
A24: Insert Research Name - Title | B24: 0 | C24: 0 | D24: 0
A25: Insert Research Name - Title | B25: 0 | C25: 0 | D25: 0
A26: Insert Research Name - Title | B26: 0 | C26: 0 | D26: 0
A27: Insert Research Name - Title | B27: 0 | C27: 0 | D27: 0
A28: Insert Research Name - Title | B28: 0 | C28: 0 | D28: 0
A29: Insert Research Name - Title | B29: 0 | C29: 0 | D29: 0
A30: Insert Support Staff Name - Title | B30: 0 | C30: 0 | D30: 0
A31: Insert Support Staff Name - Title | B31: 0 | C31: 0 | D31: 0
A32: Insert Support Staff Name - Title | B32: 0 | C32: 0 | D32: 0
A33: Insert Support Staff Name - Title | B33: 0 | C33: 0 | D33: 0
A34: Insert Support Staff Name - Title | B34: 0 | C34: 0 | D34: 0
A35: Student to be Named - Support Staff | B35: 0 | C35: 0 | D35: 0
A36: TOTAL DIRECT LABOR | F36: =ROUND(SUM(D22:E35),0) -> 0
A37: 4. LABOR OVERHEAD | B37: O.H. RATE | C37: X BASE = | D37: EST COST ( $ )
A38: Fringe Benefits - Full-time Staff | B38: 0.161 | C38: =SUM(D22:E34) -> 0 | D38: =ROUND(C38*B38,0) -> 0
A39: Fringe Benefits - Students | B39: 0.012 | C39: =D35 -> 0 | D39: =ROUND(C39*B39,0) -> 0
A40: Insurance Benefits @ $459/staff month | D40: =ROUND((SUM(B22:B34)/174)*459,0) -> 0
A42: TOTAL LABOR OVERHEAD | F42: =ROUND(SUM(D38:E41),0) -> 0
A43: 5. OTHER DIRECT COSTS | D43: EST COST ( $ )
A44: A. SPECIAL TOOLING/EQUIPMENT
A47: TOTAL SPECIAL TOOLING/EQUIPMENT | F47: 0
A48: B. TRAVEL | D48: EST COST ( $ )
A49: (1) TRANSPORTATION | D49: 0
A50: (2) PER DIEM OR SUBSISTENCE | D50: 0
A51: TOTAL TRAVEL | F51: =ROUND(SUM(D49:E50),0) -> 0
A52: C. INDIVIDUAL CONSULTANT SERVICES | D52: EST COST ( $ )
A53: Insert Description/Name Here | D53: 0
A54: TOTAL INDIVIDUAL CONSULTANT SERVICES | F54: =D53 -> 0
A55: D. OTHER | D55: EST COST ( $ )
A56: (1) Computer Operations @ $225/staff month | D56: =ROUND((SUM(B22:B34)/174)*225,0) -> 0
A57: (2) Long Distance Charges | D57: 0
A58: (3) Shipping (clearinghouse docs, workshop mat'ls, exhibition mat'ls) | D58: 0
A59: (4) Postage (newsletters) | D59: 0
A60: (5) Reproduction | D60: 0
A61: (6) Graphic design services | D61: 0
A62: (7) Conference and meeting expenses (incl. web conference costs) | D62: 0
A63: (8) Web server costs | D63: 0
A64: TOTAL OTHER | F64: =ROUND(SUM(D56:E63),0) -> 0
A65: SUBTOTAL DIRECT COST AND OVERHEAD | F65: =ROUND(SUM(F19:G64),0) -> 0
A66: 6.A. GENERAL AND ADMINISTRATIVE (G&A) EXPENSE (Rate 45.5% of $???,??? BASE (EXCLUDES NOS. C each part above $25,000, D1, D6, D7, D8) | F66: =ROUND((F65-D56)*0.455,0) -> 0
A67: B. GENERAL AND ADMINISTRATIVE (G&A) EXPENSE (Rate 26% of $???,??? BASE (For Penelope Weinberger's salary, fringe, & insurance) | F67: =ROUND(0*0.26,0) -> 0
A68: 7. ROYALTIES | F68: 0
A69: 8. SUBTOTAL ESTIMATED COST | F69: =ROUND(SUM(F65:G68),0) -> 0
A70: 9. CONTRACT FACILITIES CAPITAL AND COST OF MONEY | F70: 0
A71: 10 | F71: 0
A72: 11. FEE OR PROFIT | F72: 0
A73: 12. TOTAL ESTIMATED COST AND FEE OR PROFIT | F73: =SUM(F69:G72) -> 0
A75: Form DOT F 4220.44 (Rev. 10/94) (Excel) | B75: Previous Edition Obsolete | H75: Authorized for Local Reproduction

Sheet 4220.44-blank (hidden)
F1: Page of Pages
A2: CONTRACT PRICING SUMMARY
A3: (For New Contracts Including Letter Contracts) | F3: OMB Control No. 2105-0517
A4: (See Instructions on Reverse) | F4: Expiration Date: 4/30/97
A5: This form is for use in support of Standard Form 1411 prescribed by GSA, FAR (48 CFR) 53.215-2 (c), Format 7A
A6: Public reporting burden for this collection of information is estimated to average 5 hours per response, including the time for reviewing instructions searching existing data sources, gathering and maintaining the data needed, and completing and reviewing the collection of information. Send comments regarding this burden estimate or any aspect of this collection of information, including suggestions for reducing this burden, to the FAR Secretariat (VRS), Office of Federal Acquisition and Regulatory Policy, GSA, Washington, D.C. 20405; and to the Office of Management and Budget, Paperwork Reduction Project (2105-0517), Washington, D.C. 20503.
A7: NAME OF OFFEROR | D7: SUPPLIES AND/OR SERVICES TO BE FURNISHED
A8: HOME OFFICE ADDRESS
A9: DIVISION(S) AND LOCATION(S) WHERE WORK IS TO BE PERFORMED | D9: GOV'T. SOLICITATION NO.
A10: DETAIL DESCRIPTION OF COST ELEMENTS
A11: 1. DIRECT MATERIAL | D11: EST COST ( $) | F11: TOTAL EST COST | H11: REFER- ENCE
A12: A. PURCHASED PARTS
A13: B. SUBCONTRACTED ITEMS
A14: C. OTHER - (1) RAW MATERIAL
A15: (2) STANDARD COMMERCIAL ITEMS
A16: TOTAL DIRECT MATERIAL
A17: 2. MATERIAL OVERHEAD (Rate 0 % X $ 0 base = n/a) | F17: 0
A18: 3. DIRECT LABOR | B18: ESTIMATED HOURS | C18: RATE/ HOUR | D18: EST COST ( $)
A25: TOTAL DIRECT LABOR
A26: 4. LABOR OVERHEAD | B26: OH RATE | C26: X BASE = | D26: EST COST ( $ )
A30: TOTAL LABOR OVERHEAD
A31: 5. OTHER DIRECT COSTS | D31: EST COST ( $ )
A32: A. SPECIAL TOOLING/EQUIPMENT
A35: TOTAL SPECIAL TOOLING/EQUIPMENT
A36: B. TRAVEL | D36: EST COST ( $ )
A37: (1) TRANSPORTATION
A38: (2) PER DIEM OR SUBSISTENCE
A39: TOTAL TRAVEL
A40: C. INDIVIDUAL CONSULTANT SERVICES | D40: EST COST ( $ )
A42: TOTAL INDIVIDUAL CONSULTANT SERVICES
A43: D. OTHER | D43: EST COST ( $ )
A45: TOTAL OTHER
A46: SUBTOTAL DIRECT COST AND OVERHEAD
A47: 6. GENERAL AND ADMINISTRATIVE (G&A) EXPENSE (Rate 45.5% of $ BASE (I.E., COST ELEMENT NOS. ) =
A48: 7. ROYALTIES
A49: 8. SUBTOTAL ESTIMATED COST
A50: 9. CONTRACT FACILITIES CAPITAL AND COST OF MONEY
A51: 10
A52: 11. FEE OR PROFIT
A53: 12. TOTAL ESTIMATED COST AND FEE OR PROFIT
A55: Form DOT F 4220.44 (Rev. 10/94) (Excel) | B55: Previous Edition Obsolete | H55: Authorized for Local Reproduction

Sheet NOT 1411 (hidden)
B2: PROPOSAL COVER SHEET | C2: 1. SOLICITATION NUMBER | F2: OMB NO.:9000-0073
A5: 2a.NAME OF OFFERER | C5: 3a. NAME OF POC | F5: 3c. TELEPHONE
B6: TEXAS A&M Transportation Institute
A7: 2b. FIRST LINE ADDRESS | C7: 3b. TITLE OF POC | F7: AREA CODE #
B8: 400 Harvey Mitchell Parkway South, Suite 100
A9: 2c. STREET ADDRESS | C9: TYPE OF CONTRACT ACTION
A11: 2d. CITY 2e. STATE 2f. ZIP | C11: xx | D11: A. NEW CONTRACT | F11: D. LETTER CONTRACT
B12: COLLEGE STATION TEXAS 77845
A13: 6. TYPE OF CONTRACT | D13: B. CHANGE ORDER | F13: E. UNPRICED ORDER
B14: FFP CPFF CPF CPAF
B15: FFI xx OTHER--COST REIMBURSABLE | D15: C. PRICE REVISION | F15: F. OTHER
B17: 6. PERFORMANCE
A18: PLACES | F18: PERIODS
A19: a. | F19: a.
A20: b. | F20: b.
A21: c. | F21: c.
B22: 7. List and reference the identification , quantity, and total price proposed for each contract line item
A23: a. # | B23: b. IDENTIFICATION | C23: c. QUANTITY | E23: d. TOTAL PRICE | F23: e. PROP. PAGE REF
A30: 8. PROVIDE THE FOLLOWING
A31: NAME OF CONTRACT ADMINISTRATION OFFICE | D31: NAME OF AUDIT OFFICE
A32: Office of Naval Research, Resident Rep | D32: DHHS Audit Agency
A33: STREET ADDRESS | D33: STREET ADDRESS
A34: Room 582, Federal Bldg. | D34: 1200 Main Tower
A35: 300 E. 8th St.
A36: CITY STATE ZIP CODE | D36: CITY STATE ZIP CODE
A37: Austin Texas 78701 | D37: Dallas Texas 75202
A38: TELEPHONE AREA CODE | C38: NUM | D38: TELEPHONE AREA CODE NUMBER
B39: 512 | C39: 397-5533 | E39: 214 | F39: 767-3261
A40: This proposal is submitted in response to the solicitation, contract modification, etc, in item 1. By submitting this proposal, the offeror,
A41: if selected for discussions, grants the contracting officer or any authorized representative the right to examine, at any time
A42: before award, any of those books, records, documents, or other records directly pertinent to the information requested or submitted.
A43: 9a. NAME OF OFFEROR | D43: 10. NAME OF FIRM
A45: 9b. TITLE OF OFFEROR | D45: TEXAS A & M RESEARCH FOUNDATION
A46: VICE PRESIDENT
A47: 11. SIGNATURE | F47: 12. DATE

Sheet contract file order (hidden)
A1: PROJECT FILE ORDER
A2: USE THIS EXACT ORDER
A5: GENERAL INFORMATION:
A7: Double check that everything contained in the files pertains to that project, i.e.
A8: check for mis-filing.
A10: All items including contracts, mods, and extension documents should be in chronological
A11: order w/most recent action on top.
A14: When project terminates, check all items listed. Print and file a copy of the deliverables
A15: from Oracle and place on top of correspondence file (left side). Make sure all appropriate
A16: deliverables submittal documents are contained in correspondence file and have been
A17: entered in the database.
A18: If compliance exists on the project then label the file with an Orange tag. Mark the tag with what
A19: compliance exists.
A20: CONTRACT SECTION OF FILE
A22: Left Side | C22: Right Side
A23: 1. Executed contract. 2. Legal review, memos of policy exceptions, cost sharing documentation. 3. Required Assurances 4. routing sheet flagged w/blue tag. 5. (topmost) E-mail from SRS/Bus Off setting up SL or mods, etc. | C23: Pending contract actions
A25: Amendments or modifications w/2, 3, 4 and 5 as above - flag w/red tag
A27: Continuations/Extensions - w/2, 3, 4 and 5 as above - flag with w/green tag
A29: Subcontracts/Consultant agreements, teaming agreements, letters of support - w/routing sheet (or award notice if SRS) on top - flag with pink tag
A31: Deliverables Table or page - flag with yellow tag
A33: Budget Reallocation - w/routing sheet (or award notice if RF) on top - flag with turquoise tag
A35: Notices to Proceed (NTPs), if applicable - flag with purple tag
A37: Human Subjects, Nepotism, Export Controls, if applicable - flag with orange tag
A40: CORRESPONDENCE SECTION OF FILE
A42: Left Side | C42: Right Side
A43: Copies of transmittal letters for project deliverables. | C43: TxDOT Monthly reports, RFAs, Travel Requests
A45: copy of human subjects protocols, if applicable
A47: Correspondence regarding extension of due dates for deliverables. | C47: Official correspondence to and from sponsor regarding contractual matters. Any general correspondence that doesn't fall into another category
A49: Copy of latest deliverables verification report from Oracle.
A51: WORKING SECTION OF FILE
A53: Left Side | C53: Right Side
A54: Copy of latest completed database verification report | C54: RFP from sponsor, completed amendment or mod requests, term extension requests, Q & As. (not prep materials)
A56: RFP or | C56: Proposal if different from project agreement. Staff Data sheet.
A57: Proposal Documentation Checklist or SRS Log In
C61: Memos/notes discussing director approval of policy variances
C63: Bids from subcontractors, etc.
C65: Keep documentation or justification of proposal info-anything that may be referenced by auditor/PI
C67: Working correspondence w/PI, attorney, Business Office, or anybody
C69: Notes to file
A71: THROW OUT THE FOLLOWING:
A72: Budget notes to/from PI except justifications of budg. category itemizations
A73: Previous budgets, drafts, superceded details except as noted above
A74: Prep materials for contracts/mods/extensions that have been executed except as noted above

Sheet Cost-Sharing Check List (hidden)
A1: COST-SHARING PROPOSAL CHECK LIST
B5: Talk to PI if proposal involves cost-sharing, if yes then do the following;
B6: PI should talk to the Program Manager and Division Head to gain their support
B7: PI drafts a memo/letter to Don Bugh through Dennis Christiansen requesting approval for any cost-sharing prior to proposal being submitted.
B8: PI provides RDO copy of the approved cost-sharing memo/letter
B9: RDO notifies SRS or TTI that the proposal involves cost-sharing
B10: Copy of the approved cost-sharing memo is included with the proposal for SRS or TTI
B11: The approved cost-sharing memo/letter is attached to the signed route sheet in the working file
B12: Cost-sharing is indicated on the budget
B13: SRS/TTI Route sheet is printed on "yellow" paper to signify cost-sharing
B14: COST-SHARING is noted in large bold letters on the comment section of the TTI route sheet for the Business Office.
B15: Comment section of the TTI route sheet indicates the approved date of the cost-sharing memo/letter.
B16: Cost-Share is checked in Maestro.
